{"text_format":"1","workbook":"xlsx","n_sheets":17,"sheets":["Ohjeistus","Tarkistuslista","1_Velvoiteluettelo","2B_Työkustannus","3_Muut kustannukset","4_Poikkeukset","5_Yhteenveto","Apu1_Yritystilastot","Apu2_Aika per tehtävä","Apu3_Laite tms kustannuksista","Apu4_Yksinkert. esim. laskelma","Apu5_Tietolähteitä","Annualisoitu NPV","Listat (älä muuta)","Taustatietoa ATI ja EKI","Taustatietoa palkat am lk","Päivityshistoria"],"not_rendered":{"charts":3,"images":8,"macros":1,"external_links":2,"defined_names":20,"comments":8,"pivot_tables":0},"unopened":[],"bounds":{"document_bytes":16777216,"sheet_cells":100000,"rows_first":2000,"rows_last":500,"rows_between":2000,"halvings":0,"cell_chars":16384,"cell_head_chars":4096},"cells_cut":0,"cells_raw":0,"read":"whole","date_system":"1900"}

{"sheet":"Ohjeistus","index":0,"n_rows":99,"n_cols":3,"rows_kept":99,"cut":false,"hidden":false,"merged":[[5,5,7,5],[12,5,14,5],[33,2,34,2],[17,1,18,2],[5,2,12,2],[13,2,15,2]]}
[]
[null,"Yksi yhdestä -yritysvaikutuslaskuri, versio 2018 (päivitetty 22.1.2018)"]
[]
[null,"Yritysvaikutusten arviointi ja Yksi yhdestä -periaatteen soveltaminen - Miksi ja mitä?"]
[]
[null,null,"Tarkoituksenmukainen sääntely on välttämätöntä toimivan yhteiskunnan ja kansantalouden turvaamiseksi. Sääntelystä yrityksille aiheutuvat kustannukset voivat kuitenkin heikentää kilpailukykyä ja työllisyyttä.* Siten on tärkeää, että sääntelyä sujuvoitetaan tunnistamalla tarpeettoman raskaita menettelyitä ja korvataan niitä kevyemmillä. \n\n\nHallitus linjasi strategiaistunnossaan 22.8.2016 osana ”Sujuvoitetaan säädöksiä” -kärkihankettaan, että TEM:ssä ja MMM:ssä käynnistetään ns. One-in, One-out, eli Yksi yhdestä -periaatteen soveltamisen kokeilu vuoden 2017 ajaksi. Yksi yhdestä -periaatteen soveltaminen tarkoittaa sitä, että yrityksiin kohdistuvat, kansallisista tarpeista aiheutuvat, välittömät sääntelykustannusten lisäykset korvataan vastaavan suuruisella sääntelykustannusten vähentämisellä toisessa yhteydessä. Tavoitteena on, etteivät yritysten sääntelystä aiheutuvat kustannukset ainakaan kasva. (Ks. TEM:n tiedote ja kokeiluhankkeen loppuraportti 19.12.2017.)\n\nLaskemalla euromääräiset arviot sääntelytaakan lisäyksestä tai vähenemisestä* on ainoa keino nähdä sääntelykustannusten suuruus ja kehityssuunta. \n"]
[]
[]
[]
[]
[]
[]
[]
[null,null,"Yksi yhdestä -periaatteen soveltamiseksi ja euromääräisen sääntelytaakan laskemiseksi TEM:ssä on laadittu tämä laskentapohja ja ohjeistus lainvalmistelijoille sekä vaikutusarviointeja tekeville. Laskurin on tarkoitus helpottaa lainvalmistelijoita vaikutusarvioinnin tekemisessä sekä edesauttaa arviointien yhdenmukaisuutta. Tätä laskuria voi siis käyttää ylipäätään yritysvaikutusarviointien tekemiseen siten kuin OM:n ohjeessa (2007:6) ohjeistetaan riippumatta sovelletaanko Yksi yhdestä -periaatetta. "]
[]
[]
[]
[null,"Laskentapohjan käyttö: Yksityiskohtaisemmat ohjeet tämän laskentapohjan käyttöön ovat seuraavalla välilehdellä. Ohjeita on lisäksi välilehdillä sellaisissa soluissa, joissa on punainen kulma. Vie osoitin hiirellä punakulmasolun päälle, niin näet ohjeen. Kokeile esimerkkiä tässä solussa."]
[]
[null,null,"Toimi siis seuraavasti:"]
[null,"1.","Lue ohjeet ja tee tarvittavat merkinnät tarkistuslistaan välilehdellä \"Tarkistuslista\""]
[null,"2.","Täytä ohjeistuksen mukaisesti tarvittavat tiedot välilehdelle \"1_Velvoiteluettelo\""]
[null,"3.","Täytä ohjeistuksen mukaisesti tarvittavat tiedot välilehdelle \"2B_Työkustannus\""]
[null,"4.","Täytä ohjeistuksen mukaisesti tarvittavat tiedot välilehdelle \"3_Muut kustannukset\""]
[null,"5.","Katso yhteenveto välilehdeltä \"5_Yhteenveto\""]
[null,"6.","Täytä tarvittaessa tietoja välilehdelle \"4_Poikkeukset\" (vain tarvittaessa)"]
[]
[null,null,"Tietoja syötetään vain keltaisille välilehdille, keltaisiin soluihin."]
[null,null,"Käytä tarvittaessa apuna välilehtiä \"Apu1_ … Apu5_ \""]
[null,null,"Älä tee mitään punaisille välilehdille \"Annualisoitu NPV\", \"Listat (älä muuta)\" ym. "]
[]
[null,null,"Katso ohjeeksi myös TEM:n Yksi yhdestä -kokeiluhankkeen tiedote ja loppuraportti (19.12.2017) "]
[null,null,"sekä OM:n ohjeet säädösehdotusten vaikutusten arviointiin (OM:n ohje 2007:6)"]
[null,null,"Seuraa alla olevaa kaaviota sekä seuraavalla välilehdellä olevia ohjeita ja syötä tarvittavat tiedot/arviot tämän laskentapohjan välilehdille 1, 2 ja 3 (sekä tarvittaessa 4)"]
[]
[]
[]
[]
[]
[]
[]
[]
[]
[]
[]
[]
[]
[]
[]
[]
[]
[]
[]
[]
[]
[]
[]
[]
[]
[]
[]
[]
[]
[]
[]
[]
[]
[]
[]
[]
[]
[]
[]
[]
[]
[]
[]
[]
[]
[]
[]
[]
[]
[null,null,"klikkaa kuvaa tai: http://lainvalmistelu.finlex.fi/"]
[]
[]
[]
[null,"*Lähteitä ja ohjeita"]
[null,null,"Honkatukia J ja Rauhanen T, 2011, Yritysten hallinnollisen taakan vähentämisen kokonaistaloudelliset vaikutukset. VATT."]
[null,null,"Kox H, 2005, Intra-EU differences in regulation-caused administrative burden for companies. CPB Netherlands Bureau for Economic Policy Analysis."]
[null,null,"Tang P and Verweij G, 2004, Reducing the administrative burden in the European Union. CPB Netherlands Bureau for Economic Policy Analysis."]
[null,null,"OM:n ohjeet säädösehdotusten vaikutusten arviointiin (OM:n ohje 2007:6)"]
[null,null,"SCM Network, 2005, International Standard Cost Model Manual, SCM Network. Saatavilla OECD:n www-sivustolta http://www.oecd.org/gov/regulatory-policy/34227698.pdf"]
[null,null,"Lainsäädännön arviointineuvoston lausunnot, http://vnk.fi/arviointineuvosto "]
[null,null,"Hyytinen A. ja Moisio M., 2017, Lainsäädännön arviointineuvosto – lainvalmistelun vaikutusarviointia, Kansantaloudellinen aikakauskirja, 113. vsk, 2/2017, sivu 211. "]
[null,null,"Valtiontalouden tarkastusvirasto VTV, 2017, EU-lainsäädännön täytäntöönpano, tarkastuskertomus 12/2017. https://www.vtv.fi/files/5808/12_2017_EU-lainsaadannon_taytantoonpano.pdf"]
[null,"Laskuriversio 2018-1.13 (22.1.2018)"]
[null,"Kehittäjät: Henrikki Oravainen ja Erno Mähönen (2018)"]
[null,"Työ- ja elinkeinoministeriö"]

{"sheet":"Tarkistuslista","index":1,"n_rows":45,"n_cols":7,"rows_kept":45,"cut":false,"hidden":false,"merged":[[29,2,29,4],[29,6,29,12],[28,2,28,4],[20,3,21,4],[20,6,20,12],[21,6,21,12],[23,6,23,12],[24,6,24,12],[25,6,25,12],[26,6,26,12],[27,6,27,12],[28,6,28,12],[39,6,39,12],[30,2,30,4],[30,6,30,12],[32,6,32,12],[31,6,31,12],[37,2,38,4],[37,5,38,5],[37,6,38,12],[33,2,34,4],[31,2,31,4],[33,5,35,5],[33,6,35,12],[36,6,36,12],[17,6,17,12],[18,6,18,12],[22,6,22,12],[19,6,19,12],[9,6,9,12],[10,6,10,12],[11,6,11,12],[12,6,12,12],[13,6,13,12],[14,6,14,12],[15,6,15,12],[16,6,16,12],[8,6,8,12],[3,6,3,12],[4,6,4,12],[5,6,5,12],[6,6,6,12],[7,6,7,12]]}
[null,"Ohje: Sääntelyn yrityksille aiheuttamien kustannuslisäysten ja -säästöjen arviointi sekä Yksi yhdestä -periaatteen soveltaminen"]
[]
[null,"Yleisiä ohjeita",null,null,null,"Ok?","Lähde / lisäohje / tämän taulukon välilehtien käyttö"]
[null,"1.","Yksi yhdestä -periaatetta sovelletaan kansallista alkuperää olevaan ja EU:n minimisääntelyn ylittävään lainsäädäntöön.",null,null,null,"Ks. TEM:n tiedote ja loppuraportti (19.12.2017)"]
[null,"2.","Yritysvaikutukset on arvioitava normaaliin tapaan kaikissa esityksissä, myös niissä, jotka ovat EU:n minimisääntelyä. ",null,null,null,"Ks. OM:n ohje s. 18-"]
[null,"3.","Kiinnitä huomiota yritysvaikutusten arviointiin mahdollisimman varhaisessa vaiheessa lain valmisteluprosessia. ",null,null,null,"Ks. Finlexin ohjeet lainvalmistelun prosessista"]
[null,"4.","Täytä tietoja vain keltaiseksi maalattuihin soluihin.",null,null,null,"Esimerkki keltaisesta täyttösolusta"]
[null,"5.","Tietoja tarvitsee syöttää vain välilehdille 1, 2 ja 3 (sekä tarvittaessa välilehdelle 4)",null,null,null,"Ks. Välilehdet 1, 2 ja 3 sekä tarvittaessa 4"]
[null,"Ks. välilehti 1_Velvoiteluettelo ja hae vastauksia seuraaviin kysymyksiin:"]
[null,"6.","Onko lainsäädännöllä yritysvaikutuksia? Jos on, mitä tietoa vaikutusten tekemiseksi vaaditaan ja mistä saada tietoa?",null,null,null,"Ks. välilehti Apu5_Tietolähteitä"]
[null,"7.","Tunnista ja yksilöi HE:sta yrityksille lisäkustannuksia tai kustannussäästöjä aiheuttavat yksittäiset pykälät/menettelyt.",null,null,null,"Ks. välilehti 1"]
[null,"8.","Tunnista, mitkä edellisistä ovat puhtaasti kansallista alkuperää ja mitkä EU-pohjaista.",null,null,null,"Ks. välilehti 1, sekä VTV:n tarkastuskeromus 12/2017"]
[null,"9.","Mitkä ovat kansallisen lainsäädännön yrityksille aiheuttamat kustannuslisäykset tai kustannussäästöt?",null,null,null,"Ks. välilehdet \"1_\" - \"5_\"."]
[null,"10.","Jos kyse on EU-direktiivin implementoinnista, arvioi vaihtoehtoja, joilla direktiivi voitaisiin implementoida."]
[null,null,"10.1","Aseta  vaihtoehdot järjestykseen yrityksille vähiten ja eniten kustannuksia aiheuttavan vaihtoehdon mukaan"]
[null,null,"10.2","Mikä vaihtoehdoista valitaan"]
[null,null,"10.3","Valitaanko implementointiin yrityksille vähiten kustannuksia aiheuttava vaihtoehto?"]
[null,null,"10.4","Perustele, miksi valitaan juuri kyseinen vaihtoehto."]
[null,null,"10.5","Jos valitaan vähiten kustannuksia aiheuttava vaihtoehto, kyse on niin sanotusta EU-minimisääntelystä"]
[null,null,"10.6","Mitkä ovat EU-minimisääntelyn yrityksille aiheuttamat kustannuslisäykset?",null,null,"Ks. välilehdet \"1_\" - \"5_\"."]
[null,null,"10.7","Mitkä ovat kustannukset, jotka aiheutuvat EU-minimisääntelyn ylittävästä osasta\n(ns. kansallinen lisä, gold plating)?",null,null,"Ks. välilehdet \"1_\" - \"5_\"."]
[]
[null,"11.","Nimeä velvoitteet ja täytä niiden voimaantulovuosi ja luonne välilehdelle 1_Velvoiteluettelo",null,null,null,"Ks. välilehti 1"]
[null,"Laske edellä olevista velvoitteista aiheutuvat kustannussäästöt tai kustannuslisäykset seuraavasti:"]
[null,"12.","Selvitä ja/tai arvioi, mitkä kustannukset ovat kertaluonteisia lain tullessa voimaan ja mitkä toistuvat vuosittain.",null,null,null,"Ks. välilehti 2B"]
[null,"13.","Selvitä toistuvien velvoitteiden osalta, kuinka monta kertaa vuodessa ne toistuvat (frekvenssi)",null,null,null,"HE:n sisällön mukaisesti"]
[null,"14.","Selvitä, kuinka montaa yritystä velvoite koskee (kohdejoukko)",null,null,null,"Ks. välilehti Apu5_Tietolähteitä"]
[null,"15.","Selvitä ja/tai arvioi, vaatiiko velvoitteen hoitaminen työpanosta ja kuinka kauan yritykseltä kuluu kyseisen velvoitteen hoitamiseen",null,null,null,"Ks. välilehti 2B"]
[null,"16.","Käytä lähtökohtaisesti velvoitteen suorittajana 'Asiantuntijaa', kk-palkka 3600 eur. Tarvittaessa selvitä ja/tai arvioi, minkä vaativuustason ja palkkaluokan työntekijät suorittavat kyseistä velvoitetta.",null,null,null,"Ks. välilehti 2B"]
[null,"17.","Syötä edelliset tiedot välilehdelle 2B"]
[null,"18.","Kun kaikki tarvittavat tiedot on täydennetty välilehdelle 2, siirry välilehdelle 3"]
[null,"19.","Selvitä ja/tai arvioi velvoitteiden lisäyksistä tai niiden purkamisesta yrityksille aiheutuvat muut kustannukset. Sekä säästöt että kustannukset ilmoitetaan positiivisina lukuina. Laskuri muuttaa lopputuloksen etumerkin automaattisesti.",null,null,null,"Jos kyse esim, jostain lain edellyttämästä laitehankinnasta katso Apu3"]
[null,"20.","Syötä tiedot mahdollisista muista kustannuksista välilehdelle 3"]
[null,"21.","Ts. selvitä ja täytä välilehdille 2 ja 3 tarvittavat tiedot yhtäältä niin sanotun standardikustannusmallin (SCM) avulla ja toisaalta selvitä ja täytä myös kaikki muut lakiehdotuksen kustannuslisäykset (esim. vaadittavat investoinnit tai tietojärjestelmämuutokset) ja/tai -säästöt.",null,null,null,"Ks. OM:n ohje s. 18-"]
[]
[null,"Katso yhteenveto ja kirjaa euromääräiset yritysvaikutukset HE:een"]
[null,"22.","Kun kaikki tarvittavat tiedot on täydennetty välilehdille 2 ja 3, siirry välilehdelle 5, jolla näet yhteenvedon"]
[null,"23.","Arvioi, näyttävätkö Yhteenvedon tiedot 'järkeviltä'. Tarkista ja muuta tietoja tarvitteassa. Kirjaa yhteenvedosta euromääräiset yritysvaikutukset HE:een. Alustavaa arviota voi ja tulee tarkistaa lausuntokierroksella sidosryhmiltä saatavilla tiedoilla."]
[]
[null,"24.","Tarvittaessa täydennä vuosittaiset poikkeamat ja toimialan kasvuennuste välilehdelle 4"]
[]
[null,"Tarvittaessa saat lisätietoja ja -ohjeistusta"]
[null,null,"Erno Mähönen",null,"Puhelin 029 50 47066, erno.mahonen@tem.fi"]
[null,null,"Henrikki Oravainen",null,"Puhelin 029 50 47133, henrikki.oravainen@tem.fi"]
[null,null,"Työ- ja elinkeinoministeriö "]

{"sheet":"1_Velvoiteluettelo","index":2,"n_rows":22,"n_cols":19,"rows_kept":22,"cut":false,"hidden":false,"merged":[[4,1,9,5],[10,1,10,5],[13,1,13,2],[13,3,13,6],[14,1,14,2]]}
["Luettelo ja kuvaus lain edellyttämistä velvoitteista, jotka aiheuttavat yrityksille välittömiä kustannuksia, tai sellaisten velvoitteiden poistamisesta"]
[]
["Ohjeet"]
[]
[null,"Kirjaa tähän lain yksittäiset velvoitelisäykset ja purettavat velvoitteet. Lisää tarvittaessa Velvoite-rivejä viereisellä painikkeella.\nVoit myös halutessasi eriyttää tietyn velvoitteen kahdeksi eri velvoitteeksi esim. pienten ja suurten yritysten välille,\nmikäli yritysvaikutukset ovat merkittävästi erilaiset erikokoisten yritysten välillä, tai eri toimialojen välillä.\nKirjoita velvoitteelle 'Nimi' ja 'Kuvaus'. Valitse voimassaolon kesto ja voimaanastumisvuosi. \nValitse säädöksen luonne (Kansallinen, EU, lisäys, purku)."]
[]
[]
[]
[]
[]
[null,"Kun olet täyttänyt tiedot, siirry välilehdelle 2B_Työkustannus"]
[]
["Perusvuosi*",2017,"*) Arvioi kustannukset valmisteluhetken nykyrahassa. Laskuri laskee Yksi yhdestä -kirjanpitoa varten valmisteluvuoden kustannuksista vertailukelpoiset arvot valittuun perusvuoteen."]
[null,"Lain nimi ja HE-numero:"]
[null,"Koko yrityskentän koko, jota lakimuutos koskee (valinnainen tieto**)",null,null,"**) Tiedon puuttuminen voi vääristää yrityskohtaisia tuloksia."]
[null,"Velvoite- numero","Nimi (vapaamuotoinen)","Kuvaus lain yritykselle aiheuttamasta velvoitteesta tai velvoitteen purkamisesta (vapaamuotoinen)","Voimassaolo-aika\nValitse solujen valikosta.","Voimaantulo- vuosi (ilmoita yhtenä lukuna esim. \"2019\")","Säädöksen luonne.\nValitse ao. solujen valikosta sopiva kuvailu. Sääntelyä vai sääntelyn purkua? EU-minimisääntelyä vai ei?",null,null,null,null,null,null,null,null,null,null,null,{"$f":"'Listat (älä muuta)'!G4+23","v":23}]
[{"$f":"IF(AND(ISTEXT(C17),ISNUMBER(F17),ISTEXT(G17)),\"ok\",IF(AND(ISBLANK(C17),ISBLANK(F17),ISBLANK(G17)),\"\",\"täydennä!\"))","v":""},{"$f":"\"Velvoite\"&S17","v":"Velvoite1"},null,null,"toistaiseksi",null,null,null,null,null,null,null,null,null,null,null,null,null,1]
[{"$f":"IF(AND(ISTEXT(C18),ISNUMBER(F18),ISTEXT(G18)),\"ok\",IF(AND(ISBLANK(C18),ISBLANK(F18),ISBLANK(G18)),\"\",\"täydennä!\"))","v":""},{"$f":"\"Velvoite\"&S18","v":"Velvoite2"},null,null,"toistaiseksi",null,null,null,null,null,null,null,null,null,null,null,null,null,{"$f":"S17+1","v":2}]
[{"$f":"IF(AND(ISTEXT(C19),ISNUMBER(F19),ISTEXT(G19)),\"ok\",IF(AND(ISBLANK(C19),ISBLANK(F19),ISBLANK(G19)),\"\",\"täydennä!\"))","v":""},{"$f":"\"Velvoite\"&S19","v":"Velvoite3"},null,null,"toistaiseksi",null,null,null,null,null,null,null,null,null,null,null,null,null,{"$f":"S18+1","v":3}]
[{"$f":"IF(AND(ISTEXT(C20),ISNUMBER(F20),ISTEXT(G20)),\"ok\",IF(AND(ISBLANK(C20),ISBLANK(F20),ISBLANK(G20)),\"\",\"täydennä!\"))","v":""},{"$f":"\"Velvoite\"&S20","v":"Velvoite4"},null,null,"toistaiseksi",null,null,null,null,null,null,null,null,null,null,null,null,null,{"$f":"S19+1","v":4}]
[{"$f":"IF(AND(ISTEXT(C21),ISNUMBER(F21),ISTEXT(G21)),\"ok\",IF(AND(ISBLANK(C21),ISBLANK(F21),ISBLANK(G21)),\"\",\"täydennä!\"))","v":""},{"$f":"\"Velvoite\"&S21","v":"Velvoite5"},null,null,"toistaiseksi",null,null,null,null,null,null,null,null,null,null,null,null,null,{"$f":"S20+1","v":5}]
[null,null,null,null,null,null,null,null,null,null,null,null,null,null,null,null,null,null,{"$f":"S21+1","v":6}]

{"sheet":"2B_Työkustannus","index":3,"n_rows":108,"n_cols":12,"rows_kept":108,"cut":false,"hidden":false,"merged":[[63,2,65,4],[74,2,75,4],[6,2,6,4],[11,2,11,4],[10,2,10,4],[44,3,44,4],[46,3,46,4],[47,3,47,4],[48,3,48,4],[54,3,54,4],[56,3,56,4],[57,3,57,4],[58,3,58,4],[45,3,45,4],[55,3,55,4],[14,5,14,8],[25,5,25,8],[36,3,38,7],[5,2,5,4],[4,2,4,4]]}
["Palkkaluokat ja velvoitteen vaatima työaika --> Velvoitteiden aiheuttama työkustannus"]
[]
["Ohjeet"]
[]
[null,null,"Täytä frekvenssi ja yritysten lukumäärä.",null,null,"Kirjoita tietoja vain keltaiseksi maalattuihin soluihin"]
[null,null,"Täytä arviot vaadittavista työtunneista. Ks. ohjeita soluista, joissa punainen kulma.",null,null,"Älä muokkaa harmaalla pohjalla olevia soluja"]
[null,null,"Kun olet täyttänyt tuntitiedot, siirry välilehdelle 3_Muut kustannukset",null,null,{"$f":"IF(ISTEXT(OFFSET('1_Velvoiteluettelo'!B$21,5,0)),OFFSET('1_Velvoiteluettelo'!B$21,5,0),\"\")","v":""},{"$f":"IF(ISTEXT(OFFSET('1_Velvoiteluettelo'!C$21,5,0)),OFFSET('1_Velvoiteluettelo'!C$21,5,0),\"\")","v":""}]
[]
[null,"Laskentatekijät",null,null,"Velvoitteen nimi",{"$f":"IF(ISTEXT(OFFSET('1_Velvoiteluettelo'!$C17,F105,0)),(OFFSET('1_Velvoiteluettelo'!$C17,F105,0)),\"Velvoite\"&F105+1)","v":"Velvoite1"},{"$f":"IF(ISTEXT(OFFSET('1_Velvoiteluettelo'!$C17,G105,0)),(OFFSET('1_Velvoiteluettelo'!$C17,G105,0)),\"Velvoite\"&G105+1)","v":"Velvoite2"},{"$f":"IF(ISTEXT(OFFSET('1_Velvoiteluettelo'!$C17,H105,0)),(OFFSET('1_Velvoiteluettelo'!$C17,H105,0)),\"Velvoite\"&H105+1)","v":"Velvoite3"},{"$f":"IF(ISTEXT(OFFSET('1_Velvoiteluettelo'!$C17,I105,0)),(OFFSET('1_Velvoiteluettelo'!$C17,I105,0)),\"Velvoite\"&I105+1)","v":"Velvoite4"},{"$f":"IF(ISTEXT(OFFSET('1_Velvoiteluettelo'!$C17,J105,0)),(OFFSET('1_Velvoiteluettelo'!$C17,J105,0)),\"Velvoite\"&J105+1)","v":"Velvoite5"}]
[]
[null,"A1","Lukumäärä yrityksistä, joita velvoite tai sen purku koskee (kohdejoukko)"]
[null,"A2","Frekvenssi per vuosi*"]
[]
[null,"B1","TOISTUVAT HENKILÖSTÖKUSTANNUKSET TAI -SÄÄSTÖT (1. VUOSI JA SEN JÄLKEEN)"]
[null,null,null,"Palkkaluokka","Kuukausipalkka","Toistuvat työTUNNIT (raportointi, luvat, yms.) per yritys*"]
[null,null,null,"Johtaja",6500,0,0,0,0,0]
[null,null,null,"Ylemmän tason asiantuntija, erityisasiantuntija",4500,0,0,0,0,0]
[null,null,"=>","Asiantuntija (oletus)",3600,0,0,0,0,0]
[null,null,null,"Yleissihteeri, tallentaja, palkanlaskija",2800,0,0,0,0,0]
[null,null,null,"Toimistoavustaja",2600,0,0,0,0,0]
[null,null,null,"Muu, mikä?",null,0,0,0,0,0]
[null,null,null,{"$f":"D50","v":"Toistuva hlöstökustannus yht kohdeyrityksille p.a."},null,{"$f":"F50","v":0},{"$f":"G50","v":0},0,0,{"$f":"J50","v":0}]
[null,null,null,"Tarkistus",null,{"$f":"IF(ISNUMBER(F11),IF(AND(AND(F87>0,ISNUMBER(OFFSET('1_Velvoiteluettelo'!$F17,F105,0))),NOT(F12=0)),\"Ok!\",IF(AND(AND(F87>0,ISNUMBER(OFFSET('1_Velvoiteluettelo'!$F17,F105,0))),(F12=0)),\"Lisää frekvenssi!\",IF(AND(F87=0,ISBLANK(OFFSET('1_Velvoiteluettelo'!$F17,F105,0))),\"\",IF(AND(F87>0,ISBLANK(OFFSET('1_Velvoiteluettelo'!$F17,F105,0))),\"Tarkista voimaantulo!\",\"Lisää tunnit (jos tarpeen)\")))),IF(ISNUMBER(OFFSET('1_Velvoiteluettelo'!$F17,F105,0)),\"Lisää yritysten lukumäärä!\",\"\"))","v":""},{"$f":"IF(ISNUMBER(G11),IF(AND(AND(G87>0,ISNUMBER(OFFSET('1_Velvoiteluettelo'!$F17,G105,0))),NOT(G12=0)),\"Ok!\",IF(AND(AND(G87>0,ISNUMBER(OFFSET('1_Velvoiteluettelo'!$F17,G105,0))),(G12=0)),\"Lisää frekvenssi!\",IF(AND(G87=0,ISBLANK(OFFSET('1_Velvoiteluettelo'!$F17,G105,0))),\"\",IF(AND(G87>0,ISBLANK(OFFSET('1_Velvoiteluettelo'!$F17,G105,0))),\"Tarkista voimaantulo!\",\"Lisää tunnit (jos tarpeen)\")))),IF(ISNUMBER(OFFSET('1_Velvoiteluettelo'!$F17,G105,0)),\"Lisää yritysten lukumäärä!\",\"\"))","v":""},{"$f":"IF(ISNUMBER(H11),IF(AND(AND(H87>0,ISNUMBER(OFFSET('1_Velvoiteluettelo'!$F17,H105,0))),NOT(H12=0)),\"Ok!\",IF(AND(AND(H87>0,ISNUMBER(OFFSET('1_Velvoiteluettelo'!$F17,H105,0))),(H12=0)),\"Lisää frekvenssi!\",IF(AND(H87=0,ISBLANK(OFFSET('1_Velvoiteluettelo'!$F17,H105,0))),\"\",IF(AND(H87>0,ISBLANK(OFFSET('1_Velvoiteluettelo'!$F17,H105,0))),\"Tarkista voimaantulo!\",\"Lisää tunnit (jos tarpeen)\")))),IF(ISNUMBER(OFFSET('1_Velvoiteluettelo'!$F17,H105,0)),\"Lisää yritysten lukumäärä!\",\"\"))","v":""},{"$f":"IF(ISNUMBER(I11),IF(AND(AND(I87>0,ISNUMBER(OFFSET('1_Velvoiteluettelo'!$F17,I105,0))),NOT(I12=0)),\"Ok!\",IF(AND(AND(I87>0,ISNUMBER(OFFSET('1_Velvoiteluettelo'!$F17,I105,0))),(I12=0)),\"Lisää frekvenssi!\",IF(AND(I87=0,ISBLANK(OFFSET('1_Velvoiteluettelo'!$F17,I105,0))),\"\",IF(AND(I87>0,ISBLANK(OFFSET('1_Velvoiteluettelo'!$F17,I105,0))),\"Tarkista voimaantulo!\",\"Lisää tunnit (jos tarpeen)\")))),IF(ISNUMBER(OFFSET('1_Velvoiteluettelo'!$F17,I105,0)),\"Lisää yritysten lukumäärä!\",\"\"))","v":""},{"$f":"IF(ISNUMBER(J11),IF(AND(AND(J87>0,ISNUMBER(OFFSET('1_Velvoiteluettelo'!$F17,J105,0))),NOT(J12=0)),\"Ok!\",IF(AND(AND(J87>0,ISNUMBER(OFFSET('1_Velvoiteluettelo'!$F17,J105,0))),(J12=0)),\"Lisää frekvenssi!\",IF(AND(J87=0,ISBLANK(OFFSET('1_Velvoiteluettelo'!$F17,J105,0))),\"\",IF(AND(J87>0,ISBLANK(OFFSET('1_Velvoiteluettelo'!$F17,J105,0))),\"Tarkista voimaantulo!\",\"Lisää tunnit (jos tarpeen)\")))),IF(ISNUMBER(OFFSET('1_Velvoiteluettelo'!$F17,J105,0)),\"Lisää yritysten lukumäärä!\",\"\"))","v":""}]
[]
[null,"C1","KERTALUONTEISET HENKILÖSTÖKUSTANNUKSET (1. VUOSI) (sääntelyyn sopeutuminen)"]
[null,null,null,"Palkkaluokka","Kuukausipalkka","Sopeuttamisesta vain kerran koituvat työTUNNIT per yritys"]
[null,null,null,"Johtaja",6500,0,0,0,0,0]
[null,null,null,"Ylemmän tason asiantuntija, erityisasiantuntija",4500,0,0,0,0,0]
[null,null,"=>","Asiantuntija (oletus)",3600,0,0,0,0,0]
[null,null,null,"Yleissihteeri, tallentaja, palkanlaskija",2800,0,0,0,0,0]
[null,null,null,"Toimistoavustaja",2600,0,0,0,0,0]
[null,null,null,"Muu, mikä?",null,0,0,0,0,0]
[null,null,null,"Kertaluonteinen hlöstökustannus yht kohdeyrityksille",null,{"$f":"F59","v":0},{"$f":"G59","v":0},{"$f":"H59","v":0},{"$f":"I59","v":0},{"$f":"J59","v":0}]
[null,null,null,"Tarkistus",null,{"$f":"IF(AND(F96>0,ISNUMBER(OFFSET('1_Velvoiteluettelo'!$F17,F105,0))),\"Ok!\",IF(AND(F96=0,ISBLANK(OFFSET('1_Velvoiteluettelo'!$F17,F105,0))),\"\",IF(AND(F96>0,ISBLANK(OFFSET('1_Velvoiteluettelo'!$F17,F105,0))),\"Tarkista voimaantulo!\",\"Lisää tunnit jos tarpeen\")))","v":""},{"$f":"IF(AND(G96>0,ISNUMBER(OFFSET('1_Velvoiteluettelo'!$F17,G105,0))),\"Ok!\",IF(AND(G96=0,ISBLANK(OFFSET('1_Velvoiteluettelo'!$F17,G105,0))),\"\",IF(AND(G96>0,ISBLANK(OFFSET('1_Velvoiteluettelo'!$F17,G105,0))),\"Tarkista voimaantulo!\",\"Lisää tunnit jos tarpeen\")))","v":""},{"$f":"IF(AND(H96>0,ISNUMBER(OFFSET('1_Velvoiteluettelo'!$F17,H105,0))),\"Ok!\",IF(AND(H96=0,ISBLANK(OFFSET('1_Velvoiteluettelo'!$F17,H105,0))),\"\",IF(AND(H96>0,ISBLANK(OFFSET('1_Velvoiteluettelo'!$F17,H105,0))),\"Tarkista voimaantulo!\",\"Lisää tunnit jos tarpeen\")))","v":""},{"$f":"IF(AND(I96>0,ISNUMBER(OFFSET('1_Velvoiteluettelo'!$F17,I105,0))),\"Ok!\",IF(AND(I96=0,ISBLANK(OFFSET('1_Velvoiteluettelo'!$F17,I105,0))),\"\",IF(AND(I96>0,ISBLANK(OFFSET('1_Velvoiteluettelo'!$F17,I105,0))),\"Tarkista voimaantulo!\",\"Lisää tunnit jos tarpeen\")))","v":""},{"$f":"IF(AND(J96>0,ISNUMBER(OFFSET('1_Velvoiteluettelo'!$F17,J105,0))),\"Ok!\",IF(AND(J96=0,ISBLANK(OFFSET('1_Velvoiteluettelo'!$F17,J105,0))),\"\",IF(AND(J96>0,ISBLANK(OFFSET('1_Velvoiteluettelo'!$F17,J105,0))),\"Tarkista voimaantulo!\",\"Lisää tunnit jos tarpeen\")))","v":""}]
[]
[null,null,null,"Kirjoita tähän perustelut ja kuinka tiedot on hankittu, lähdeviittaukset."]
[]
[]
[]
[]
[]
[null,null,"Taustalaskuja - nämä tiedoksi ja nähtäväksi, ei vaadi valmistelijalta toimenpiteitä. Jos yllä olevat tiedot täytetty, siirry seuraaville välilehdille."]
[]
[null,null,"B1","Toistuvat henkilöstökulut tai -säästöt",null,{"$f":"F9","v":"Velvoite1"},{"$f":"G9","v":"Velvoite2"},{"$f":"H9","v":"Velvoite3"},{"$f":"I9","v":"Velvoite4"},{"$f":"J9","v":"Velvoite5"}]
[null,null,null,"Käytetty keskipalkka (€/kk)",null,{"$f":"IF(ISNUMBER($E$21),F89*$E$89+F90*$E$90+F91*$E$91+F92*$E$92+F93*$E$93+F94*$E$21,F89*$E$89+F90*$E$90+F91*$E$91+F92*$E$92+F93*$E$93)","v":0},{"$f":"IF(ISNUMBER($E$21),G89*$E$89+G90*$E$90+G91*$E$91+G92*$E$92+G93*$E$93+G94*$E$21,G89*$E$89+G90*$E$90+G91*$E$91+G92*$E$92+G93*$E$93)","v":0},0,0,0]
[null,null,null,"Kk-työkustannus ml. palkan sivukulu ja yleiskulu",null,{"$f":"(1+$E$69)*F45","v":0},{"$f":"(1+$E$69)*G45","v":0},0,0,0]
[null,null,null,"Tuntitaksa sivu- ja yleiskuluineen (€/h)",null,{"$f":"F46/$E$78","v":0},{"$f":"G46/$E$78","v":0},0,0,0]
[null,null,null,"Tehtävään käytettävät tunnit p.a.",null,{"$f":"F87*F12","v":0},{"$f":"G87*G12","v":0},{"$f":"H87*H12","v":0},{"$f":"I87*I12","v":0},{"$f":"J87*J12","v":0}]
[null,null,null,"Kustannukset vuodessa per yritys",null,{"$f":"IF(OR(OFFSET('1_Velvoiteluettelo'!$G$17,F105,0)=\"EU-minimisääntelyä\",OFFSET('1_Velvoiteluettelo'!$G$17,F105,0)=\"Kansallista tai EU-minimin ylittävää sääntelyä\"),F48*F47,IF(AND(ISBLANK(OFFSET('1_Velvoiteluettelo'!$G$17,F105,0)),F48>0),\"Täydennä sivu 1\",(-F48*F47)))","v":0},{"$f":"IF(OR(OFFSET('1_Velvoiteluettelo'!$G$17,G105,0)=\"EU-minimisääntelyä\",OFFSET('1_Velvoiteluettelo'!$G$17,G105,0)=\"Kansallista tai EU-minimin ylittävää sääntelyä\"),G48*G47,IF(AND(ISBLANK(OFFSET('1_Velvoiteluettelo'!$G$17,G105,0)),G48>0),\"Täydennä sivu 1\",(-G48*G47)))","v":0},{"$f":"IF(OR(OFFSET('1_Velvoiteluettelo'!$G$17,H105,0)=\"EU-minimisääntelyä\",OFFSET('1_Velvoiteluettelo'!$G$17,H105,0)=\"Kansallista tai EU-minimin ylittävää sääntelyä\"),H48*H47,IF(AND(ISBLANK(OFFSET('1_Velvoiteluettelo'!$G$17,H105,0)),H48>0),\"Täydennä sivu 1\",(-H48*H47)))","v":0},{"$f":"IF(OR(OFFSET('1_Velvoiteluettelo'!$G$17,I105,0)=\"EU-minimisääntelyä\",OFFSET('1_Velvoiteluettelo'!$G$17,I105,0)=\"Kansallista tai EU-minimin ylittävää sääntelyä\"),I48*I47,IF(AND(ISBLANK(OFFSET('1_Velvoiteluettelo'!$G$17,I105,0)),I48>0),\"Täydennä sivu 1\",(-I48*I47)))","v":0},{"$f":"IF(OR(OFFSET('1_Velvoiteluettelo'!$G$17,J105,0)=\"EU-minimisääntelyä\",OFFSET('1_Velvoiteluettelo'!$G$17,J105,0)=\"Kansallista tai EU-minimin ylittävää sääntelyä\"),J48*J47,IF(AND(ISBLANK(OFFSET('1_Velvoiteluettelo'!$G$17,J105,0)),J48>0),\"Täydennä sivu 1\",(-J48*J47)))","v":0}]
[null,null,null,"Toistuva hlöstökustannus yht kohdeyrityksille p.a.",null,{"$f":"F11*F49","v":0},{"$f":"G11*G49","v":0},{"$f":"H11*H49","v":0},{"$f":"I11*I49","v":0},{"$f":"J11*J49","v":0}]
[]
[]
[null,null,"C1","Kertaluontoiset henkilöstökulut",null,{"$f":"F9","v":"Velvoite1"},{"$f":"G9","v":"Velvoite2"},{"$f":"H9","v":"Velvoite3"},{"$f":"I9","v":"Velvoite4"},{"$f":"J9","v":"Velvoite5"}]
[null,null,null,"Henkilöstökulut per yritys",null,{"$f":"F57*F58","v":0},{"$f":"G57*G58","v":0},0,0,0]
[null,null,null,"Käytetty keskipalkka (€/kk)",null,{"$f":"IF(ISNUMBER($E$32),F98*$E$89+F99*$E$90+F100*$E$91+F101*$E$92+F102*$E$93+F103*$E$32,F98*$E$89+F99*$E$90+F100*$E$91+F101*$E$92+F102*$E$93)","v":0},{"$f":"IF(ISNUMBER($E$32),G98*$E$89+G99*$E$90+G100*$E$91+G101*$E$92+G102*$E$93+G103*$E$32,G98*$E$89+G99*$E$90+G100*$E$91+G101*$E$92+G102*$E$93)","v":0},0,0,0]
[null,null,null,"Kk-työkustannus ml. palkan sivukulu ja yleiskulu",null,{"$f":"(1+$E$69)*F55","v":0},{"$f":"(1+$E$69)*G55","v":0},0,0,0]
[null,null,null,"Tuntitaksa sivu- ja yleiskuluineen (€/h)",null,{"$f":"F56/$E$78","v":0},{"$f":"G56/$E$78","v":0},0,0,0]
[null,null,null,"Tehtävään käytettävät tunnit vuodessa",null,{"$f":"F96","v":0},{"$f":"G96","v":0},0,0,0]
[null,null,null,"Kertaluonteinen hlöstökustannus yht. kohdeyrityksille",null,{"$f":"F54*F11","v":0},{"$f":"G54*G11","v":0},{"$f":"H54*H11","v":0},{"$f":"I54*I11","v":0},{"$f":"J54*J11","v":0}]
[]
[]
[]
[null,null,"Palkan sivukulu ja yleiskulu"]
[null,null,"Palkan sivukulu ja yleiskulu perustuvat … Tähän ei tarvitse syöttää tietoa, eikä tätä tarvitse kopioida. Tämä on vain tiedoksi kertoimesta, joka on valmiina laskukaavassa."]
[]
[]
[null,null,null,"Palkkojen sivukulu-%",0.34599999999999997]
[null,null,null,"Yleiskulu-%",0.25]
[null,null,null,"Yhteensä",{"$f":"E68+E67","v":0.59599999999999997},"Palkka kerrotaan kertoimella 1+(tämä %-luku)"]
[]
[]
[]
[]
[null,null,"Työtunnit (yksityinen sektori)"]
[null,null,"Tähän ei tarvitse syöttää tietoa, eikä tätä tarvitse kopioida. Tämä on vain tiedoksi jakajasta, joka on valmiina laskukaavassa."]
[]
[null,null,null,null,"Työtuntia"]
[null,null,null,"Kuukaudessa",{"$f":"E80*22","v":166.71600000000001},"Kuukausipalkka jaetaan tällä tuntimäärällä tuntipalkan laskemiseksi"]
[null,null,null,"Viikossa",37.89]
[null,null,null,"Päivässä",{"$f":"E79/5","v":7.5780000000000003}]
[]
[]
[]
[]
[]
[null,null,null,"Tarkat palkkasummat 2016",null,"Taustalaskuja, älä muuta alla olevien solujen tietoja"]
[null,null,null,null,null,{"$f":"IF(ISNUMBER($E$21),SUM(F16:F21),SUM(F16:F20))","v":0},{"$f":"IF(ISNUMBER($E$21),SUM(G16:G21),SUM(G16:G20))","v":0},{"$f":"IF(ISNUMBER($E$21),SUM(H16:H21),SUM(H16:H20))","v":0},{"$f":"IF(ISNUMBER($E$21),SUM(I16:I21),SUM(I16:I20))","v":0},{"$f":"IF(ISNUMBER($E$21),SUM(J16:J21),SUM(J16:J20))","v":0}]
[null,null,null,"Palkkaluokka"]
[null,null,null,"Johtaja (1 AML 2010)",6577,{"$f":"IF((F$87>0),(F16/F$87),0)","v":0},0,0,0,0]
[null,null,null,"Ylemmän tason asiantuntija, erityisasiantuntija (2 AML 2010)",4475,0,0,0,0,0]
[null,null,null,"Asiantuntija (3 AML 2010)",3590,0,0,0,0,0]
[null,null,null,"Yleissihteeri, tallentaja, palkanlaskija (412, 4132, 431 AML 2010)",2785,0,0,0,0,0]
[null,null,null,"Toimistoavustaja (411 AML 2010)",2579,0,0,0,0,0]
[null,null,null,null,null,0,0,0,0,0]
[null,null,null,"Lähde: Tilastokeskus, palkat ja työvoimakustannukset yksityisellä sektorilla"]
[null,null,null,"Ks. välilehti Taustatietoa palkat am lk",null,{"$f":"IF(ISNUMBER($E$32),SUM(F27:F32),SUM(F27:F31))","v":0},{"$f":"IF(ISNUMBER($E$32),SUM(G27:G32),SUM(G27:G31))","v":0},{"$f":"IF(ISNUMBER($E$32),SUM(H27:H32),SUM(H27:H31))","v":0},{"$f":"IF(ISNUMBER($E$32),SUM(I27:I32),SUM(I27:I31))","v":0},{"$f":"IF(ISNUMBER($E$32),SUM(J27:J32),SUM(J27:J31))","v":0}]
[]
[null,null,null,null,null,{"$f":"IF((F$96>0),(F27/F$96),0)","v":0},0,0,0,0]
[null,null,null,null,null,0,0,0,0,0]
[null,null,null,null,null,0,0,0,0,0]
[null,null,null,null,null,0,0,0,0,0]
[null,null,null,null,null,0,0,0,0,0]
[null,null,null,null,null,0,0,0,0,0]
[]
[null,null,null,"Sarakelaskuri:",{"$f":"'Listat (älä muuta)'!G4+12","v":12},0,{"$f":"F105+1","v":1},{"$f":"G105+1","v":2},{"$f":"H105+1","v":3},{"$f":"I105+1","v":4},{"$f":"J105+1","v":5},4]
[]
[]
[null,null,null,null,null,0]

{"sheet":"3_Muut kustannukset","index":4,"n_rows":74,"n_cols":16,"rows_kept":74,"cut":false,"hidden":false,"merged":[[48,6,60,10],[20,0,20,1],[12,0,12,1],[35,6,35,7],[27,20,31,31],[23,20,24,30],[12,6,12,7],[14,6,14,7],[35,0,35,1],[44,6,44,7],[22,0,27,1],[37,0,42,1],[34,0,34,1]]}
["Muut toistuvat ja kertaluonteiset kustannuserät --> Kaikki kustannukset yhteensä"]
[]
["Ohjeet"]
[]
[null,"Tällä taulukon välilehdellä lasketaan sääntelytaakka kokonaisuudessaan yritys- ja tehtäväkohtaisesti sekä samalla koskien koko kohdejoukkoa."]
[null,"Täydennä alla laskentataulukkoon keltaisella pohjalla olevat kohdat B2 (toistuvat) ja C2 (kertaluonteiset) tarpeen mukaan. Ks. ohjeita soluista, joissa punainen kulma."]
[null,"Kun olet täyttänyt tiedot, siirry joko välilehdelle",null,null,null,null,null,null,"\"4_Poikkeukset\"","tai","\"5_Yhteenveto\""]
[]
[]
[null,null,null,"A.","Perustiedot, eli kohdejoukko ja frekvenssi (tiedot siirtyy välilehdeltä 2B_työkustannus. Täydennä ja korjaa nämä tarvittaessa edelliselle välilehdelle.)"]
[]
[null,null,null,null,null,null,null,null,{"$f":"IF(ISTEXT(OFFSET('1_Velvoiteluettelo'!$C17,I74,0)),(OFFSET('1_Velvoiteluettelo'!$C17,I74,0)),\"Velvoite\"&I74+1)","v":"Velvoite1"},{"$f":"IF(ISTEXT(OFFSET('1_Velvoiteluettelo'!$C17,J74,0)),(OFFSET('1_Velvoiteluettelo'!$C17,J74,0)),\"Velvoite\"&J74+1)","v":"Velvoite2"},{"$f":"IF(ISTEXT(OFFSET('1_Velvoiteluettelo'!$C17,K74,0)),(OFFSET('1_Velvoiteluettelo'!$C17,K74,0)),\"Velvoite\"&K74+1)","v":"Velvoite3"},{"$f":"IF(ISTEXT(OFFSET('1_Velvoiteluettelo'!$C17,L74,0)),(OFFSET('1_Velvoiteluettelo'!$C17,L74,0)),\"Velvoite\"&L74+1)","v":"Velvoite4"},{"$f":"IF(ISTEXT(OFFSET('1_Velvoiteluettelo'!$C17,M74,0)),(OFFSET('1_Velvoiteluettelo'!$C17,M74,0)),\"Velvoite\"&M74+1)","v":"Velvoite5"}]
[null,null,null,null,null,"A1","Kohdejoukko (yritysten lukumäärä)",null,{"$f":"OFFSET('2B_Työkustannus'!$F11,0,1*I74)","v":0},{"$f":"OFFSET('2B_Työkustannus'!$F11,0,1*J74)","v":0},{"$f":"OFFSET('2B_Työkustannus'!$F11,0,1*K74)","v":0},{"$f":"OFFSET('2B_Työkustannus'!$F11,0,1*L74)","v":0},{"$f":"OFFSET('2B_Työkustannus'!$F11,0,1*M74)","v":0}]
[null,null,null,null,null,null,null,null,{"$f":"IF(AND(NOT(I30=0),ISBLANK(I13)),\"Täydennä sivu 2!\",IF(AND(NOT(I30=0),ISNUMBER(I13)),\"Ok!\",\"\"))","v":""},{"$f":"IF(AND(NOT(J30=0),ISBLANK(J13)),\"Täydennä sivu 2!\",IF(AND(NOT(J30=0),ISNUMBER(J13)),\"Ok!\",\"\"))","v":""},{"$f":"IF(AND(NOT(K30=0),ISBLANK(K13)),\"Täydennä sivu 2!\",IF(AND(NOT(K30=0),ISNUMBER(K13)),\"Ok!\",\"\"))","v":""},{"$f":"IF(AND(NOT(L30=0),ISBLANK(L13)),\"Täydennä sivu 2!\",IF(AND(NOT(L30=0),ISNUMBER(L13)),\"Ok!\",\"\"))","v":""},{"$f":"IF(AND(NOT(M30=0),ISBLANK(M13)),\"Täydennä sivu 2!\",IF(AND(NOT(M30=0),ISNUMBER(M13)),\"Ok!\",\"\"))","v":""}]
[null,null,null,null,null,"A2","Frekvenssi per vuosi",null,{"$f":"OFFSET('2B_Työkustannus'!$F12,0,1*I74)","v":0},{"$f":"OFFSET('2B_Työkustannus'!$F12,0,1*J74)","v":0},{"$f":"OFFSET('2B_Työkustannus'!$F12,0,1*K74)","v":0},{"$f":"OFFSET('2B_Työkustannus'!$F12,0,1*L74)","v":0},{"$f":"OFFSET('2B_Työkustannus'!$F12,0,1*M74)","v":0}]
[]
[null,null,null,"B.","Toistuvat kustannukset tai säästöt (1. vuosi ja sen jälkeen)"]
[null,null,null,null,null,null,null,null,"Lain yritykselle aiheuttamat velvoitteet, joista suoria kustannuslisäyksiä tai velvoitteet, joiden purusta kustannussäästöjä"]
[]
[null,null,null,null,null,"B1","Toistuvat henkilöstökustannukset tai -säästöt",null,null,null,null,null,null,null,null,"Yhteensä"]
[null,null,null,null,null,null,"Toistuva hlöstökustannus yht kohdeyrityksille p.a.",null,{"$f":"OFFSET('2B_Työkustannus'!$F22,0,1*I74)","v":0},{"$f":"OFFSET('2B_Työkustannus'!$F22,0,1*J74)","v":0},{"$f":"OFFSET('2B_Työkustannus'!$F22,0,1*K74)","v":0},{"$f":"OFFSET('2B_Työkustannus'!$F22,0,1*L74)","v":0},{"$f":"OFFSET('2B_Työkustannus'!$F22,0,1*M74)","v":0},null,null,{"$f":"SUM(I21:N21)","v":0}]
[]
[null,null,null,null,null,"B2","Muut toistuvat kustannukset velvoitteista tai säästöt velvoitteiden purusta"]
[null,null,null,null,null,null,null,"Hankintakustannukset per frekvenssi",0,0,0,0,0]
[null,null,null,null,null,null,null,"Välinekustannukset per frekvenssi",0,0,0,0,0]
[null,null,null,null,null,null,null,"Muut kustannukset per frekvenssi",0,0,0,0,0]
[null,null,null,null,null,null,null,"Kustannukset yhteensä per yritys p.a.",{"$f":"IF(OR(OFFSET('1_Velvoiteluettelo'!$G$17,I74,0)=\"EU-minimisääntelyä\",OFFSET('1_Velvoiteluettelo'!$G$17,I74,0)=\"Kansallista tai EU-minimin ylittävää sääntelyä\"),SUM(I24:I26)*I15,IF(AND(ISBLANK(OFFSET('1_Velvoiteluettelo'!$G$17,I74,0)),I24+I25+I26>0),\"Täydennä sivu 1\",(-SUM(I24:I26)*I15)))","v":0},{"$f":"IF(OR(OFFSET('1_Velvoiteluettelo'!$G$17,J74,0)=\"EU-minimisääntelyä\",OFFSET('1_Velvoiteluettelo'!$G$17,J74,0)=\"Kansallista tai EU-minimin ylittävää sääntelyä\"),SUM(J24:J26)*J15,IF(AND(ISBLANK(OFFSET('1_Velvoiteluettelo'!$G$17,J74,0)),J24+J25+J26>0),\"Täydennä sivu 1\",(-SUM(J24:J26)*J15)))","v":0},{"$f":"IF(OR(OFFSET('1_Velvoiteluettelo'!$G$17,K74,0)=\"EU-minimisääntelyä\",OFFSET('1_Velvoiteluettelo'!$G$17,K74,0)=\"Kansallista tai EU-minimin ylittävää sääntelyä\"),SUM(K24:K26)*K15,IF(AND(ISBLANK(OFFSET('1_Velvoiteluettelo'!$G$17,K74,0)),K24+K25+K26>0),\"Täydennä sivu 1\",(-SUM(K24:K26)*K15)))","v":0},{"$f":"IF(OR(OFFSET('1_Velvoiteluettelo'!$G$17,L74,0)=\"EU-minimisääntelyä\",OFFSET('1_Velvoiteluettelo'!$G$17,L74,0)=\"Kansallista tai EU-minimin ylittävää sääntelyä\"),SUM(L24:L26)*L15,IF(AND(ISBLANK(OFFSET('1_Velvoiteluettelo'!$G$17,L74,0)),L24+L25+L26>0),\"Täydennä sivu 1\",(-SUM(L24:L26)*L15)))","v":0},{"$f":"IF(OR(OFFSET('1_Velvoiteluettelo'!$G$17,M74,0)=\"EU-minimisääntelyä\",OFFSET('1_Velvoiteluettelo'!$G$17,M74,0)=\"Kansallista tai EU-minimin ylittävää sääntelyä\"),SUM(M24:M26)*M15,IF(AND(ISBLANK(OFFSET('1_Velvoiteluettelo'!$G$17,M74,0)),M24+M25+M26>0),\"Täydennä sivu 1\",(-SUM(M24:M26)*M15)))","v":0},null,null,{"$f":"SUM(I27:N27)","v":0}]
[null,null,null,null,null,null,"Muut toistuvat kustannukset yht kohdeyrityksille p.a.",null,{"$f":"IF(OR(OFFSET('1_Velvoiteluettelo'!$G$17,I74,0)=\"EU-minimisääntelyä\",OFFSET('1_Velvoiteluettelo'!$G$17,I74,0)=\"Kansallista tai EU-minimin ylittävää sääntelyä\"),(I24+I25+I26)*I13*I15,IF(AND(ISBLANK(OFFSET('1_Velvoiteluettelo'!$G$17,I74,0)),I24+I25+I26>0),\"Täydennä sivu 1\",(-(I24+I25+I26)*I13*I15)))","v":0},{"$f":"IF(OR(OFFSET('1_Velvoiteluettelo'!$G$17,J74,0)=\"EU-minimisääntelyä\",OFFSET('1_Velvoiteluettelo'!$G$17,J74,0)=\"Kansallista tai EU-minimin ylittävää sääntelyä\"),(J24+J25+J26)*J13*J15,IF(AND(ISBLANK(OFFSET('1_Velvoiteluettelo'!$G$17,J74,0)),J24+J25+J26>0),\"Täydennä sivu 1\",(-(J24+J25+J26)*J13*J15)))","v":0},{"$f":"IF(OR(OFFSET('1_Velvoiteluettelo'!$G$17,K74,0)=\"EU-minimisääntelyä\",OFFSET('1_Velvoiteluettelo'!$G$17,K74,0)=\"Kansallista tai EU-minimin ylittävää sääntelyä\"),(K24+K25+K26)*K13*K15,IF(AND(ISBLANK(OFFSET('1_Velvoiteluettelo'!$G$17,K74,0)),K24+K25+K26>0),\"Täydennä sivu 1\",(-(K24+K25+K26)*K13*K15)))","v":0},{"$f":"IF(OR(OFFSET('1_Velvoiteluettelo'!$G$17,L74,0)=\"EU-minimisääntelyä\",OFFSET('1_Velvoiteluettelo'!$G$17,L74,0)=\"Kansallista tai EU-minimin ylittävää sääntelyä\"),(L24+L25+L26)*L13*L15,IF(AND(ISBLANK(OFFSET('1_Velvoiteluettelo'!$G$17,L74,0)),L24+L25+L26>0),\"Täydennä sivu 1\",(-(L24+L25+L26)*L13*L15)))","v":0},{"$f":"IF(OR(OFFSET('1_Velvoiteluettelo'!$G$17,M74,0)=\"EU-minimisääntelyä\",OFFSET('1_Velvoiteluettelo'!$G$17,M74,0)=\"Kansallista tai EU-minimin ylittävää sääntelyä\"),(M24+M25+M26)*M13*M15,IF(AND(ISBLANK(OFFSET('1_Velvoiteluettelo'!$G$17,M74,0)),M24+M25+M26>0),\"Täydennä sivu 1\",(-(M24+M25+M26)*M13*M15)))","v":0},null,null,{"$f":"SUM(I28:N28)","v":0}]
[]
[null,null,null,null,null,"B Yht","Toistuvat kustannukset yht kohdeyrityksille",null,{"$f":"I21+I28","v":0},{"$f":"J21+J28","v":0},{"$f":"K21+K28","v":0},{"$f":"L21+L28","v":0},{"$f":"M21+M28","v":0},null,null,{"$f":"SUM(I30:N30)","v":0}]
[]
[null,null,null,"C.","Kertaluonteiset kustannukset (1. vuosi)"]
[null,null,null,null,null,null,null,null,"Lain yritykselle aiheuttamat velvoitteet, joista suoria kustannuslisäyksiä tai velvoitteet, joiden purusta kustannussäästöjä"]
[]
[null,null,null,null,null,"C1","Kertaluonteiset henkilöstökustannukset",null,null,null,null,null,null,null,null,"Yhteensä"]
[null,null,null,null,null,null,"Kertaluontoinen henkilöstökustannus kaikille yrityksille yhteensä",null,{"$f":"OFFSET('2B_Työkustannus'!$F59,0,1*I74)","v":0},{"$f":"OFFSET('2B_Työkustannus'!$F59,0,1*J74)","v":0},{"$f":"OFFSET('2B_Työkustannus'!$F59,0,1*K74)","v":0},{"$f":"OFFSET('2B_Työkustannus'!$F59,0,1*L74)","v":0},{"$f":"OFFSET('2B_Työkustannus'!$F59,0,1*M74)","v":0},null,null,{"$f":"SUM(I36:N36)","v":0}]
[]
[null,null,null,null,null,"C2","Sääntelyn yritykselle aiheuttamat muut Kertaluonteiset kustannukset"]
[null,null,null,null,null,null,null,"Hankintakustannukset",0,0,0,0,0,null,null,{"$f":"SUM(I39:N39)","v":0}]
[null,null,null,null,null,null,null,"Välinekustannukset",0,0,0,0,0,null,null,{"$f":"SUM(I40:N40)","v":0}]
[null,null,null,null,null,null,null,"Muut kustannukset",0,0,0,0,0,null,null,{"$f":"SUM(I41:N41)","v":0}]
[null,null,null,null,null,null,null,"Kustannukset yhteensä per yritys",{"$f":"SUM(I39:I41)","v":0},{"$f":"SUM(J39:J41)","v":0},{"$f":"SUM(K39:K41)","v":0},{"$f":"SUM(L39:L41)","v":0},{"$f":"SUM(M39:M41)","v":0},null,null,{"$f":"SUM(I42:N42)","v":0}]
[null,null,null,null,null,null,"Kertaluonteiset muut kust. yht. kohdeyrityksille",null,{"$f":"IF(AND(ISBLANK(OFFSET('1_Velvoiteluettelo'!$G$17,I74,0)),I39+I40+I41>0),\"Täydennä sivu 1\",(SUM(I39:I41)))*I13","v":0},{"$f":"IF(AND(ISBLANK(OFFSET('1_Velvoiteluettelo'!$G$17,J74,0)),J39+J40+J41>0),\"Täydennä sivu 1\",(SUM(J39:J41)))*J13","v":0},{"$f":"IF(AND(ISBLANK(OFFSET('1_Velvoiteluettelo'!$G$17,K74,0)),K39+K40+K41>0),\"Täydennä sivu 1\",(SUM(K39:K41)))*K13","v":0},{"$f":"IF(AND(ISBLANK(OFFSET('1_Velvoiteluettelo'!$G$17,L74,0)),L39+L40+L41>0),\"Täydennä sivu 1\",(SUM(L39:L41)))*L13","v":0},{"$f":"IF(AND(ISBLANK(OFFSET('1_Velvoiteluettelo'!$G$17,M74,0)),M39+M40+M41>0),\"Täydennä sivu 1\",(SUM(M39:M41)))*M13","v":0},null,null,{"$f":"SUM(I43:N43)","v":0}]
[]
[null,null,null,null,null,"C Yht","Kertaluonteiset kust. yht. kohdeyrityksille",null,{"$f":"I43+I36","v":0},{"$f":"J43+J36","v":0},{"$f":"K43+K36","v":0},{"$f":"L43+L36","v":0},{"$f":"M43+M36","v":0},null,null,{"$f":"SUM(I45:N45)","v":0}]
[]
[]
[null,null,null,null,null,null,"Kirjoita tähän perustelut ja kuinka tiedot on hankittu, lähdeviittaukset."]
[]
[]
[]
[]
[]
[]
[]
[]
[]
[]
[]
[]
[]
[]
[]
[]
[]
[]
[]
[]
[]
[]
[]
[]
[null,null,null,null,null,null,null,null,"Apuruutuja, älä muuta",{"$f":"'Listat (älä muuta)'!G4+15","v":15}]
[null,null,null,null,null,null,null,null,0,{"$f":"I74+1","v":1},{"$f":"J74+1","v":2},{"$f":"K74+1","v":3},{"$f":"L74+1","v":4},{"$f":"M74+1","v":5}]

{"sheet":"4_Poikkeukset","index":5,"n_rows":35,"n_cols":22,"rows_kept":35,"cut":false,"hidden":false,"merged":[[5,2,5,3],[5,4,5,5],[15,1,21,7],[5,7,6,8]]}
[]
[null,"Poikkeus: kasvava tai supistuva yritysjoukko"]
[]
[null,"Käytä VAIN, mikäli on uskottavasti odotettavissa, että yritysjoukko, jota sääntely koskee, on merkittävästi joko kasvamassa tai supistumassa tulevaisuudessa",null,null,null,null,null,null,null,null,null,null,null,null,null,null,null,null,null,null,null,{"$f":"'Listat (älä muuta)'!G4+14","v":14}]
[]
[null,null,"Yritysjoukon kasvunopeus (%)",null,"Yritysten lukumäärä",null,null,{"$f":"IF(AND(SUM(C8:C13)=0,SUM(E8:E13)=SUM(F8:F13)),\"\",IF(ISBLANK(B16),\"Kirjoita perustelut!\",\"Ok!\"))","v":""}]
[null,null,"Vuodessa (täytä)","Kymmenessä vuodessa","Yrityksiä perusvuonna","Yrityksiä 10 vuoden päästä"]
[null,{"$f":"IF(ISTEXT('1_Velvoiteluettelo'!C17),'1_Velvoiteluettelo'!C17,'1_Velvoiteluettelo'!B17)","v":"Velvoite1"},0,{"$f":"((C8+1)^10)-1","v":0},{"$f":"OFFSET('3_Muut kustannukset'!$I$13,0,'1_Velvoiteluettelo'!S17-1)","v":0},{"$f":"E8+D8*E8","v":0}]
[null,{"$f":"IF(ISTEXT('1_Velvoiteluettelo'!C18),'1_Velvoiteluettelo'!C18,'1_Velvoiteluettelo'!B18)","v":"Velvoite2"},0,{"$f":"((C9+1)^10)-1","v":0},{"$f":"OFFSET('3_Muut kustannukset'!$I$13,0,'1_Velvoiteluettelo'!S18-1)","v":0},{"$f":"E9+D9*E9","v":0}]
[null,{"$f":"IF(ISTEXT('1_Velvoiteluettelo'!C19),'1_Velvoiteluettelo'!C19,'1_Velvoiteluettelo'!B19)","v":"Velvoite3"},0,{"$f":"((C10+1)^10)-1","v":0},{"$f":"OFFSET('3_Muut kustannukset'!$I$13,0,'1_Velvoiteluettelo'!S19-1)","v":0},{"$f":"E10+D10*E10","v":0}]
[null,{"$f":"IF(ISTEXT('1_Velvoiteluettelo'!C20),'1_Velvoiteluettelo'!C20,'1_Velvoiteluettelo'!B20)","v":"Velvoite4"},0,{"$f":"((C11+1)^10)-1","v":0},{"$f":"OFFSET('3_Muut kustannukset'!$I$13,0,'1_Velvoiteluettelo'!S20-1)","v":0},{"$f":"E11+D11*E11","v":0}]
[null,{"$f":"IF(ISTEXT('1_Velvoiteluettelo'!C21),'1_Velvoiteluettelo'!C21,'1_Velvoiteluettelo'!B21)","v":"Velvoite5"},0,{"$f":"((C12+1)^10)-1","v":0},{"$f":"OFFSET('3_Muut kustannukset'!$I$13,0,'1_Velvoiteluettelo'!S21-1)","v":0},{"$f":"E12+D12*E12","v":0}]
[]
[]
[null,"Perustelut (Miksi uskot yritysjoukon koon muuttuvan, lähdeviittaukset):"]
[]
[]
[]
[]
[]
[]
[]
[]
[]
[null,null,"Palaa takaisin tai siirry"]
[null,null,"Ohjeisiin"]
[null,null,"Tarkistuslistaan","Ohjeet ja tarkistuslista"]
[null,null,"Välilehdelle 1","Velvoiteluettelo"]
[null,null,"Välilehdelle 2","Työkustannukset"]
[null,null,"Välilehdelle 3","Muut kustannuksen ja kustannukset yhteensä"]
[null,null,"Välilehdelle 5","Yhteenveto"]
[null,null,"Apu2","Tehtäväkohtainen aika - apu hahmottamiseen"]
[null,null,"Apu3","Laite tms kustannuksista"]
[null,null,"Apu4","Yksinkertainen esimerkkilaskelma"]
[null,null,"Apu5","Tietolähteitä"]

{"sheet":"5_Yhteenveto","index":6,"n_rows":26,"n_cols":35,"rows_kept":26,"cut":false,"hidden":false,"merged":[[23,1,23,4],[24,1,24,4],[25,5,25,6],[11,4,11,6],[4,1,8,6],[9,7,9,9],[5,7,5,9],[6,7,7,9],[8,7,8,9],[11,7,11,8]]}
["Yhteenveto ja tiedot, jotka tulee kirjata hallituksen esitykseen"]
[]
["Ohjeet"]
[]
[null,"Tälle välilehdelle ei täytetä mitään tietoja.\nTämä välilehti kerää muilta välilehdiltä yhteenvedon kaikista velvoitteiden aiheuttamista kustannuslisäyksistä ja -säästöistä.\nVälilehdellä on myös eriteltynä nettokustannukset EU-sääntelystä ja kansallisesta sääntelystä.\nKatso kohdat, joihin on merkitty \"Kirjaa nämä hallituksen esitykseen\" ja kirjoita nämä auki HE:n yritysvaikutusarvioinnin alle. Huom. ao. luvut pyöristettyjä. Kirjoita HE:een noin numeroarvon eteen.\nKatso tarvittaessa myös oikeusminiteriön ohje vaikutusarvioinnin laatimisesta sekä TEM/TMO/SKY:n laatima ohjeistus. (Linkit ohessa)",null,null,null,null,null,"Lisäohjeita:"]
[null,null,null,null,null,null,null,"Oikeusministeriön ohje (2007:6) vaikutusarvioinnin laatimisesta"]
[null,null,null,null,null,null,null,"Ks. TEM:n tiedote (19.12.2017) Yksi yhdestä -periaatteen soveltamisen kokeiluhankkeesta. Tarvittaessa lisätietoja myös laskurin kehittäjiltä. Yhteystiedot Ohjeistus ja tarkistuslista -välilehdellä."]
[]
[null,null,null,null,null,null,null,"*Nettonykyarvo = Sääntelyn kustannusvaikutus yrityskentälle nykyhetkestä tulevaisuuteen mitattuna perusvuoden rahassa (rahan arvo laskee 4 % vuosivauhtia)"]
[null,"Lopuksi, lähetä laskelma tarkistettavaksi ja tallennettavaksi (TEM).",null,null,null,null,null,"*Nettonykyarvo vuositasolla = Sääntelyn keskimääräinen kustannusvaikutus vuositasolla lain voimassaolon ajan (oletus: 10 vuotta)"]
[]
["Yhteenveto velvoitekohtaisesti",null,null,null,"Kirjaa nämä hallituksen esitykseen!",null,null,"Laskennallisia eriä",null,null,null,"Kustannukset per yritys",null,null,null,"Tarkat, ei pyöristetyt arvot",null,null,null,null,"per yritys, tarkat, ei pyöristetyt arvot",null,null,null,null,null,"Apulaskuruutu: EU-sääntelyosan ja kansallisen osan erottaminen",null,null,null,null,null,null,"Rivejä lisätty:",{"$f":"'Listat (älä muuta)'!G4","v":0}]
["Velvoite-numero","Velvoitteen nimi","Sääntelyn luonne","Kuinka kauan voimassa?","Yritysten määrä (A)","Kertakustannus nykyrahassa (C) ","Toistuvat kustannukset (+) / säästöt (-) nykyrahassa (B)","Kustannusten ja säästöjen kokonaissumman nettonykyarvo*","Nettonykyarvo vuositasolla*","Kannustin lainvalmistelijalle",null,"Velvoitteen nimi","Kertakustannus nykyrahassa","Toistuvat kustannukset (+) / säästöt (-) nykyrahassa vuosittain",null,"Kertakustannus nykyrahassa (C) ","Toistuvat kustannukset (+) / säästöt (-) nykyrahassa (B)","Kustannusten ja säästöjen kokonaissumman nettonykyarvo*","Nettonykyarvo vuositasolla*",null,"Velvoitteen nimi","Kertakustannus nykyrahassa","Toistuvat kustannukset (+) / säästöt (-) nykyrahassa vuosittain",null,null,null,"NPV:n EU-osuus","NPV:n Kansallinen osuus","Jos EU, arvo=1","Jos kans., arvo=1",null,"Kerta- kustannusten EU-osuus","Toistuvien kustannusten EU-osuus","Kerta- kustannusten kans. osuus","Toistuvien kustannusten kans. osuus"]
[{"$f":"'1_Velvoiteluettelo'!B17","v":"Velvoite1"},{"$f":"IF(ISTEXT('1_Velvoiteluettelo'!C17),'1_Velvoiteluettelo'!C17,\"\")","v":""},{"$f":"IF(ISTEXT('1_Velvoiteluettelo'!G17),'1_Velvoiteluettelo'!G17,\"\")","v":""},{"$f":"'1_Velvoiteluettelo'!E17","v":"toistaiseksi"},{"$f":"IF(ISNUMBER(OFFSET('3_Muut kustannukset'!$I$13,0,AE14)),OFFSET('3_Muut kustannukset'!$I$13,0,AE14),(\"-\"))","v":0},{"$f":"IF(P14>0,IF(OR((P14=1000000),(P14<1000000)),MROUND(P14,1000),IF(P14<10000000,MROUND(P14,10000),MROUND(P14,100000))),IF(OR((ABS(P14)=1000000),(ABS(P14)<1000000)),MROUND(P14,-1000),IF(ABS(P14)<10000000,MROUND(P14,-10000),MROUND(P14,-100000))))","v":0},{"$f":"IF(Q14>0,IF(OR((Q14=1000000),(Q14<1000000)),MROUND(Q14,1000),IF(Q14<10000000,MROUND(Q14,10000),MROUND(Q14,100000))),IF(OR((ABS(Q14)=1000000),(ABS(Q14)<1000000)),MROUND(Q14,-1000),IF(ABS(Q14)<10000000,MROUND(Q14,-10000),MROUND(Q14,-100000))))","v":0},{"$f":"IF(R14>0,IF(OR((R14=100000),(R14<100000)),MROUND(R14,1000),IF(R14<1000000,MROUND(R14,10000),MROUND(R14,100000))),IF(OR((ABS(R14)=100000),(ABS(R14)<100000)),MROUND(R14,-1000),IF(ABS(R14)<1000000,MROUND(R14,-10000),MROUND(R14,-100000))))","v":0},{"$f":"IF(S14>0,IF(OR((S14=100000),(S14<100000)),MROUND(S14,1000),IF(S14<1000000,MROUND(S14,10000),MROUND(S14,100000))),IF(OR((ABS(S14)=100000),(ABS(S14)<100000)),MROUND(S14,-1000),IF(ABS(S14)<1000000,MROUND(S14,-10000),MROUND(S14,-100000))))","v":0},{"$f":"IF(ISBLANK('1_Velvoiteluettelo'!G17),\"\",IF(S14>0,\"Hae yrityksille säästöjä!\",\"Hyvä, yritysten sääntelytaakka ei kasva!\"))","v":""},null,{"$f":"IF(ISTEXT('1_Velvoiteluettelo'!C17),'1_Velvoiteluettelo'!C17,\"\")","v":""},{"$f":"IF(V14>0,IF(OR((V14=1000),(V14<1000)),MROUND(V14,10),IF(V14<100000,MROUND(V14,100),MROUND(V14,1000))),IF(OR((ABS(V14)=1000),(ABS(V14)<1000)),MROUND(V14,-10),IF(ABS(V14)<100000,MROUND(V14,-100),MROUND(V14,-1000))))","v":0},{"$f":"IF(W14>0,IF(OR((W14=1000),(W14<1000)),MROUND(W14,10),IF(W14<100000,MROUND(W14,100),MROUND(W14,1000))),IF(OR((ABS(W14)=1000),(ABS(W14)<1000)),MROUND(W14,-10),IF(ABS(W14)<100000,MROUND(W14,-100),MROUND(W14,-1000))))","v":0},null,{"$f":"OFFSET('3_Muut kustannukset'!I$45,0,AE14)","v":0},{"$f":"OFFSET('3_Muut kustannukset'!I$30,0,AE14)","v":0},{"$f":"OFFSET('Annualisoitu NPV'!$D$38,0,AE14)","v":0},{"$f":"OFFSET('Annualisoitu NPV'!$D$40,0,AE14)","v":0},null,{"$f":"IF(ISTEXT('1_Velvoiteluettelo'!C17),'1_Velvoiteluettelo'!C17,\"\")","v":""},{"$f":"IF(AND(NOT(E14=0),(ISNUMBER(E14))),P14/E14,\"0\")","v":"0"},{"$f":"IF(AND(NOT(E14=0),(ISNUMBER(E14))),Q14/E14,\"0\")","v":"0"},null,null,null,{"$f":"R14*AC14","v":0},{"$f":"R14*AD14","v":0},{"$f":"IF(OR(C14=\"EU-minimisääntelyä\",C14=\"EU:n velvoittamaa sääntelyn purkua\"),1,IF(ISBLANK(C14),\"\",0))","v":0},{"$f":"IF(OR(C14=\"EU-minimisääntelyä\",C14=\"EU:n velvoittamaa sääntelyn purkua\"),0,IF(ISBLANK(C14),\"\",1))","v":1},0,{"$f":"P14*$AC14","v":0},{"$f":"Q14*$AC14","v":0},{"$f":"P14*$AD14","v":0},{"$f":"Q14*$AD14","v":0}]
[{"$f":"'1_Velvoiteluettelo'!B18","v":"Velvoite2"},{"$f":"IF(ISTEXT('1_Velvoiteluettelo'!C18),'1_Velvoiteluettelo'!C18,\"\")","v":""},{"$f":"IF(ISTEXT('1_Velvoiteluettelo'!G18),'1_Velvoiteluettelo'!G18,\"\")","v":""},{"$f":"'1_Velvoiteluettelo'!E18","v":"toistaiseksi"},{"$f":"IF(ISNUMBER(OFFSET('3_Muut kustannukset'!$I$13,0,AE15)),OFFSET('3_Muut kustannukset'!$I$13,0,AE15),(\"-\"))","v":0},{"$f":"IF(P15>0,IF(OR((P15=1000000),(P15<1000000)),MROUND(P15,1000),IF(P15<10000000,MROUND(P15,10000),MROUND(P15,100000))),IF(OR((ABS(P15)=1000000),(ABS(P15)<1000000)),MROUND(P15,-1000),IF(ABS(P15)<10000000,MROUND(P15,-10000),MROUND(P15,-100000))))","v":0},{"$f":"IF(Q15>0,IF(OR((Q15=1000000),(Q15<1000000)),MROUND(Q15,1000),IF(Q15<10000000,MROUND(Q15,10000),MROUND(Q15,100000))),IF(OR((ABS(Q15)=1000000),(ABS(Q15)<1000000)),MROUND(Q15,-1000),IF(ABS(Q15)<10000000,MROUND(Q15,-10000),MROUND(Q15,-100000))))","v":0},{"$f":"IF(R15>0,IF(OR((R15=100000),(R15<100000)),MROUND(R15,1000),IF(R15<1000000,MROUND(R15,10000),MROUND(R15,100000))),IF(OR((ABS(R15)=100000),(ABS(R15)<100000)),MROUND(R15,-1000),IF(ABS(R15)<1000000,MROUND(R15,-10000),MROUND(R15,-100000))))","v":0},{"$f":"IF(S15>0,IF(OR((S15=100000),(S15<100000)),MROUND(S15,1000),IF(S15<1000000,MROUND(S15,10000),MROUND(S15,100000))),IF(OR((ABS(S15)=100000),(ABS(S15)<100000)),MROUND(S15,-1000),IF(ABS(S15)<1000000,MROUND(S15,-10000),MROUND(S15,-100000))))","v":0},{"$f":"IF(ISBLANK('1_Velvoiteluettelo'!G18),\"\",IF(I15>0,\"Hae yrityksille säästöjä!\",\"Hyvä, yritysten sääntelytaakka ei kasva!\"))","v":""},null,{"$f":"IF(ISTEXT('1_Velvoiteluettelo'!C18),'1_Velvoiteluettelo'!C18,\"\")","v":""},{"$f":"IF(V15>0,IF(OR((V15=1000),(V15<1000)),MROUND(V15,10),IF(V15<100000,MROUND(V15,100),MROUND(V15,1000))),IF(OR((ABS(V15)=1000),(ABS(V15)<1000)),MROUND(V15,-10),IF(ABS(V15)<100000,MROUND(V15,-100),MROUND(V15,-1000))))","v":0},{"$f":"IF(W15>0,IF(OR((W15=1000),(W15<1000)),MROUND(W15,10),IF(W15<100000,MROUND(W15,100),MROUND(W15,1000))),IF(OR((ABS(W15)=1000),(ABS(W15)<1000)),MROUND(W15,-10),IF(ABS(W15)<100000,MROUND(W15,-100),MROUND(W15,-1000))))","v":0},null,{"$f":"OFFSET('3_Muut kustannukset'!I$45,0,AE15)","v":0},{"$f":"OFFSET('3_Muut kustannukset'!I$30,0,AE15)","v":0},{"$f":"OFFSET('Annualisoitu NPV'!$D$38,0,AE15)","v":0},{"$f":"OFFSET('Annualisoitu NPV'!$D$40,0,AE15)","v":0},null,{"$f":"IF(ISTEXT('1_Velvoiteluettelo'!C18),'1_Velvoiteluettelo'!C18,\"\")","v":""},{"$f":"IF(AND(NOT(E15=0),(ISNUMBER(E15))),P15/E15,\"0\")","v":"0"},{"$f":"IF(AND(NOT(E15=0),(ISNUMBER(E15))),Q15/E15,\"0\")","v":"0"},null,null,null,{"$f":"R15*AC15","v":0},{"$f":"R15*AD15","v":0},{"$f":"IF(OR(C15=\"EU-minimisääntelyä\",C15=\"EU:n velvoittamaa sääntelyn purkua\"),1,IF(ISBLANK(C15),\"\",0))","v":0},{"$f":"IF(OR(C15=\"EU-minimisääntelyä\",C15=\"EU:n velvoittamaa sääntelyn purkua\"),0,IF(ISBLANK(C15),\"\",1))","v":1},{"$f":"AE14+1","v":1},{"$f":"P15*$AC15","v":0},{"$f":"Q15*$AC15","v":0},{"$f":"P15*$AD15","v":0},{"$f":"Q15*$AD15","v":0}]
[{"$f":"'1_Velvoiteluettelo'!B19","v":"Velvoite3"},{"$f":"IF(ISTEXT('1_Velvoiteluettelo'!C19),'1_Velvoiteluettelo'!C19,\"\")","v":""},{"$f":"IF(ISTEXT('1_Velvoiteluettelo'!G19),'1_Velvoiteluettelo'!G19,\"\")","v":""},{"$f":"'1_Velvoiteluettelo'!E19","v":"toistaiseksi"},{"$f":"IF(ISNUMBER(OFFSET('3_Muut kustannukset'!$I$13,0,AE16)),OFFSET('3_Muut kustannukset'!$I$13,0,AE16),(\"-\"))","v":0},0,0,0,0,{"$f":"IF(ISBLANK('1_Velvoiteluettelo'!G19),\"\",IF(I16>0,\"Hae yrityksille säästöjä!\",\"Hyvä, yritysten sääntelytaakka ei kasva!\"))","v":""},null,{"$f":"IF(ISTEXT('1_Velvoiteluettelo'!C19),'1_Velvoiteluettelo'!C19,\"\")","v":""},0,0,null,{"$f":"OFFSET('3_Muut kustannukset'!I$45,0,AE16)","v":0},{"$f":"OFFSET('3_Muut kustannukset'!I$30,0,AE16)","v":0},{"$f":"OFFSET('Annualisoitu NPV'!$D$38,0,AE16)","v":0},{"$f":"OFFSET('Annualisoitu NPV'!$D$40,0,AE16)","v":0},null,{"$f":"IF(ISTEXT('1_Velvoiteluettelo'!C19),'1_Velvoiteluettelo'!C19,\"\")","v":""},"0","0",null,null,null,0,0,{"$f":"IF(OR(C16=\"EU-minimisääntelyä\",C16=\"EU:n velvoittamaa sääntelyn purkua\"),1,IF(ISBLANK(C16),\"\",0))","v":0},{"$f":"IF(OR(C16=\"EU-minimisääntelyä\",C16=\"EU:n velvoittamaa sääntelyn purkua\"),0,IF(ISBLANK(C16),\"\",1))","v":1},{"$f":"AE15+1","v":2},0,0,0,0]
[{"$f":"'1_Velvoiteluettelo'!B20","v":"Velvoite4"},{"$f":"IF(ISTEXT('1_Velvoiteluettelo'!C20),'1_Velvoiteluettelo'!C20,\"\")","v":""},{"$f":"IF(ISTEXT('1_Velvoiteluettelo'!G20),'1_Velvoiteluettelo'!G20,\"\")","v":""},{"$f":"'1_Velvoiteluettelo'!E20","v":"toistaiseksi"},{"$f":"IF(ISNUMBER(OFFSET('3_Muut kustannukset'!$I$13,0,AE17)),OFFSET('3_Muut kustannukset'!$I$13,0,AE17),(\"-\"))","v":0},0,0,0,0,{"$f":"IF(ISBLANK('1_Velvoiteluettelo'!G20),\"\",IF(I17>0,\"Hae yrityksille säästöjä!\",\"Hyvä, yritysten sääntelytaakka ei kasva!\"))","v":""},null,{"$f":"IF(ISTEXT('1_Velvoiteluettelo'!C20),'1_Velvoiteluettelo'!C20,\"\")","v":""},0,0,null,{"$f":"OFFSET('3_Muut kustannukset'!I$45,0,AE17)","v":0},{"$f":"OFFSET('3_Muut kustannukset'!I$30,0,AE17)","v":0},{"$f":"OFFSET('Annualisoitu NPV'!$D$38,0,AE17)","v":0},{"$f":"OFFSET('Annualisoitu NPV'!$D$40,0,AE17)","v":0},null,{"$f":"IF(ISTEXT('1_Velvoiteluettelo'!C20),'1_Velvoiteluettelo'!C20,\"\")","v":""},"0","0",null,null,null,0,0,{"$f":"IF(OR(C17=\"EU-minimisääntelyä\",C17=\"EU:n velvoittamaa sääntelyn purkua\"),1,IF(ISBLANK(C17),\"\",0))","v":0},{"$f":"IF(OR(C17=\"EU-minimisääntelyä\",C17=\"EU:n velvoittamaa sääntelyn purkua\"),0,IF(ISBLANK(C17),\"\",1))","v":1},{"$f":"AE16+1","v":3},0,0,0,0]
[{"$f":"'1_Velvoiteluettelo'!B21","v":"Velvoite5"},{"$f":"IF(ISTEXT('1_Velvoiteluettelo'!C21),'1_Velvoiteluettelo'!C21,\"\")","v":""},{"$f":"IF(ISTEXT('1_Velvoiteluettelo'!G21),'1_Velvoiteluettelo'!G21,\"\")","v":""},{"$f":"'1_Velvoiteluettelo'!E21","v":"toistaiseksi"},{"$f":"IF(ISNUMBER(OFFSET('3_Muut kustannukset'!$I$13,0,AE18)),OFFSET('3_Muut kustannukset'!$I$13,0,AE18),(\"-\"))","v":0},{"$f":"IF(P18>0,IF(OR((P18=1000000),(P18<1000000)),MROUND(P18,1000),IF(P18<10000000,MROUND(P18,10000),MROUND(P18,100000))),IF(OR((ABS(P18)=1000000),(ABS(P18)<1000000)),MROUND(P18,-1000),IF(ABS(P18)<10000000,MROUND(P18,-10000),MROUND(P18,-100000))))","v":0},0,0,0,{"$f":"IF(ISBLANK('1_Velvoiteluettelo'!G21),\"\",IF(I18>0,\"Hae yrityksille säästöjä!\",\"Hyvä, yritysten sääntelytaakka ei kasva!\"))","v":""},null,{"$f":"IF(ISTEXT('1_Velvoiteluettelo'!C21),'1_Velvoiteluettelo'!C21,\"\")","v":""},{"$f":"IF(V18>0,IF(OR((V18=1000),(V18<1000)),MROUND(V18,10),IF(V18<100000,MROUND(V18,100),MROUND(V18,1000))),IF(OR((ABS(V18)=1000),(ABS(V18)<1000)),MROUND(V18,-10),IF(ABS(V18)<100000,MROUND(V18,-100),MROUND(V18,-1000))))","v":0},0,null,{"$f":"OFFSET('3_Muut kustannukset'!I$45,0,AE18)","v":0},{"$f":"OFFSET('3_Muut kustannukset'!I$30,0,AE18)","v":0},{"$f":"OFFSET('Annualisoitu NPV'!$D$38,0,AE18)","v":0},{"$f":"OFFSET('Annualisoitu NPV'!$D$40,0,AE18)","v":0},null,{"$f":"IF(ISTEXT('1_Velvoiteluettelo'!C21),'1_Velvoiteluettelo'!C21,\"\")","v":""},{"$f":"IF(AND(NOT(E18=0),(ISNUMBER(E18))),P18/E18,\"0\")","v":"0"},"0",null,null,null,0,0,{"$f":"IF(OR(C18=\"EU-minimisääntelyä\",C18=\"EU:n velvoittamaa sääntelyn purkua\"),1,IF(ISBLANK(C18),\"\",0))","v":0},{"$f":"IF(OR(C18=\"EU-minimisääntelyä\",C18=\"EU:n velvoittamaa sääntelyn purkua\"),0,IF(ISBLANK(C18),\"\",1))","v":1},{"$f":"AE17+1","v":4},0,0,0,0]
[null,null,null,null,null,null,null,null,null,null,null,null,null,null,null,null,null,null,null,null,null,null,null,null,null,null,null,null,null,null,{"$f":"AE18+1","v":5}]
["Yhteensä",null,null,null,{"$f":"IF(ISNUMBER('1_Velvoiteluettelo'!D15),'1_Velvoiteluettelo'!D15,MAX(E14:E19))","v":0},{"$f":"IF(P20>0,IF(OR((P20=1000000),(P20<1000000)),MROUND(P20,1000),IF(P20<10000000,MROUND(P20,10000),MROUND(P20,100000))),IF(OR((ABS(P20)=1000000),(ABS(P20)<1000000)),MROUND(P20,-1000),IF(ABS(P20)<10000000,MROUND(P20,-10000),MROUND(P20,-100000))))","v":0},{"$f":"IF(Q20>0,IF(OR((Q20=1000000),(Q20<1000000)),MROUND(Q20,1000),IF(Q20<10000000,MROUND(Q20,10000),MROUND(Q20,100000))),IF(OR((ABS(Q20)=1000000),(ABS(Q20)<1000000)),MROUND(Q20,-1000),IF(ABS(Q20)<10000000,MROUND(Q20,-10000),MROUND(Q20,-100000))))","v":0},{"$f":"IF(R20>0,IF(OR((R20=1000000),(R20<1000000)),MROUND(R20,1000),IF(R20<10000000,MROUND(R20,10000),MROUND(R20,100000))),IF(OR((ABS(R20)=1000000),(ABS(R20)<1000000)),MROUND(R20,-1000),IF(ABS(R20)<10000000,MROUND(R20,-10000),MROUND(R20,-100000))))","v":0},{"$f":"IF(S20>0,IF(OR((S20=1000000),(S20<1000000)),MROUND(S20,1000),IF(S20<10000000,MROUND(S20,10000),MROUND(S20,100000))),IF(OR((ABS(S20)=1000000),(ABS(S20)<1000000)),MROUND(S20,-1000),IF(ABS(S20)<10000000,MROUND(S20,-10000),MROUND(S20,-100000))))","v":0},{"$f":"IF(NOT(I20=0),IF(I20>0,\"HAE YRITYKSILLE SÄÄSTÖJÄ!\",\"HYVÄ, YRITYSTEN SÄÄNTELYTAAKKA EI KASVA!\"),\"\")","v":""},null,"Yht. keskimäärin",{"$f":"IF(V20>0,IF(OR((V20=1000),(V20<1000)),MROUND(V20,10),IF(V20<100000,MROUND(V20,100),MROUND(V20,1000))),IF(OR((ABS(V20)=1000),(ABS(V20)<1000)),MROUND(V20,-10),IF(ABS(V20)<100000,MROUND(V20,-100),MROUND(V20,-1000))))","v":0},{"$f":"IF(W20>0,IF(OR((W20=1000),(W20<1000)),MROUND(W20,10),IF(W20<100000,MROUND(W20,100),MROUND(W20,1000))),IF(OR((ABS(W20)=1000),(ABS(W20)<1000)),MROUND(W20,-10),IF(ABS(W20)<100000,MROUND(W20,-100),MROUND(W20,-1000))))","v":0},null,{"$f":"SUM(P14:P19)","v":0},{"$f":"SUM(Q14:Q19)","v":0},{"$f":"'Annualisoitu NPV'!$J$38","v":0},{"$f":"'Annualisoitu NPV'!$J$40","v":0},null,"Yht. keskimäärin",{"$f":"IF(AND(NOT(E20=0),(ISNUMBER(E20))),F20/E20,\"0\")","v":"0"},{"$f":"IF(AND(NOT(E20=0),(ISNUMBER(E20))),G20/E20,\"0\")","v":"0"},null,null,null,{"$f":"SUM(AA14:AA19)","v":0},{"$f":"SUM(AB14:AB19)","v":0},null,null,null,{"$f":"SUM(AF14:AF19)","v":0},{"$f":"SUM(AG14:AG19)","v":0},{"$f":"SUM(AH14:AH19)","v":0},{"$f":"SUM(AI14:AI19)","v":0}]
[]
[null,"Kustannuslisäyksen / -säästön erittely EU-sääntelyn osalta ja kansallisen sääntelyn osalta",null,null,null,null,null,null,null,null,null,null,null,null,null,"Tarkat, ei pyöristetyt arvot"]
[null,null,null,null,null,"Kertakustannus nykyrahassa","Toistuvat kustannukset (+) / säästöt (-) nykyrahassa","Kustannusten ja säästöjen kokonaissumman nettonykyarvo*","Nettonykyarvo vuositasolla*","Kustannus vai kustannussäästö?",null,null,null,null,null,null,null,"Kustannusten ja säästöjen kokonaissumman nettonykyarvo*","Nettonykyarvo vuositasolla*"]
[null,"EU-sääntelyn kustannusvaikutus yrityksille:",null,null,null,{"$f":"IF(AF20>0,IF(OR((AF20=1000000),(AF20<1000000)),MROUND(AF20,1000),IF(AF20<10000000,MROUND(AF20,10000),MROUND(AF20,100000))),IF(OR((ABS(AF20)=1000000),(ABS(AF20)<1000000)),MROUND(AF20,-1000),IF(ABS(AF20)<10000000,MROUND(AF20,-10000),MROUND(AF20,-100000))))","v":0},{"$f":"IF(AG20>0,IF(OR((AG20=1000000),(AG20<1000000)),MROUND(AG20,1000),IF(AG20<10000000,MROUND(AG20,10000),MROUND(AG20,100000))),IF(OR((ABS(AG20)=1000000),(ABS(AG20)<1000000)),MROUND(AG20,-1000),IF(ABS(AG20)<10000000,MROUND(AG20,-10000),MROUND(AG20,-100000))))","v":0},{"$f":"IF(R24>0,IF(OR((R24=100000),(R24<100000)),MROUND(R24,1000),IF(R24<1000000,MROUND(R24,10000),MROUND(R24,100000))),IF(OR((ABS(R24)=100000),(ABS(R24)<100000)),MROUND(R24,-1000),IF(ABS(R24)<1000000,MROUND(R24,-10000),MROUND(R24,-100000))))","v":0},{"$f":"IF(S24>0,IF(OR((S24=100000),(S24<100000)),MROUND(S24,1000),IF(S24<1000000,MROUND(S24,10000),MROUND(S24,100000))),IF(OR((ABS(S24)=100000),(ABS(S24)<100000)),MROUND(S24,-1000),IF(ABS(S24)<1000000,MROUND(S24,-10000),MROUND(S24,-100000))))","v":0},{"$f":"IF(H24>0,\"KUSTANNUS YRITYKSILLE\",IF(H24<0,\"SÄÄSTÖÄ YRITYKSILLE\",\"\"))","v":""},null,null,null,null,null,"EU-sääntely",null,{"$f":"AA20","v":0},{"$f":"(AA20*'Annualisoitu NPV'!$D$24)/(1-(1+'Annualisoitu NPV'!$D$24)^(-10))","v":0}]
[null,"Kansallisen sääntelyn kustannusvaikutus yrityksille:",null,null,null,{"$f":"IF(AH20>0,IF(OR((AH20=1000000),(AH20<1000000)),MROUND(AH20,1000),IF(AH20<10000000,MROUND(AH20,10000),MROUND(AH20,100000))),IF(OR((ABS(AH20)=1000000),(ABS(AH20)<1000000)),MROUND(AH20,-1000),IF(ABS(AH20)<10000000,MROUND(AH20,-10000),MROUND(AH20,-100000))))","v":0},{"$f":"IF(AI20>0,IF(OR((AI20=1000000),(AI20<1000000)),MROUND(AI20,1000),IF(AI20<1000000,MROUND(AI20,10000),MROUND(AI20,100000))),IF(OR((ABS(AI20)=1000000),(ABS(AI20)<1000000)),MROUND(AI20,-1000),IF(ABS(AI20)<1000000,MROUND(AI20,-10000),MROUND(AI20,-100000))))","v":0},{"$f":"IF(R25>0,IF(OR((R25=100000),(R25<100000)),MROUND(R25,1000),IF(R25<1000000,MROUND(R25,10000),MROUND(R25,100000))),IF(OR((ABS(R25)=100000),(ABS(R25)<100000)),MROUND(R25,-1000),IF(ABS(R25)<1000000,MROUND(R25,-10000),MROUND(R25,-100000))))","v":0},{"$f":"IF(S25>0,IF(OR((S25=100000),(S25<100000)),MROUND(S25,1000),IF(S25<1000000,MROUND(S25,10000),MROUND(S25,100000))),IF(OR((ABS(S25)=100000),(ABS(S25)<100000)),MROUND(S25,-1000),IF(ABS(S25)<1000000,MROUND(S25,-10000),MROUND(S25,-100000))))","v":0},{"$f":"IF(H25>0,\"KUSTANNUS YRITYKSILLE\",IF(H25<0,\"SÄÄSTÖÄ YRITYKSILLE\",\"\"))","v":""},null,null,null,null,null,"Kansallinen",null,{"$f":"AB20","v":0},{"$f":"(AB20*'Annualisoitu NPV'!$D$24)/(1-(1+'Annualisoitu NPV'!$D$24)^(-10))","v":0}]
[null,null,null,null,null,"Kirjaa nämä hallituksen esitykseen!"]

{"sheet":"Apu1_Yritystilastot","index":7,"n_rows":1735,"n_cols":3,"rows_kept":1735,"cut":false,"hidden":false,"merged":[[3,0,3,2],[1711,1,1711,2]]}
["Yritykset toimialoittain muuttujina Tilastovuosi, Toimiala (TOL 2008) ja Tiedot"]
["Tiedot vuodelta: 2016 (päivitetty tammikuu 2018)"]
[]
["Tämä apusivu sisältää Tilastokeskuksen toimialoittaiset yritystilastot. Niiden avulla voidaan arvioida, paljonko milläkin toimialalla on yrityksiä. Toimialaluokituksen selityksen (mm. esimerkkejä kuhunkin toimialaan kuuluvista yrityksistä) oheisesta linkistä. Lisäksi Tilastokeskuksen internet-sivuilta (linkki ohessa) voi tehdä tarkempia tilastohakuja mm. henkilöstön koon tai omistajatyypin mukaan."]
["Toimialaluokitus 2008","Linkki yritysten rakenne- ja tilinpäätöstietojen tietokantaan (Tilastokeskus)"]
[]
["OHJE:","Käytä alla olevaa suodatintoimintoa haluttujen toimialojen valitsemiseen! Suodatin sisältää myös hakukentän."]
[]
[null,"Toimiala","Yritysten lukumäärä"]
[null,"0 Toimialat yhteensä",356790]
[null,"A Maatalous, metsätalous ja kalatalous",73227]
[null,"01 Kasvinviljely ja kotieläintalous, riistatalous ja niihin liittyvät palvelut",47958]
[null,"011 Yksivuotisten kasvien viljely",18904]
[null,"0111 Viljakasvien (pl. riisin), palkokasvien ja öljysiemenkasvien viljely",17207]
[null,"01110 Viljakasvien (pl. riisin), palkokasvien ja öljysiemenkasvien viljely",17207]
[null,"0113 Vihannesten ja melonien, juuresten ja mukulakasvien viljely",1281]
[null,"01131 Vihannesten viljely avomaalla (pl. peruna ja sokerijuurikas)",729]
[null,"01132 Vihannesten viljely kasvihuoneessa",353]
[null,"01133 Perunan viljely",179]
[null,"01134 Sokerijuurikkaan viljely",20]
[null,"0119 Muu yksivuotisten ja koristekasvien viljely",416]
[null,"01191 Koristekasvien viljely",238]
[null,"01199 Muiden yksivuotisten kasvien viljely",178]
[null,"012 Monivuotisten kasvien viljely",1693]
[null,"0124 Omenoiden, kirsikoiden, luumujen ym. kota- ja kivihedelmien viljely",23]
[null,"01240 Omenoiden, kirsikoiden, luumujen ym. kota- ja kivihedelmien viljely",23]
[null,"0125 Marjojen, pähkinöiden ja muiden puissa ja pensaissa kasvavien hedelmien viljely",344]
[null,"01250 Marjojen, pähkinöiden ja muiden puissa ja pensaissa kasvavien hedelmien viljely",344]
[null,"0128 Mauste-, aromi-, rohdos- ja lääkekasvien viljely",19]
[null,"01280 Mauste-, aromi-, rohdos- ja lääkekasvien viljely",19]
[null,"0129 Muu monivuotisten kasvien viljely",1307]
[null,"01290 Muu monivuotisten kasvien viljely",1307]
[null,"013 Taimien kasvatus ja muu kasvien lisääminen",91]
[null,"0130 Taimien kasvatus ja muu kasvien lisääminen",91]
[null,"01300 Taimien kasvatus ja muu kasvien lisääminen",91]
[null,"014 Kotieläintalous",10093]
[null,"0141 Lypsykarjan kasvatus",5108]
[null,"01410 Lypsykarjan kasvatus",5108]
[null,"0142 Muun nautakarjan ja puhvelien kasvatus",1526]
[null,"01420 Muun nautakarjan ja puhvelien kasvatus",1526]
[null,"0143 Hevosten ja muiden hevoseläinten kasvatus",540]
[null,"01430 Hevosten ja muiden hevoseläinten kasvatus",540]
[null,"0144 Kamelien ja kamelieläinten kasvatus",3]
[null,"01440 Kamelien ja kamelieläinten kasvatus",3]
[null,"0145 Lampaiden ja vuohien kasvatus",258]
[null,"01450 Lampaiden ja vuohien kasvatus",258]
[null,"0146 Sikojen kasvatus",961]
[null,"01461 Porsastuotanto",594]
[null,"01462 Lihasikojen kasvatus",367]
[null,"0147 Siipikarjan kasvatus",431]
[null,"01471 Kananmunien tuotanto",205]
[null,"01472 Broilerien tuotanto",156]
[null,"01479 Muu siipikarjatalous",70]
[null,"0149 Muiden eläinten kasvatus",1266]
[null,"01491 Turkistarhaus",971]
[null,"01492 Poronhoito",40]
[null,"01499 Muu eläinten hoito",255]
[null,"015 Yhdistetty kasvinviljely ja kotieläintalous (sekatilat)",16086]
[null,"0150 Yhdistetty kasvinviljely ja kotieläintalous (sekatilat)",16086]
[null,"01500 Yhdistetty kasvinviljely ja kotieläintalous (sekatilat)",16086]
[null,"016 Maataloutta palveleva toiminta",1072]
[null,"0161 Kasvinviljelyä palveleva toiminta",518]
[null,"01611 Kasvinviljelyn tukipalvelut",465]
[null,"01612 Maatalousmaan pitäminen viljelykelpoisena",53]
[null,"0162 Kotieläintaloutta palveleva toiminta",512]
[null,"01620 Kotieläintaloutta palveleva toiminta",512]
[null,"0163 Sadon jatkokäsittely",21]
[null,"01630 Sadon jatkokäsittely",21]
[null,"0164 Siementen käsittely kasvinviljelyä varten",21]
[null,"01640 Siementen käsittely kasvinviljelyä varten",21]
[null,"017 Metsästys ja sitä palveleva toiminta",19]
[null,"0170 Metsästys ja sitä palveleva toiminta",19]
[null,"01700 Metsästys ja sitä palveleva toiminta",19]
[null,"02 Metsätalous ja puunkorjuu",24551]
[null,"021 Metsänhoito",16194]
[null,"0210 Metsänhoito",16194]
[null,"02100 Metsänhoito",16194]
[null,"022 Puunkorjuu",7137]
[null,"0220 Puunkorjuu",7137]
[null,"02200 Puunkorjuu",7137]
[null,"023 Luonnon tuotteiden keruu (pl. polttopuu)",230]
[null,"0230 Luonnon tuotteiden keruu (pl. polttopuu)",230]
[null,"02300 Luonnon tuotteiden keruu (pl. polttopuu)",230]
[null,"024 Metsätaloutta palveleva toiminta",990]
[null,"0240 Metsätaloutta palveleva toiminta",990]
[null,"02400 Metsätaloutta palveleva toiminta",990]
[null,"03 Kalastus ja vesiviljely",718]
[null,"031 Kalastus",568]
[null,"0311 Merikalastus",309]
[null,"03110 Merikalastus",309]
[null,"0312 Sisävesikalastus",259]
[null,"03120 Sisävesikalastus",259]
[null,"032 Vesiviljely",150]
[null,"0321 Kalanviljely meressä",58]
[null,"03210 Kalanviljely meressä",58]
[null,"0322 Kalanviljely sisävesissä",92]
[null,"03220 Kalanviljely sisävesissä",92]
[null,"B Kaivostoiminta ja louhinta",829]
[null,"07 Metallimalmien louhinta",25]
[null,"071 Rautamalmien louhinta",1]
[null,"0710 Rautamalmien louhinta",1]
[null,"07100 Rautamalmien louhinta",1]
[null,"072 Värimetallimalmien louhinta",24]
[null,"0729 Muiden värimetallimalmien louhinta",24]
[null,"07290 Muiden värimetallimalmien louhinta",24]
[null,"08 Muu kaivostoiminta ja louhinta",756]
[null,"081 Kiven louhinta, hiekan ja saven otto",325]
[null,"0811 Koriste- ja rakennuskiven, kalkkikiven, kipsin, liidun ja liuskekiven louhinta",49]
[null,"08111 Koriste- ja rakennuskiven louhinta",40]
[null,"08112 Kalkkikiven, kipsin, liidun ja dolomiitin louhinta",3]
[null,"08113 Liuskekiven louhinta",6]
[null,"0812 Soran, hiekan, saven ja kaoliinin otto",276]
[null,"08120 Soran, hiekan, saven ja kaoliinin otto",276]
[null,"089 Muu mineraalien kaivu",431]
[null,"0891 Kemiallisten ja lannoitemineraalien louhinta",".."]
[null,"08910 Kemiallisten ja lannoitemineraalien louhinta",".."]
[null,"0892 Turpeen nosto",417]
[null,"08920 Turpeen nosto",417]
[null,"0899 Muualla luokittelematon kaivostoiminta ja louhinta",14]
[null,"08990 Muualla luokittelematon kaivostoiminta ja louhinta",14]
[null,"09 Kaivostoimintaa palveleva toiminta",48]
[null,"099 Muuta kaivostoimintaa ja louhintaa palveleva toiminta",48]
[null,"0990 Muuta kaivostoimintaa ja louhintaa palveleva toiminta",48]
[null,"09900 Muuta kaivostoimintaa ja louhintaa palveleva toiminta",48]
[null,"C Teollisuus",20264]
[null,"10 Elintarvikkeiden valmistus",1618]
[null,"101 Teurastus, lihan säilyvyyskäsittely ja lihatuotteiden valmistus",213]
[null,"1011 Teurastus ja lihan säilyvyyskäsittely (pl. siipikarja)",48]
[null,"10110 Teurastus ja lihan säilyvyyskäsittely (pl. siipikarja)",48]
[null,"1012 Siipikarjan teurastus ja lihan säilyvyyskäsittely",3]
[null,"10120 Siipikarjan teurastus ja lihan säilyvyyskäsittely",3]
[null,"1013 Liha- ja siipikarjatuotteiden valmistus",162]
[null,"10130 Liha- ja siipikarjatuotteiden valmistus",162]
[null,"102 Kalan, äyriäisten ja nilviäisten jalostus ja säilöntä",140]
[null,"1020 Kalan, äyriäisten ja nilviäisten jalostus ja säilöntä",140]
[null,"10200 Kalan, äyriäisten ja nilviäisten jalostus ja säilöntä",140]
[null,"103 Hedelmien ja kasvisten jalostus ja säilöntä",143]
[null,"1031 Perunoiden jalostus ja säilöntä",43]
[null,"10310 Perunoiden jalostus ja säilöntä",43]
[null,"1032 Hedelmä-, marja- ja kasvismehujen valmistus",23]
[null,"10320 Hedelmä-, marja- ja kasvismehujen valmistus",23]
[null,"1039 Muu hedelmien, marjojen ja kasvisten jalostus ja säilöntä",77]
[null,"10390 Muu hedelmien, marjojen ja kasvisten jalostus ja säilöntä",77]
[null,"104 Kasvi- ja eläinöljyjen ja -rasvojen valmistus",19]
[null,"1041 Kasvi- ja eläinperäisten öljyjen ja -rasvojen valmistus (pl. ravintorasvat)",18]
[null,"10410 Kasvi- ja eläinperäisten öljyjen ja -rasvojen valmistus (pl. ravintorasvat)",18]
[null,"1042 Margariinin ja sen kaltaisten ravintorasvojen valmistus",1]
[null,"10420 Margariinin ja sen kaltaisten ravintorasvojen valmistus",1]
[null,"105 Maitotaloustuotteiden valmistus",67]
[null,"1051 Maitotaloustuotteiden ja juuston valmistus",51]
[null,"10510 Maitotaloustuotteiden ja juuston valmistus",51]
[null,"1052 Jäätelön valmistus",16]
[null,"10520 Jäätelön valmistus",16]
[null,"106 Mylly- ja tärkkelystuotteiden valmistus",60]
[null,"1061 Myllytuotteiden valmistus",54]
[null,"10610 Myllytuotteiden valmistus",54]
[null,"1062 Tärkkelyksen ja tärkkelystuotteiden valmistus",6]
[null,"10620 Tärkkelyksen ja tärkkelystuotteiden valmistus",6]
[null,"107 Leipomotuotteiden, makaronien yms. valmistus",666]
[null,"1071 Leivän valmistus: tuoreiden leivonnaisten ja kakkujen valmistus",637]
[null,"10710 Leivän valmistus: tuoreiden leivonnaisten ja kakkujen valmistus",637]
[null,"1072 Näkkileivän ja keksien valmistus: säilyvien leivonnaisten ja kakkujen valmistus",25]
[null,"10720 Näkkileivän ja keksien valmistus: säilyvien leivonnaisten ja kakkujen valmistus",25]
[null,"1073 Makaronin, nuudelien, kuskusin ja vastaavien jauhotuotteiden valmistus",4]
[null,"10730 Makaronin, nuudelien, kuskusin ja vastaavien jauhotuotteiden valmistus",4]
[null,"108 Muiden elintarvikkeiden valmistus",236]
[null,"1081 Sokerin valmistus",4]
[null,"10810 Sokerin valmistus",4]
[null,"1082 Kaakaon, suklaan ja makeisten valmistus",41]
[null,"10820 Kaakaon, suklaan ja makeisten valmistus",41]
[null,"1083 Teen ja kahvin valmistus",20]
[null,"10830 Teen ja kahvin valmistus",20]
[null,"1084 Mausteiden ja maustekastikkeiden valmistus",22]
[null,"10840 Mausteiden ja maustekastikkeiden valmistus",22]
[null,"1085 Einesten ja valmisruokien valmistus",65]
[null,"10850 Einesten ja valmisruokien valmistus",65]
[null,"1086 Homogenoitujen ravintovalmisteiden ja dieettiruokien valmistus",7]
[null,"10860 Homogenoitujen ravintovalmisteiden ja dieettiruokien valmistus",7]
[null,"1089 Muualla luokittelematon elintarvikkeiden valmistus",77]
[null,"10890 Muualla luokittelematon elintarvikkeiden valmistus",77]
[null,"109 Eläinten ruokien valmistus",74]
[null,"1091 Kotieläinten rehujen valmistus",61]
[null,"10910 Kotieläinten rehujen valmistus",61]
[null,"1092 Lemmikkieläinten ruokien valmistus",13]
[null,"10920 Lemmikkieläinten ruokien valmistus",13]
[null,"11 Juomien valmistus",126]
[null,"110 Juomien valmistus",126]
[null,"1101 Alkoholijuomien tislaus ja sekoittaminen: etyylialkoholin valmistus käymisteitse",23]
[null,"11010 Alkoholijuomien tislaus ja sekoittaminen: etyylialkoholin valmistus käymisteitse",23]
[null,"1103 Siiderin, hedelmä- ja marjaviinien valmistus",23]
[null,"11030 Siiderin, hedelmä- ja marjaviinien valmistus",23]
[null,"1104 Muiden tislaamattomien juomien valmistus käymisteitse",2]
[null,"11040 Muiden tislaamattomien juomien valmistus käymisteitse",2]
[null,"1105 Oluen valmistus",51]
[null,"11050 Oluen valmistus",51]
[null,"1106 Maltaiden valmistus",5]
[null,"11060 Maltaiden valmistus",5]
[null,"1107 Virvoitusjuomien valmistus: kivennäisvesien ja muiden pullotettujen vesien tuotanto",22]
[null,"11070 Virvoitusjuomien valmistus: kivennäisvesien ja muiden pullotettujen vesien tuotanto",22]
[null,"12 Tupakkatuotteiden valmistus",".."]
[null,"120 Tupakkatuotteiden valmistus",".."]
[null,"1200 Tupakkatuotteiden valmistus",".."]
[null,"12000 Tupakkatuotteiden valmistus",".."]
[null,"13 Tekstiilien valmistus",664]
[null,"131 Tekstiilikuitujen valmistelu ja kehruu",18]
[null,"1310 Tekstiilikuitujen valmistelu ja kehruu",18]
[null,"13100 Tekstiilikuitujen valmistelu ja kehruu",18]
[null,"132 Kankaiden kudonta",14]
[null,"1320 Kankaiden kudonta",14]
[null,"13200 Kankaiden kudonta",14]
[null,"133 Tekstiilien viimeistely",128]
[null,"1330 Tekstiilien viimeistely",128]
[null,"13300 Tekstiilien viimeistely",128]
[null,"139 Muiden tekstiilituotteiden valmistus",504]
[null,"1391 Neulosten valmistus",9]
[null,"13910 Neulosten valmistus",9]
[null,"1392 Sovitettujen tekstiilituotteiden valmistus (pl. vaatteet)",261]
[null,"13921 Sisustustekstiilien valmistus",184]
[null,"13922 Tavaranpeitteiden, purjeiden ja muiden sovitettujen tekstiilituotteiden valmistus",77]
[null,"1393 Mattojen valmistus",64]
[null,"13930 Mattojen valmistus",64]
[null,"1394 Purjelankojen, nuoran, sidelangan ja verkkojen valmistus",17]
[null,"13940 Purjelankojen, nuoran, sidelangan ja verkkojen valmistus",17]
[null,"1395 Kuitukankaiden ja kuitukangastuotteiden valmistus (pl. vaatteet)",12]
[null,"13950 Kuitukankaiden ja kuitukangastuotteiden valmistus (pl. vaatteet)",12]
[null,"1396 Teknisten ja teollisuustekstiilien valmistus",20]
[null,"13960 Teknisten ja teollisuustekstiilien valmistus",20]
[null,"1399 Muualla luokittelematon tekstiilituotteiden valmistus",121]
[null,"13990 Muualla luokittelematon tekstiilituotteiden valmistus",121]
[null,"14 Vaatteiden valmistus",902]
[null,"141 Vaatteiden valmistus (pl. turkisvaatteet)",820]
[null,"1411 Nahkavaatteiden valmistus",43]
[null,"14110 Nahkavaatteiden valmistus",43]
[null,"1412 Työvaatteiden valmistus",31]
[null,"14120 Työvaatteiden valmistus",31]
[null,"1413 Muu takkien, pukujen, housujen, hameiden yms. valmistus",359]
[null,"14130 Muu takkien, pukujen, housujen, hameiden yms. valmistus",359]
[null,"1414 Alusvaatteiden valmistus",11]
[null,"14140 Alusvaatteiden valmistus",11]
[null,"1419 Muiden vaatteiden ja asusteiden valmistus",376]
[null,"14190 Muiden vaatteiden ja asusteiden valmistus",376]
[null,"142 Turkisvaatteiden ja -tuotteiden valmistus",25]
[null,"1420 Turkisvaatteiden ja -tuotteiden valmistus",25]
[null,"14200 Turkisvaatteiden ja -tuotteiden valmistus",25]
[null,"143 Neulevaatteiden ja sukkien valmistus",57]
[null,"1431 Sukkien ja sukkahousujen valmistus",10]
[null,"14310 Sukkien ja sukkahousujen valmistus",10]
[null,"1439 Muiden neulevaatteiden valmistus",47]
[null,"14390 Muiden neulevaatteiden valmistus",47]
[null,"15 Nahan ja nahkatuotteiden valmistus",169]
[null,"151 Nahan parkitseminen ja muokkaus: matka- ja käsilaukkujen, satuloiden ja valjaiden valmistus: turkisten muokkaus ja värjäys",123]
[null,"1511 Turkisten ja nahan muokkaus ja värjäys",25]
[null,"15110 Turkisten ja nahan muokkaus ja värjäys",25]
[null,"1512 Matka-, käsi- ym. laukkujen, satuloiden ja valjaiden valmistus",98]
[null,"15120 Matka-, käsi- ym. laukkujen, satuloiden ja valjaiden valmistus",98]
[null,"152 Jalkineiden valmistus",46]
[null,"1520 Jalkineiden valmistus",46]
[null,"15200 Jalkineiden valmistus",46]
[null,"16 Sahatavaran sekä puu- ja korkkituotteiden valmistus (pl. huonekalut): olki- ja punontatuotteiden valmistus",1762]
[null,"161 Puun sahaus, höyläys ja kyllästys",692]
[null,"1610 Puun sahaus, höyläys ja kyllästys",692]
[null,"16100 Puun sahaus, höyläys ja kyllästys",692]
[null,"162 Puu-, korkki-, olki- ja punontatuotteiden valmistus",1070]
[null,"1621 Vaneriviilun ja puupaneelien valmistus",25]
[null,"16211 Vanerin ja vaneriviilun valmistus",20]
[null,"16212 Lastulevyn valmistus",1]
[null,"16213 Kuitulevyn valmistus",4]
[null,"1622 Asennettavien parkettilevyjen valmistus",5]
[null,"16220 Asennettavien parkettilevyjen valmistus",5]
[null,"1623 Muiden rakennuspuusepäntuotteiden valmistus",642]
[null,"16231 Puutalojen valmistus",166]
[null,"16239 Muu rakennuspuusepäntuotteiden valmistus",476]
[null,"1624 Puupakkausten valmistus",107]
[null,"16240 Puupakkausten valmistus",107]
[null,"1629 Muiden puutuotteiden valmistus: korkki-, olki- ja punontatuotteiden valmistus",291]
[null,"16290 Muiden puutuotteiden valmistus: korkki-, olki- ja punontatuotteiden valmistus",291]
[null,"17 Paperin, paperi- ja kartonkituotteiden valmistus",180]
[null,"171 Massan, paperin, kartongin ja pahvin valmistus",51]
[null,"1711 Massan valmistus",9]
[null,"17110 Massan valmistus",9]
[null,"1712 Paperin, kartongin ja pahvin valmistus",42]
[null,"17120 Paperin, kartongin ja pahvin valmistus",42]
[null,"172 Paperi-, kartonki- ja pahvituotteiden valmistus",129]
[null,"1721 Aaltopaperin ja -pahvin sekä paperi-, kartonki- ja pahvipakkausten valmistus",63]
[null,"17211 Paperisäkkien ja -pussien valmistus",11]
[null,"17212 Aaltopahvin sekä paperi- ja kartonkipakkausten valmistus",52]
[null,"1722 Paperisten talous- ja hygieniatarvikkeiden valmistus",16]
[null,"17220 Paperisten talous- ja hygieniatarvikkeiden valmistus",16]
[null,"1723 Paperikauppatavaroiden valmistus",16]
[null,"17230 Paperikauppatavaroiden valmistus",16]
[null,"1724 Tapettien valmistus",2]
[null,"17240 Tapettien valmistus",2]
[null,"1729 Muiden paperi-, kartonki- ja pahvituotteiden valmistus",32]
[null,"17290 Muiden paperi-, kartonki- ja pahvituotteiden valmistus",32]
[null,"18 Painaminen ja tallenteiden jäljentäminen",949]
[null,"181 Painaminen ja siihen liittyvät palvelut",814]
[null,"1811 Sanomalehtien painaminen",10]
[null,"18110 Sanomalehtien painaminen",10]
[null,"1812 Muu painaminen",619]
[null,"18120 Muu painaminen",619]
[null,"1813 Painamista ja julkaisemista edeltävät palvelut",148]
[null,"18130 Painamista ja julkaisemista edeltävät palvelut",148]
[null,"1814 Sidonta ja siihen liittyvät palvelut",37]
[null,"18140 Sidonta ja siihen liittyvät palvelut",37]
[null,"182 Ääni-, kuva- ja atk-tallenteiden tuotanto",135]
[null,"1820 Ääni-, kuva- ja atk-tallenteiden tuotanto",135]
[null,"18200 Ääni-, kuva- ja atk-tallenteiden tuotanto",135]
[null,"19 Koksin ja jalostettujen öljytuotteiden valmistus",16]
[null,"191 Koksituotteiden valmistus",".."]
[null,"1910 Koksituotteiden valmistus",".."]
[null,"19100 Koksituotteiden valmistus",".."]
[null,"192 Jalostettujen öljytuotteiden valmistus",16]
[null,"1920 Jalostettujen öljytuotteiden valmistus",16]
[null,"19200 Jalostettujen öljytuotteiden valmistus",16]
[null,"20 Kemikaalien ja kemiallisten tuotteiden valmistus",288]
[null,"201 Peruskemikaalien, lannoitteiden ja typpiyhdisteiden, muoviaineiden ja synteettisen kumiraaka-aineen valmistus",96]
[null,"2011 Teollisuuskaasujen valmistus",5]
[null,"20110 Teollisuuskaasujen valmistus",5]
[null,"2012 Värien ja pigmenttien valmistus",9]
[null,"20120 Värien ja pigmenttien valmistus",9]
[null,"2013 Muiden epäorgaanisten peruskemikaalien valmistus",16]
[null,"20130 Muiden epäorgaanisten peruskemikaalien valmistus",16]
[null,"2014 Muiden orgaanisten peruskemikaalien valmistus",22]
[null,"20140 Muiden orgaanisten peruskemikaalien valmistus",22]
[null,"2015 Lannoitteiden ja typpiyhdisteiden valmistus",13]
[null,"20150 Lannoitteiden ja typpiyhdisteiden valmistus",13]
[null,"2016 Muoviaineiden valmistus",27]
[null,"20160 Muoviaineiden valmistus",27]
[null,"2017 Synteettisen kumiraaka-aineen valmistus",4]
[null,"20170 Synteettisen kumiraaka-aineen valmistus",4]
[null,"202 Torjunta-aineiden ja muiden maatalouskemikaalien valmistus",3]
[null,"2020 Torjunta-aineiden ja muiden maatalouskemikaalien valmistus",3]
[null,"20200 Torjunta-aineiden ja muiden maatalouskemikaalien valmistus",3]
[null,"203 Maalien, lakan, painovärien yms. valmistus",33]
[null,"2030 Maalien, lakan, painovärien yms. valmistus",33]
[null,"20300 Maalien, lakan, painovärien yms. valmistus",33]
[null,"204 Saippuan, pesu-, puhdistus- ja kiillotusaineiden: hajuvesien ja hygieniatuotteiden valmistus",70]
[null,"2041 Saippuan, pesu-, puhdistus- ja kiillotusaineiden valmistus",45]
[null,"20410 Saippuan, pesu-, puhdistus- ja kiillotusaineiden valmistus",45]
[null,"2042 Hajuvesien ja hygieniatuotteiden valmistus",25]
[null,"20420 Hajuvesien ja hygieniatuotteiden valmistus",25]
[null,"205 Muiden kemiallisten tuotteiden valmistus",85]
[null,"2051 Räjähdysaineiden valmistus",9]
[null,"20510 Räjähdysaineiden valmistus",9]
[null,"2052 Liimojen valmistus",3]
[null,"20520 Liimojen valmistus",3]
[null,"2053 Eteeristen öljyjen valmistus",1]
[null,"20530 Eteeristen öljyjen valmistus",1]
[null,"2059 Muualla luokittelematon kemiallisten tuotteiden valmistus",72]
[null,"20590 Muualla luokittelematon kemiallisten tuotteiden valmistus",72]
[null,"206 Tekokuitujen valmistus",1]
[null,"2060 Tekokuitujen valmistus",1]
[null,"20600 Tekokuitujen valmistus",1]
[null,"21 Lääkeaineiden ja lääkkeiden valmistus",28]
[null,"211 Lääkeaineiden valmistus",4]
[null,"2110 Lääkeaineiden valmistus",4]
[null,"21100 Lääkeaineiden valmistus",4]
[null,"212 Lääkkeiden ja muiden lääkevalmisteiden valmistus",24]
[null,"2120 Lääkkeiden ja muiden lääkevalmisteiden valmistus",24]
[null,"21200 Lääkkeiden ja muiden lääkevalmisteiden valmistus",24]
[null,"22 Kumi- ja muovituotteiden valmistus",540]
[null,"221 Kumituotteiden valmistus",55]
[null,"2211 Renkaiden valmistus ja uudelleenpinnoitus",14]
[null,"22110 Renkaiden valmistus ja uudelleenpinnoitus",14]
[null,"2219 Muiden kumituotteiden valmistus",41]
[null,"22190 Muiden kumituotteiden valmistus",41]
[null,"222 Muovituotteiden valmistus",485]
[null,"2221 Muovilevyjen, -kalvojen, -putkien ja -profiilien valmistus",95]
[null,"22210 Muovilevyjen, -kalvojen, -putkien ja -profiilien valmistus",95]
[null,"2222 Muovipakkausten valmistus",52]
[null,"22220 Muovipakkausten valmistus",52]
[null,"2223 Rakennusmuovien valmistus",54]
[null,"22230 Rakennusmuovien valmistus",54]
[null,"2229 Muiden muovituotteiden valmistus",284]
[null,"22290 Muiden muovituotteiden valmistus",284]
[null,"23 Muiden ei-metallisten mineraalituotteiden valmistus",708]
[null,"231 Lasin ja lasituotteiden valmistus",123]
[null,"2311 Tasolasin valmistus",8]
[null,"23110 Tasolasin valmistus",8]
[null,"2312 Tasolasin muotoilu ja muokkaus",62]
[null,"23120 Tasolasin muotoilu ja muokkaus",62]
[null,"2313 Onton lasitavaran valmistus",14]
[null,"23130 Onton lasitavaran valmistus",14]
[null,"2314 Lasikuitujen valmistus",20]
[null,"23140 Lasikuitujen valmistus",20]
[null,"2319 Muu lasin valmistus ja muokkaus ml. lukien tekniset lasituotteet",19]
[null,"23190 Muu lasin valmistus ja muokkaus ml. tekniset lasituotteet",19]
[null,"232 Tulenkestävien keraamisten tuotteiden valmistus",5]
[null,"2320 Tulenkestävien keraamisten tuotteiden valmistus",5]
[null,"23200 Tulenkestävien keraamisten tuotteiden valmistus",5]
[null,"233 Keraamisten rakennusaineiden valmistus",5]
[null,"2331 Keraamisten tiilien ja laattojen valmistus",".."]
[null,"23310 Keraamisten tiilien ja laattojen valmistus",".."]
[null,"2332 Poltettujen tiilien ja muun rakennuskeramiikan valmistus",5]
[null,"23320 Poltettujen tiilien ja muun rakennuskeramiikan valmistus",5]
[null,"234 Muiden posliini- ja keramiikkatuotteiden valmistus",103]
[null,"2341 Keraamisten talous- ja koriste-esineiden valmistus",91]
[null,"23410 Keraamisten talous- ja koriste-esineiden valmistus",91]
[null,"2342 Keraamisten saniteettikalusteiden valmistus",4]
[null,"23420 Keraamisten saniteettikalusteiden valmistus",4]
[null,"2343 Keraamisten eristystuotteiden valmistus",".."]
[null,"23430 Keraamisten eristystuotteiden valmistus",".."]
[null,"2344 Muiden teknisten keraamisten tuotteiden valmistus",2]
[null,"23440 Muiden teknisten keraamisten tuotteiden valmistus",2]
[null,"2349 Muiden keramiikkatuotteiden valmistus",6]
[null,"23490 Muiden keramiikkatuotteiden valmistus",6]
[null,"235 Sementin, kalkin ja kipsin valmistus",5]
[null,"2351 Sementin valmistus",2]
[null,"23510 Sementin valmistus",2]
[null,"2352 Kalkin ja kipsin valmistus",3]
[null,"23520 Kalkin ja kipsin valmistus",3]
[null,"236 Betoni-, kipsi- ja sementtituotteiden valmistus",219]
[null,"2361 Betonituotteiden valmistus rakennustarkoituksiin",168]
[null,"23610 Betonituotteiden valmistus rakennustarkoituksiin",168]
[null,"2362 Kipsituotteiden valmistus rakennustarkoituksiin",2]
[null,"23620 Kipsituotteiden valmistus rakennustarkoituksiin",2]
[null,"2363 Valmisbetonin valmistus",33]
[null,"23630 Valmisbetonin valmistus",33]
[null,"2364 Muurauslaastin valmistus",3]
[null,"23640 Muurauslaastin valmistus",3]
[null,"2365 Kuitusementin valmistus",2]
[null,"23650 Kuitusementin valmistus",2]
[null,"2369 Muiden betoni-, kipsi- ja sementtituotteiden valmistus",11]
[null,"23690 Muiden betoni-, kipsi- ja sementtituotteiden valmistus",11]
[null,"237 Kiven leikkaaminen, muotoilu ja viimeistely",217]
[null,"2370 Kiven leikkaaminen, muotoilu ja viimeistely",217]
[null,"23700 Kiven leikkaaminen, muotoilu ja viimeistely",217]
[null,"239 Hiontatuotteiden ja muualla luokittelemattomien ei-metallisten mineraalituotteiden valmistus",31]
[null,"2391 Hiontatuotteiden valmistus",12]
[null,"23910 Hiontatuotteiden valmistus",12]
[null,"2399 Muualla luokittelemattomien ei-metallisten mineraalituotteiden valmistus",19]
[null,"23990 Muualla luokittelemattomien ei-metallisten mineraalituotteiden valmistus",19]
[null,"24 Metallien jalostus",139]
[null,"241 Raudan, teräksen ja rautaseosten valmistus",29]
[null,"2410 Raudan, teräksen ja rautaseosten valmistus",29]
[null,"24100 Raudan, teräksen ja rautaseosten valmistus",29]
[null,"242 Putkien, profiiliputkien ja niihin liittyvien tarvikkeiden valmistus teräksestä",42]
[null,"2420 Putkien, profiiliputkien ja niihin liittyvien tarvikkeiden valmistus teräksestä",42]
[null,"24200 Putkien, profiiliputkien ja niihin liittyvien tarvikkeiden valmistus teräksestä",42]
[null,"243 Muu teräksen jalostus",2]
[null,"2434 Teräslangan veto",2]
[null,"24340 Teräslangan veto",2]
[null,"244 Jalometallien ja muiden värimetallien valmistus",25]
[null,"2441 Jalometallien valmistus",8]
[null,"24410 Jalometallien valmistus",8]
[null,"2442 Alumiinin valmistus",5]
[null,"24420 Alumiinin valmistus",5]
[null,"2443 Lyijyn, sinkin ja tinan valmistus",2]
[null,"24430 Lyijyn, sinkin ja tinan valmistus",2]
[null,"2444 Kuparin valmistus",8]
[null,"24440 Kuparin valmistus",8]
[null,"2445 Muiden värimetallien valmistus",2]
[null,"24450 Muiden värimetallien valmistus",2]
[null,"245 Metallien valu",41]
[null,"2451 Raudan valu",13]
[null,"24510 Raudan valu",13]
[null,"2452 Teräksen valu",6]
[null,"24520 Teräksen valu",6]
[null,"2453 Kevytmetallien valu",13]
[null,"24530 Kevytmetallien valu",13]
[null,"2454 Muiden värimetallien valu",9]
[null,"24540 Muiden värimetallien valu",9]
[null,"25 Metallituotteiden valmistus (pl. koneet ja laitteet)",4411]
[null,"251 Metallirakenteiden valmistus",1281]
[null,"2511 Metallirakenteiden ja niiden osien valmistus",1183]
[null,"25110 Metallirakenteiden ja niiden osien valmistus",1183]
[null,"2512 Metalliovien ja -ikkunoiden valmistus",98]
[null,"25120 Metalliovien ja -ikkunoiden valmistus",98]
[null,"252 Metallisäiliöiden ja -altaiden yms. valmistus",62]
[null,"2521 Keskuslämmityspatterien ja kuumavesivaraajien valmistus",18]
[null,"25210 Keskuslämmityspatterien ja kuumavesivaraajien valmistus",18]
[null,"2529 Muiden metallisäiliöiden ja -altaiden yms. valmistus",44]
[null,"25290 Muiden metallisäiliöiden ja -altaiden yms. valmistus",44]
[null,"253 Höyrykattiloiden valmistus (pl. keskuslämmityslaitteet)",25]
[null,"2530 Höyrykattiloiden valmistus (pl. keskuslämmityslaitteet)",25]
[null,"25300 Höyrykattiloiden valmistus (pl. keskuslämmityslaitteet)",25]
[null,"254 Aseiden ja ammusten valmistus",30]
[null,"2540 Aseiden ja ammusten valmistus",30]
[null,"25400 Aseiden ja ammusten valmistus",30]
[null,"255 Metallin takominen, puristaminen, meistäminen ja valssaus: jauhemetallurgia",99]
[null,"2550 Metallin takominen, puristaminen, meistäminen ja valssaus: jauhemetallurgia",99]
[null,"25500 Metallin takominen, puristaminen, meistäminen ja valssaus: jauhemetallurgia",99]
[null,"256 Metallien käsittely, päällystäminen ja työstö",1938]
[null,"2561 Metallien käsittely ja päällystäminen",296]
[null,"25610 Metallien käsittely ja päällystäminen",296]
[null,"2562 Metallien työstö",1642]
[null,"25620 Metallien työstö",1642]
[null,"257 Ruokailu- ja leikkuuvälineiden yms. sekä työkalujen ja rautatavaran valmistus",216]
[null,"2571 Ruokailu- ja leikkuuvälineiden yms. valmistus",16]
[null,"25710 Ruokailu- ja leikkuuvälineiden yms. valmistus",16]
[null,"2572 Lukkojen ja saranoiden valmistus",10]
[null,"25720 Lukkojen ja saranoiden valmistus",10]
[null,"2573 Työkalujen valmistus",190]
[null,"25730 Työkalujen valmistus",190]
[null,"259 Muu metallituotteiden valmistus",760]
[null,"2591 Metallipakkausten ja -astioiden valmistus",9]
[null,"25910 Metallipakkausten ja -astioiden valmistus",9]
[null,"2592 Kevytmetallipakkausten valmistus",3]
[null,"25920 Kevytmetallipakkausten valmistus",3]
[null,"2593 Metallilankatuotteiden, ketjujen ja jousien valmistus",33]
[null,"25930 Metallilankatuotteiden, ketjujen ja jousien valmistus",33]
[null,"2594 Kiinnittimien ja ruuvituotteiden valmistus",14]
[null,"25940 Kiinnittimien ja ruuvituotteiden valmistus",14]
[null,"2599 Muiden metallituotteiden valmistus",701]
[null,"25990 Muiden metallituotteiden valmistus",701]
[null,"26 Tietokoneiden sekä elektronisten ja optisten tuotteiden valmistus",571]
[null,"261 Elektronisten komponenttien ja piirilevyjen valmistus",155]
[null,"2611 Elektronisten komponenttien valmistus",135]
[null,"26110 Elektronisten komponenttien valmistus",135]
[null,"2612 Kalustettujen piirilevyjen valmistus",20]
[null,"26120 Kalustettujen piirilevyjen valmistus",20]
[null,"262 Tietokoneiden ja niiden oheislaitteiden valmistus",51]
[null,"2620 Tietokoneiden ja niiden oheislaitteiden valmistus",51]
[null,"26200 Tietokoneiden ja niiden oheislaitteiden valmistus",51]
[null,"263 Viestintälaitteiden valmistus",63]
[null,"2630 Viestintälaitteiden valmistus",63]
[null,"26300 Viestintälaitteiden valmistus",63]
[null,"264 Viihde-elektroniikan valmistus",31]
[null,"2640 Viihde-elektroniikan valmistus",31]
[null,"26400 Viihde-elektroniikan valmistus",31]
[null,"265 Mittaus-, testaus- ja navigointivälineiden ja -laitteiden valmistus: kellot",221]
[null,"2651 Mittaus-, testaus- ja navigointivälineiden ja -laitteiden valmistus",218]
[null,"26510 Mittaus-, testaus- ja navigointivälineiden ja -laitteiden valmistus",218]
[null,"2652 Kellojen valmistus",3]
[null,"26520 Kellojen valmistus",3]
[null,"266 Säteilylaitteiden sekä elektronisten lääkintä- ja terapialaitteiden valmistus",32]
[null,"2660 Säteilylaitteiden sekä elektronisten lääkintä- ja terapialaitteiden valmistus",32]
[null,"26600 Säteilylaitteiden sekä elektronisten lääkintä- ja terapialaitteiden valmistus",32]
[null,"267 Optisten instrumenttien ja valokuvausvälineiden valmistus",15]
[null,"2670 Optisten instrumenttien ja valokuvausvälineiden valmistus",15]
[null,"26700 Optisten instrumenttien ja valokuvausvälineiden valmistus",15]
[null,"268 Tallennevälineiden valmistus",3]
[null,"2680 Tallennevälineiden valmistus",3]
[null,"26800 Tallennevälineiden valmistus",3]
[null,"27 Sähkölaitteiden valmistus",402]
[null,"271 Sähkömoottorien, generaattorien, muuntajien sekä sähkönjakelu- ja valvontalaitteiden valmistus",120]
[null,"2711 Sähkömoottorien, generaattorien ja muuntajien valmistus",45]
[null,"27110 Sähkömoottorien, generaattorien ja muuntajien valmistus",45]
[null,"2712 Sähkönjakelu- ja valvontalaitteiden valmistus",75]
[null,"27120 Sähkönjakelu- ja valvontalaitteiden valmistus",75]
[null,"272 Paristojen ja akkujen valmistus",7]
[null,"2720 Paristojen ja akkujen valmistus",7]
[null,"27200 Paristojen ja akkujen valmistus",7]
[null,"273 Sähköjohtojen ja kytkentälaitteiden valmistus",24]
[null,"2731 Optisten kuitukaapelien valmistus",4]
[null,"27310 Optisten kuitukaapelien valmistus",4]
[null,"2732 Muiden elektronisten ja sähköjohtojen sekä -kaapelien valmistus",13]
[null,"27320 Muiden elektronisten ja sähköjohtojen sekä -kaapelien valmistus",13]
[null,"2733 Kytkentälaitteiden valmistus",7]
[null,"27330 Kytkentälaitteiden valmistus",7]
[null,"274 Sähkölamppujen ja valaisimien valmistus",75]
[null,"2740 Sähkölamppujen ja valaisimien valmistus",75]
[null,"27400 Sähkölamppujen ja valaisimien valmistus",75]
[null,"275 Kodinkoneiden valmistus",31]
[null,"2751 Sähköisten kodinkoneiden valmistus",20]
[null,"27510 Sähköisten kodinkoneiden valmistus",20]
[null,"2752 Sähköistämättömien kodinkoneiden valmistus",11]
[null,"27520 Sähköistämättömien kodinkoneiden valmistus",11]
[null,"279 Muiden sähkölaitteiden valmistus",145]
[null,"2790 Muiden sähkölaitteiden valmistus",145]
[null,"27900 Muiden sähkölaitteiden valmistus",145]
[null,"28 Muiden koneiden ja laitteiden valmistus",1314]
[null,"281 Yleiskäyttöön tarkoitettujen voimakoneiden valmistus",132]
[null,"2811 Moottorien ja turbiinien valmistus (pl. lentokoneiden ja ajoneuvojen moottorit)",26]
[null,"28110 Moottorien ja turbiinien valmistus (pl. lentokoneiden ja ajoneuvojen moottorit)",26]
[null,"2812 Hydraulisten voimalaitteiden valmistus",32]
[null,"28120 Hydraulisten voimalaitteiden valmistus",32]
[null,"2813 Pumppujen ja kompressoreiden valmistus",19]
[null,"28130 Pumppujen ja kompressoreiden valmistus",19]
[null,"2814 Muiden hanojen ja venttiilien valmistus",17]
[null,"28140 Muiden hanojen ja venttiilien valmistus",17]
[null,"2815 Laakereiden, hammaspyörien, vaihteisto- ja ohjauselementtien valmistus",38]
[null,"28150 Laakereiden, hammaspyörien, vaihteisto- ja ohjauselementtien valmistus",38]
[null,"282 Muiden yleiskäyttöön tarkoitettujen koneiden valmistus",525]
[null,"2821 Teollisuusuunien, lämmitysjärjestelmien ja tulipesäpolttimien valmistus",33]
[null,"28210 Teollisuusuunien, lämmitysjärjestelmien ja tulipesäpolttimien valmistus",33]
[null,"2822 Nosto- ja siirtolaitteiden valmistus",133]
[null,"28220 Nosto- ja siirtolaitteiden valmistus",133]
[null,"2823 Konttorikoneiden ja -laitteiden valmistus (pl. tietokoneet ja niiden oheislaitteet)",4]
[null,"28230 Konttorikoneiden ja -laitteiden valmistus (pl. tietokoneet ja niiden oheislaitteet)",4]
[null,"2824 Voimakäyttöisten käsityökalujen valmistus",9]
[null,"28240 Voimakäyttöisten käsityökalujen valmistus",9]
[null,"2825 Muuhun kuin kotitalouskäyttöön tarkoitettujen jäähdytys- ja tuuletuslaitteiden valmistus",100]
[null,"28250 Muuhun kuin kotitalouskäyttöön tarkoitettujen jäähdytys- ja tuuletuslaitteiden valmistus",100]
[null,"2829 Muualla luokittelematon yleiskäyttöön tarkoitettujen koneiden valmistus",246]
[null,"28290 Muualla luokittelematon yleiskäyttöön tarkoitettujen koneiden valmistus",246]
[null,"283 Maa- ja metsätalouskoneiden valmistus",139]
[null,"2830 Maa- ja metsätalouskoneiden valmistus",139]
[null,"28300 Maa- ja metsätalouskoneiden valmistus",139]
[null,"284 Metallin työstökoneiden ja konetyökalujen valmistus",69]
[null,"2841 Metallin työstökoneiden valmistus",36]
[null,"28410 Metallin työstökoneiden valmistus",36]
[null,"2849 Muiden konetyökalujen valmistus",33]
[null,"28490 Muiden konetyökalujen valmistus",33]
[null,"289 Muiden erikoiskoneiden valmistus",449]
[null,"2891 Metallinjalostuskoneiden valmistus",12]
[null,"28910 Metallinjalostuskoneiden valmistus",12]
[null,"2892 Kaivos-, louhinta- ja rakennuskoneiden valmistus",86]
[null,"28920 Kaivos-, louhinta- ja rakennuskoneiden valmistus",86]
[null,"2893 Elintarvike-, juoma- ja tupakkateollisuuden koneiden valmistus",63]
[null,"28930 Elintarvike-, juoma- ja tupakkateollisuuden koneiden valmistus",63]
[null,"2894 Tekstiili-, vaate- ja nahkateollisuuden koneiden valmistus",13]
[null,"28940 Tekstiili-, vaate- ja nahkateollisuuden koneiden valmistus",13]
[null,"2895 Paperi-, kartonki- ja pahviteollisuuden koneiden valmistus",41]
[null,"28950 Paperi-, kartonki- ja pahviteollisuuden koneiden valmistus",41]
[null,"2896 Muovi- ja kumiteollisuuden koneiden valmistus",6]
[null,"28960 Muovi- ja kumiteollisuuden koneiden valmistus",6]
[null,"2899 Muualla luokittelematon erikoiskoneiden valmistus",228]
[null,"28990 Muualla luokittelematon erikoiskoneiden valmistus",228]
[null,"29 Moottoriajoneuvojen, perävaunujen ja puoliperävaunujen valmistus",227]
[null,"291 Moottoriajoneuvojen valmistus",32]
[null,"2910 Moottoriajoneuvojen valmistus",32]
[null,"29100 Moottoriajoneuvojen valmistus",32]
[null,"292 Moottoriajoneuvojen korien valmistus: perävaunujen ja puoliperävaunujen valmistus",107]
[null,"2920 Moottoriajoneuvojen korien valmistus: perävaunujen ja puoliperävaunujen valmistus",107]
[null,"29200 Moottoriajoneuvojen korien valmistus: perävaunujen ja puoliperävaunujen valmistus",107]
[null,"293 Osien ja tarvikkeiden valmistus moottoriajoneuvoihin",88]
[null,"2931 Sähkö- ja elektroniikkalaitteiden valmistus moottoriajoneuvoihin",15]
[null,"29310 Sähkö- ja elektroniikkalaitteiden valmistus moottoriajoneuvoihin",15]
[null,"2932 Muiden osien ja tarvikkeiden valmistus moottoriajoneuvoihin",73]
[null,"29320 Muiden osien ja tarvikkeiden valmistus moottoriajoneuvoihin",73]
[null,"30 Muiden kulkuneuvojen valmistus",341]
[null,"301 Laivojen ja veneiden rakentaminen",292]
[null,"3011 Laivojen ja kelluvien rakenteiden rakentaminen",96]
[null,"30110 Laivojen ja kelluvien rakenteiden rakentaminen",96]
[null,"3012 Huvi- ja urheiluveneiden rakentaminen",196]
[null,"30120 Huvi- ja urheiluveneiden rakentaminen",196]
[null,"302 Raideliikenteen kulkuneuvojen valmistus",1]
[null,"3020 Raideliikenteen kulkuneuvojen valmistus",1]
[null,"30200 Raideliikenteen kulkuneuvojen valmistus",1]
[null,"303 Ilma- ja avaruusalusten ja niihin liittyvien koneiden valmistus",11]
[null,"3030 Ilma- ja avaruusalusten ja niihin liittyvien koneiden valmistus",11]
[null,"30300 Ilma- ja avaruusalusten ja niihin liittyvien koneiden valmistus",11]
[null,"304 Taisteluajoneuvojen valmistus",3]
[null,"3040 Taisteluajoneuvojen valmistus",3]
[null,"30400 Taisteluajoneuvojen valmistus",3]
[null,"309 Muualla luokittelematon kulkuneuvojen valmistus",34]
[null,"3091 Moottoripyörien valmistus",4]
[null,"30910 Moottoripyörien valmistus",4]
[null,"3092 Polkupyörien ja invalidiajoneuvojen valmistus",13]
[null,"30920 Polkupyörien ja invalidiajoneuvojen valmistus",13]
[null,"3099 Muiden muualla luokittelemattomien kulkuneuvojen valmistus",17]
[null,"30990 Muiden muualla luokittelemattomien kulkuneuvojen valmistus",17]
[null,"31 Huonekalujen valmistus",866]
[null,"310 Huonekalujen valmistus",866]
[null,"3101 Konttori- ja myymäläkalusteiden valmistus",153]
[null,"31010 Konttori- ja myymäläkalusteiden valmistus",153]
[null,"3102 Keittiökalusteiden valmistus",243]
[null,"31020 Keittiökalusteiden valmistus",243]
[null,"3103 Patjojen valmistus",12]
[null,"31030 Patjojen valmistus",12]
[null,"3109 Muiden huonekalujen valmistus",458]
[null,"31090 Muiden huonekalujen valmistus",458]
[null,"32 Muu valmistus",1292]
[null,"321 Korujen, kultasepäntuotteiden ja muiden vastaavien tuotteiden valmistus",338]
[null,"3211 Kolikoiden ja mitalien valmistus",7]
[null,"32110 Kolikoiden ja mitalien valmistus",7]
[null,"3212 Jalokivikorujen ja muiden kultasepäntuotteiden valmistus",275]
[null,"32120 Jalokivikorujen ja muiden kultasepäntuotteiden valmistus",275]
[null,"3213 Jäljitelmäkorujen ja muiden vastaavien tuotteiden valmistus",56]
[null,"32130 Jäljitelmäkorujen ja muiden vastaavien tuotteiden valmistus",56]
[null,"322 Soitinten valmistus",87]
[null,"3220 Soitinten valmistus",87]
[null,"32200 Soitinten valmistus",87]
[null,"323 Urheiluvälineiden valmistus",151]
[null,"3230 Urheiluvälineiden valmistus",151]
[null,"32300 Urheiluvälineiden valmistus",151]
[null,"324 Pelien ja leikkikalujen valmistus",31]
[null,"3240 Pelien ja leikkikalujen valmistus",31]
[null,"32400 Pelien ja leikkikalujen valmistus",31]
[null,"325 Lääkintä- ja hammaslääkintäinstrumenttien ja -tarvikkeiden valmistus",445]
[null,"3250 Lääkintä- ja hammaslääkintäinstrumenttien ja -tarvikkeiden valmistus",445]
[null,"32501 Lääkintä- ja hammaslääkintäinstrumenttien ja -tarvikkeiden valmistus (pl. hammasproteesit)",131]
[null,"32502 Hammasproteesien, keinohampaiden ym. valmistus",314]
[null,"329 Muualla luokittelematon valmistus",240]
[null,"3291 Luutien ja harjojen valmistus",14]
[null,"32910 Luutien ja harjojen valmistus",14]
[null,"3299 Muu muualla luokittelematon valmistus",226]
[null,"32991 Turvavarusteiden valmistus",29]
[null,"32999 Muu muualla luokittelemattomien tuotteiden valmistus",197]
[null,"33 Koneiden ja laitteiden korjaus, huolto ja asennus",2751]
[null,"331 Metallituotteiden, teollisuuden koneiden ja laitteiden korjaus ja huolto",2250]
[null,"3311 Metallituotteiden korjaus ja huolto",157]
[null,"33110 Metallituotteiden korjaus ja huolto",157]
[null,"3312 Teollisuuden koneiden ja laitteiden korjaus ja huolto",1548]
[null,"33121 Yleiskäyttöön tarkoitettujen koneiden korjaus ja huolto",518]
[null,"33122 Maa- ja metsätalouskoneiden korjaus ja huolto",475]
[null,"33123 Metallintyöstökoneiden ja muiden konetyökalujen korjaus ja huolto",79]
[null,"33129 Muiden erikoiskoneiden korjaus ja huolto",476]
[null,"3313 Elektronisten ja optisten laitteiden korjaus ja huolto",79]
[null,"33130 Elektronisten ja optisten laitteiden korjaus ja huolto",79]
[null,"3314 Sähkölaitteiden korjaus ja huolto",71]
[null,"33140 Sähkölaitteiden korjaus ja huolto",71]
[null,"3315 Laivojen ja veneiden korjaus ja huolto",300]
[null,"33150 Laivojen ja veneiden korjaus ja huolto",300]
[null,"3316 Ilma- ja avaruusalusten korjaus ja huolto",20]
[null,"33160 Ilma- ja avaruusalusten korjaus ja huolto",20]
[null,"3317 Muiden kulkuneuvojen korjaus ja huolto",16]
[null,"33170 Muiden kulkuneuvojen korjaus ja huolto",16]
[null,"3319 Muiden laitteiden korjaus ja huolto",59]
[null,"33190 Muiden laitteiden korjaus ja huolto",59]
[null,"332 Teollisuuden koneiden ja laitteiden ym. asennus",501]
[null,"3320 Teollisuuden koneiden ja laitteiden ym. asennus",501]
[null,"33200 Teollisuuden koneiden ja laitteiden ym. asennus",501]
[null,"D Sähkö-, kaasu- ja lämpöhuolto, jäähdytysliiketoiminta",934]
[null,"35 Sähkö-, kaasu- ja lämpöhuolto, jäähdytysliiketoiminta",934]
[null,"351 Sähkövoiman tuotanto, siirto ja jakelu",492]
[null,"3511 Sähkön tuotanto",289]
[null,"35111 Sähkön tuotanto vesi- ja tuulivoimalla",184]
[null,"35112 Sähkön erillistuotanto lämpövoimalla",12]
[null,"35113 Sähkön ja kaukolämmön yhteistuotanto",65]
[null,"35114 Sähkön tuotanto ydinvoimalla",7]
[null,"35115 Teollisuutta palveleva sähkön ja lämmön tuotanto",21]
[null,"3512 Sähkön siirto",10]
[null,"35120 Sähkön siirto",10]
[null,"3513 Sähkön jakelu",106]
[null,"35130 Sähkön jakelu",106]
[null,"3514 Sähkön kauppa",87]
[null,"35140 Sähkön kauppa",87]
[null,"352 Kaasun tuotanto: kaasumaisten polttoaineiden jakelu putkiverkossa",18]
[null,"3521 Kaasun tuotanto",15]
[null,"35210 Kaasun tuotanto",15]
[null,"3522 Kaasumaisten polttoaineiden jakelu putkiverkossa",2]
[null,"35220 Kaasumaisten polttoaineiden jakelu putkiverkossa",2]
[null,"3523 Kaasun kauppa putkiverkossa",1]
[null,"35230 Kaasun kauppa putkiverkossa",1]
[null,"353 Lämmön ja kylmän tuotanto ja jakelu",424]
[null,"3530 Lämmön ja kylmän tuotanto ja jakelu",424]
[null,"35301 Kaukolämmön ja -kylmän erillistuotanto ja jakelu",384]
[null,"35302 Teollisuutta palveleva lämmön ja kylmän erillistuotanto",40]
[null,"E Vesihuolto, viemäri- ja jätevesihuolto, jätehuolto ja muu ympäristön puhtaanapito",1458]
[null,"36 Veden otto, puhdistus ja jakelu",730]
[null,"360 Veden otto, puhdistus ja jakelu",730]
[null,"3600 Veden otto, puhdistus ja jakelu",730]
[null,"36000 Veden otto, puhdistus ja jakelu",730]
[null,"37 Viemäri- ja jätevesihuolto",205]
[null,"370 Viemäri- ja jätevesihuolto",205]
[null,"3700 Viemäri- ja jätevesihuolto",205]
[null,"37000 Viemäri- ja jätevesihuolto",205]
[null,"38 Jätteen keruu, käsittely ja loppusijoitus: materiaalien kierrätys",480]
[null,"381 Jätteen keruu",211]
[null,"3811 Tavanomaisen jätteen keruu",201]
[null,"38110 Tavanomaisen jätteen keruu",201]
[null,"3812 Ongelmajätteen keruu",10]
[null,"38120 Ongelmajätteen keruu",10]
[null,"382 Jätteen käsittely ja loppusijoitus",128]
[null,"3821 Tavanomaisen jätteen käsittely ja loppusijoitus",116]
[null,"38210 Tavanomaisen jätteen käsittely ja loppusijoitus",116]
[null,"3822 Ongelmajätteen käsittely, loppusijoitus ja hävittäminen",12]
[null,"38220 Ongelmajätteen käsittely, loppusijoitus ja hävittäminen",12]
[null,"383 Materiaalien kierrätys",141]
[null,"3831 Romujen purkaminen",18]
[null,"38310 Romujen purkaminen",18]
[null,"3832 Lajiteltujen materiaalien kierrätys",123]
[null,"38320 Lajiteltujen materiaalien kierrätys",123]
[null,"39 Maaperän ja vesistöjen kunnostus ja muut ympäristönhuoltopalvelut",43]
[null,"390 Maaperän ja vesistöjen kunnostus ja muut ympäristönhuoltopalvelut",43]
[null,"3900 Maaperän ja vesistöjen kunnostus ja muut ympäristönhuoltopalvelut",43]
[null,"39000 Maaperän ja vesistöjen kunnostus ja muut ympäristönhuoltopalvelut",43]
[null,"F Rakentaminen",40891]
[null,"41 Talonrakentaminen",17691]
[null,"411 Rakennuttaminen ja rakennushankkeiden kehittäminen",488]
[null,"4110 Rakennuttaminen ja rakennushankkeiden kehittäminen",488]
[null,"41100 Rakennuttaminen ja rakennushankkeiden kehittäminen",488]
[null,"412 Asuin- ja muiden rakennusten rakentaminen",17203]
[null,"4120 Asuin- ja muiden rakennusten rakentaminen",17203]
[null,"41200 Asuin- ja muiden rakennusten rakentaminen",17203]
[null,"42 Maa- ja vesirakentaminen",1338]
[null,"421 Teiden ja rautateiden rakentaminen",369]
[null,"4211 Teiden ja moottoriteiden rakentaminen",278]
[null,"42110 Teiden ja moottoriteiden rakentaminen",278]
[null,"4212 Rautateiden ja metrolinjojen rakentaminen",45]
[null,"42120 Rautateiden ja metrolinjojen rakentaminen",45]
[null,"4213 Siltojen ja tunneleiden rakentaminen",46]
[null,"42130 Siltojen ja tunneleiden rakentaminen",46]
[null,"422 Yleisten jakeluverkkojen rakentaminen",361]
[null,"4221 Yleisten jakeluverkkojen rakentaminen nestemäisiä ja kaasumaisia aineita varten",116]
[null,"42210 Yleisten jakeluverkkojen rakentaminen nestemäisiä ja kaasumaisia aineita varten",116]
[null,"4222 Sähkö- ja tietoliikenneverkkojen rakentaminen",245]
[null,"42220 Sähkö- ja tietoliikenneverkkojen rakentaminen",245]
[null,"429 Muu maa- ja vesirakentaminen",608]
[null,"4291 Vesirakentaminen",103]
[null,"42910 Vesirakentaminen",103]
[null,"4299 Muualla luokittelematon maa- ja vesirakentaminen",505]
[null,"42991 Maa- ja vesirakennushankkeiden kehittäminen ja rakennuttaminen",5]
[null,"42999 Muu muualla luokittelematon maa- ja vesirakentaminen",500]
[null,"43 Erikoistunut rakennustoiminta",21862]
[null,"431 Rakennusten ja rakennelmien purku ja rakennuspaikan valmistelutyöt",6094]
[null,"4311 Rakennusten ja rakennelmien purku",153]
[null,"43110 Rakennusten ja rakennelmien purku",153]
[null,"4312 Rakennuspaikan valmistelutyöt",5940]
[null,"43120 Rakennuspaikan valmistelutyöt",5940]
[null,"4313 Koeporaus",1]
[null,"43130 Koeporaus",1]
[null,"432 Sähkö-, vesijohto- ja muu rakennusasennus",8329]
[null,"4321 Sähköasennus",3800]
[null,"43210 Sähköasennus",3800]
[null,"4322 Lämpö-, vesijohto- ja ilmastointiasennus",3897]
[null,"43220 Lämpö-, vesijohto- ja ilmastointiasennus",3897]
[null,"4329 Muu rakennusasennus",632]
[null,"43291 Lämpö-, ääni- ja tärinäeristeiden asennus",267]
[null,"43292 Hissien ja liukuportaiden asennus",62]
[null,"43299 Muualla luokittelematon rakennusasennus",303]
[null,"433 Rakennusten ja rakennelmien viimeistely",3833]
[null,"4331 Rappaus",50]
[null,"43310 Rappaus",50]
[null,"4332 Rakennuspuusepän asennustyöt",1418]
[null,"43320 Rakennuspuusepän asennustyöt",1418]
[null,"4333 Lattianpäällystys ja seinien verhoilu",700]
[null,"43330 Lattianpäällystys ja seinien verhoilu",700]
[null,"4334 Maalaus ja lasitus",1570]
[null,"43341 Maalaus",1322]
[null,"43342 Lasitus",248]
[null,"4339 Muu rakennusten viimeistely",95]
[null,"43390 Muu rakennusten viimeistely",95]
[null,"439 Muu erikoistunut rakennustoiminta",3606]
[null,"4391 Kattorakenteiden asennus ja kattaminen",498]
[null,"43910 Kattorakenteiden asennus ja kattaminen",498]
[null,"4399 Muualla luokittelematon erikoistunut rakennustoiminta",3108]
[null,"43991 Rakennuskonevuokraus käyttäjineen",289]
[null,"43999 Muu muualla luokittelematon erikoistunut rakennustoiminta",2819]
[null,"G Tukku- ja vähittäiskauppa: moottoriajoneuvojen ja moottoripyörien korjaus",42661]
[null,"45 Moottoriajoneuvojen ja moottoripyörien tukku- ja vähittäiskauppa sekä korjaus",9391]
[null,"451 Moottoriajoneuvojen kauppa",1927]
[null,"4511 Henkilöautojen ja kevyiden moottoriajoneuvojen kauppa",1754]
[null,"45111 Henkilöautojen ja kevyiden moottoriajoneuvojen tukkukauppa",206]
[null,"45112 Henkilöautojen ja kevyiden moottoriajoneuvojen vähittäiskauppa",1548]
[null,"4519 Muiden moottoriajoneuvojen myynti",173]
[null,"45191 Kuorma-autojen ja muiden raskaiden moottoriajoneuvojen tukkukauppa",86]
[null,"45192 Matkailuvaunujen ja muualla luokittelemattomien moottoriajoneuvojen vähittäiskauppa",87]
[null,"452 Moottoriajoneuvojen huolto ja korjaus (pl. moottoripyörät)",5821]
[null,"4520 Moottoriajoneuvojen huolto ja korjaus (pl. moottoripyörät)",5821]
[null,"45201 Moottoriajoneuvojen huolto ja korjaus (pl. renkaat)",5762]
[null,"45202 Renkaiden korjaus",59]
[null,"453 Moottoriajoneuvojen osien ja varusteiden kauppa",1367]
[null,"4531 Moottoriajoneuvojen osien ja varusteiden tukkukauppa",387]
[null,"45311 Moottoriajoneuvojen osien ja varusteiden tukkukauppa (pl. renkaat)",322]
[null,"45312 Renkaiden tukkukauppa",65]
[null,"4532 Moottoriajoneuvojen osien ja varusteiden vähittäiskauppa",980]
[null,"45321 Moottoriajoneuvojen osien ja varusteiden vähittäiskauppa (pl. renkaat)",698]
[null,"45322 Renkaiden vähittäiskauppa",282]
[null,"454 Moottoripyörien sekä niiden osien ja varusteiden myynti, huolto ja korjaus",276]
[null,"4540 Moottoripyörien sekä niiden osien ja varusteiden myynti, huolto ja korjaus",276]
[null,"45401 Moottoripyörien sekä niiden osien ja varusteiden tukkukauppa",40]
[null,"45402 Moottoripyörien sekä niiden osien ja varusteiden vähittäiskauppa",127]
[null,"45403 Moottoripyörien huolto ja korjaus",109]
[null,"46 Tukkukauppa (pl. moottoriajoneuvojen ja moottoripyörien kauppa)",13826]
[null,"461 Agentuuritoiminta",3192]
[null,"4611 Maatalousraaka-aineiden, elävien eläinten, tekstiiliraaka-aineiden sekä puolivalmisteiden agentuuritoiminta",37]
[null,"46110 Maatalousraaka-aineiden, elävien eläinten, tekstiiliraaka-aineiden sekä puolivalmisteiden agentuuritoiminta",37]
[null,"4612 Polttoaineiden, malmien, metallien ja teollisuuskemikaalien agentuuritoiminta",122]
[null,"46120 Polttoaineiden, malmien, metallien ja teollisuuskemikaalien agentuuritoiminta",122]
[null,"4613 Puutavaran ja rakennusmateriaalien agentuuritoiminta",535]
[null,"46130 Puutavaran ja rakennusmateriaalien agentuuritoiminta",535]
[null,"4614 Koneiden ja laitteiden agentuuritoiminta",552]
[null,"46140 Koneiden ja laitteiden agentuuritoiminta",552]
[null,"4615 Huonekalujen, taloustavaroiden ja rautakauppatavaroiden agentuuritoiminta",280]
[null,"46150 Huonekalujen, taloustavaroiden ja rautakauppatavaroiden agentuuritoiminta",280]
[null,"4616 Tekstiilien, vaatteiden, jalkineiden ja nahkavalmisteiden agentuuritoiminta",337]
[null,"46160 Tekstiilien, vaatteiden, jalkineiden ja nahkavalmisteiden agentuuritoiminta",337]
[null,"4617 Elintarvikkeiden, juomien ja tupakan agentuuritoiminta",264]
[null,"46170 Elintarvikkeiden, juomien ja tupakan agentuuritoiminta",264]
[null,"4618 Muu erikoistunut agentuuritoiminta",574]
[null,"46181 Paperialan agentuuritoiminta",32]
[null,"46189 Muualla luokittelematon erikoistunut agentuuritoiminta",542]
[null,"4619 Yleisagentuuritoiminta",491]
[null,"46190 Yleisagentuuritoiminta",491]
[null,"462 Maatalousperäisten raaka-aineiden ja elävien eläinten tukkukauppa",220]
[null,"4621 Viljan, raakatupakan, siementen ja eläinrehujen tukkukauppa",75]
[null,"46210 Viljan, raakatupakan, siementen ja eläinrehujen tukkukauppa",75]
[null,"4622 Kukkien ja taimien tukkukauppa",96]
[null,"46220 Kukkien ja taimien tukkukauppa",96]
[null,"4623 Elävien eläinten tukkukauppa",24]
[null,"46230 Elävien eläinten tukkukauppa",24]
[null,"4624 Turkisten ja nahkojen tukkukauppa",25]
[null,"46240 Turkisten ja nahkojen tukkukauppa",25]
[null,"463 Elintarvikkeiden, juomien ja tupakan tukkukauppa",1042]
[null,"4631 Juures-, vihannes- marja- ja hedelmätukkukauppa",196]
[null,"46310 Juures-, vihannes- marja- ja hedelmätukkukauppa",196]
[null,"4632 Lihan ja lihatuotteiden tukkukauppa",44]
[null,"46320 Lihan ja lihatuotteiden tukkukauppa",44]
[null,"4633 Maitotaloustuotteiden, munien sekä ravintoöljyjen ja -rasvojen tukkukauppa",35]
[null,"46331 Maitotaloustuotteiden, ravintoöljyjen ja -rasvojen tukkukauppa",24]
[null,"46332 Munatukkukauppa",11]
[null,"4634 Alkoholi- ja muiden juomien tukkukauppa",123]
[null,"46340 Alkoholi- ja muiden juomien tukkukauppa",123]
[null,"4635 Tupakkatuotteiden tukkukauppa",8]
[null,"46350 Tupakkatuotteiden tukkukauppa",8]
[null,"4636 Sokerin, suklaan, makeisten ja leipomotuotteiden tukkukauppa",54]
[null,"46360 Sokerin, suklaan, makeisten ja leipomotuotteiden tukkukauppa",54]
[null,"4637 Kahvin, teen, kaakaon ja mausteiden tukkukauppa",36]
[null,"46370 Kahvin, teen, kaakaon ja mausteiden tukkukauppa",36]
[null,"4638 Kalan, luontaistuotteiden ja muiden elintarvikkeiden tukkukauppa",279]
[null,"46381 Kalatukkukauppa",62]
[null,"46382 Luontaistuotteiden tukkukauppa",87]
[null,"46383 Lemmikkieläinten ruokien tukkukauppa",22]
[null,"46389 Muualla luokittelematon elintarvikkeiden tukkukauppa",108]
[null,"4639 Elintarvikkeiden, juomien ja tupakan yleistukkukauppa",267]
[null,"46390 Elintarvikkeiden, juomien ja tupakan yleistukkukauppa",267]
[null,"464 Taloustavaroiden tukkukauppa",3120]
[null,"4641 Tekstiilien tukkukauppa",220]
[null,"46411 Kangas- ja lankatukkukauppa",58]
[null,"46412 Tekstiilivalmisteiden tukkukauppa",162]
[null,"4642 Vaatteiden ja jalkineiden tukkukauppa",398]
[null,"46421 Vaatteiden tukkukauppa",351]
[null,"46422 Jalkineiden tukkukauppa",47]
[null,"4643 Kodinkoneiden tukkukauppa",302]
[null,"46431 Kodinkoneiden ja kodin sähkölaitteiden tukkukauppa",75]
[null,"46432 Viihde-elektroniikan tukkukauppa",132]
[null,"46433 Valokuvausvälineiden ja -tarvikkeiden tukkukauppa",34]
[null,"46434 Optisen alan tukkukauppa",61]
[null,"4644 Posliini-, lasi- ja muiden taloustavaroiden sekä puhdistusaineiden tukkukauppa",168]
[null,"46441 Taloustavaroiden ja -tarvikkeiden tukkukauppa",95]
[null,"46442 Puhdistusaineiden tukkukauppa",73]
[null,"4645 Hajuvesien ja kosmetiikan tukkukauppa",199]
[null,"46450 Hajuvesien ja kosmetiikan tukkukauppa",199]
[null,"4646 Farmaseuttisten tuotteiden tukkukauppa",485]
[null,"46461 Lääketukkukauppa",96]
[null,"46462 Laboratorio- ja sairaanhoitovälineiden tukkukauppa",389]
[null,"4647 Huonekalujen, mattojen ja valaisimien tukkukauppa",150]
[null,"46470 Huonekalujen, mattojen ja valaisimien tukkukauppa",150]
[null,"4648 Kellojen ja korujen tukkukauppa",87]
[null,"46480 Kellojen ja korujen tukkukauppa",87]
[null,"4649 Muiden taloustavaroiden tukkukauppa",1111]
[null,"46491 Paperi- ja toimistotarvikkeiden tukkukauppa",237]
[null,"46492 Kirjatukkukauppa",14]
[null,"46493 Urheilualan tukkukauppa",357]
[null,"46494 Musiikkitarvikkeiden tukkukauppa",30]
[null,"46495 Veneiden ja veneilytarvikkeiden tukkukauppa",77]
[null,"46496 Lelujen ja pelien tukkukauppa",50]
[null,"46499 Muu kotitaloustavaroiden tukkukauppa",346]
[null,"465 Tieto- ja viestintäteknisten laitteiden tukkukauppa",687]
[null,"4651 Tietokoneiden, oheislaitteiden ja ohjelmistojen tukkukauppa",405]
[null,"46510 Tietokoneiden, oheislaitteiden ja ohjelmistojen tukkukauppa",405]
[null,"4652 Elektroniikka- ja viestintälaitteiden ja osien tukkukauppa",282]
[null,"46521 Viestintälaitteiden tukkukauppa",188]
[null,"46522 Elektronisten komponenttien tukkukauppa",94]
[null,"466 Muiden koneiden, laitteiden ja tarvikkeiden tukkukauppa",2578]
[null,"4661 Maa- ja metsätalouskoneiden ja -tarvikkeiden tukkukauppa ml. traktorit",338]
[null,"46610 Maa- ja metsätalouskoneiden ja -tarvikkeiden tukkukauppa ml. traktorit",338]
[null,"4662 Työstökoneiden tukkukauppa",113]
[null,"46620 Työstökoneiden tukkukauppa",113]
[null,"4663 Kaivos- ja rakennuskoneiden tukkukauppa",155]
[null,"46630 Kaivos- ja rakennuskoneiden tukkukauppa",155]
[null,"4664 Tekstiiliteollisuuden koneiden sekä ompelu- ja kutomakoneiden tukkukauppa",10]
[null,"46640 Tekstiiliteollisuuden koneiden sekä ompelu- ja kutomakoneiden tukkukauppa",10]
[null,"4665 Toimitilakalusteiden tukkukauppa",135]
[null,"46650 Toimitilakalusteiden tukkukauppa",135]
[null,"4666 Muiden konttorikoneiden ja -laitteiden tukkukauppa",131]
[null,"46660 Muiden konttorikoneiden ja -laitteiden tukkukauppa",131]
[null,"4669 Muiden koneiden, laitteiden ja tarvikkeiden tukkukauppa",1696]
[null,"46691 Sähkötarviketukkukauppa",297]
[null,"46692 Teollisuudessa käytettävien muiden koneiden tukkukauppa",715]
[null,"46699 Muualla luokittelemattomien koneiden ja laitteiden tukkukauppa",684]
[null,"467 Muu erikoistunut tukkukauppa",2381]
[null,"4671 Kiinteiden, nestemäisten ja kaasumaisten polttoaineiden yms. tukkukauppa",131]
[null,"46711 Nestemäisten ja kaasumaisten polttoaineiden tukkukauppa",89]
[null,"46719 Muiden polttoaineiden tukkukauppa",42]
[null,"4672 Raakametallien ja metallimalmien tukkukauppa",24]
[null,"46720 Raakametallien ja metallimalmien tukkukauppa",24]
[null,"4673 Puun, rakennusmateriaalien ja saniteettilaitteiden tukkukauppa",1109]
[null,"46731 Raakapuutukkukauppa",79]
[null,"46732 Puutavaratuotetukkukauppa",374]
[null,"46733 Metalli- ja mineraalituotteiden tukkukauppa",307]
[null,"46734 Kylpyhuonekalusteiden ja -tarvikkeiden tukkukauppa",23]
[null,"46735 Lattianpäällysteiden ja tapettien tukkukauppa",38]
[null,"46739 Rakennustarvikkeiden yleistukkukauppa",288]
[null,"4674 Rautakauppatavaroiden, LVI-laitteiden ja -tarvikkeiden tukkukauppa",553]
[null,"46741 Työkalu- ja tarviketukkukauppa",276]
[null,"46742 Lämpö-, vesi- ja ilmastointilaitteiden ja -tarvikkeiden tukkukauppa",277]
[null,"4675 Peruskemikaalien, lannoitteiden yms. tukkukauppa",135]
[null,"46750 Peruskemikaalien, lannoitteiden yms. tukkukauppa",135]
[null,"4676 Muiden välituotteiden tukkukauppa",153]
[null,"46760 Muiden välituotteiden tukkukauppa",153]
[null,"4677 Jätteen ja romun tukkukauppa",276]
[null,"46770 Jätteen ja romun tukkukauppa",276]
[null,"469 Muu tukkukauppa",606]
[null,"4690 Muu tukkukauppa",606]
[null,"46901 Yleistukkukauppa",4]
[null,"46909 Muualla luokittelematon tukkukauppa",602]
[null,"47 Vähittäiskauppa (pl. moottoriajoneuvojen ja moottoripyörien kauppa)",19444]
[null,"471 Vähittäiskauppa erikoistumattomissa myymälöissä",2510]
[null,"4711 Elintarvikkeiden, juomien ja tupakan erikoistumaton vähittäiskauppa",2351]
[null,"47111 Isot supermarketit (yli 1000 m²)",263]
[null,"47112 Pienet supermarketit (400-1000 m²)",189]
[null,"47113 Valintamyymälät (yli 100, alle 400 m²)",949]
[null,"47114 Elintarvike-, makeis- ym. kioskit (alle 100 m²)",950]
[null,"4719 Muu vähittäiskauppa erikoistumattomissa myymälöissä",159]
[null,"47191 Itsepalvelutavaratalot (yli 2500 m²)",29]
[null,"47192 Tavaratalot (yli 2500 m²)",10]
[null,"47199 Pienoistavaratalot ja muut erikoistumattomat myymälät (alle 2500 m²)",120]
[null,"472 Elintarvikkeiden, juomien ja tupakan vähittäiskauppa erikoismyymälöissä",1140]
[null,"4721 Hedelmien, marjojen ja vihannesten vähittäiskauppa",137]
[null,"47210 Hedelmien, marjojen ja vihannesten vähittäiskauppa",137]
[null,"4722 Lihan ja lihatuotteiden vähittäiskauppa",78]
[null,"47220 Lihan ja lihatuotteiden vähittäiskauppa",78]
[null,"4723 Kalan, äyriäisten ja nilviäisten vähittäiskauppa",118]
[null,"47230 Kalan, äyriäisten ja nilviäisten vähittäiskauppa",118]
[null,"4724 Leipomotuotteiden ja makeisten vähittäiskauppa",152]
[null,"47241 Leipomotuotteiden vähittäiskauppa",100]
[null,"47242 Makeisten vähittäiskauppa",52]
[null,"4725 Alkoholi- ja muiden juomien vähittäiskauppa",1]
[null,"47250 Alkoholi- ja muiden juomien vähittäiskauppa",1]
[null,"4726 Tupakkatuotteiden vähittäiskauppa",9]
[null,"47260 Tupakkatuotteiden vähittäiskauppa",9]
[null,"4729 Muu vähittäiskauppa erikoismyymälöissä",645]
[null,"47291 Jäätelökioskit",91]
[null,"47292 Luontaistuotteiden vähittäiskauppa",311]
[null,"47299 Muu päivittäistavaroiden erikoisvähittäiskauppa",243]
[null,"473 Ajoneuvojen polttoaineen vähittäiskauppa",688]
[null,"4730 Ajoneuvojen polttoaineen vähittäiskauppa",688]
[null,"47301 Huoltamotoiminta",649]
[null,"47302 Polttoaineiden vähittäiskauppa automaateista",39]
[null,"474 Tieto- ja viestintäteknisten laitteiden vähittäiskauppa erikoismyymälöissä",683]
[null,"4741 Tietokoneiden, niiden oheislaitteiden ja ohjelmistojen vähittäiskauppa",358]
[null,"47410 Tietokoneiden, niiden oheislaitteiden ja ohjelmistojen vähittäiskauppa",358]
[null,"4742 Televiestintälaitteiden vähittäiskauppa",133]
[null,"47420 Televiestintälaitteiden vähittäiskauppa",133]
[null,"4743 Viihde-elektroniikan vähittäiskauppa",192]
[null,"47430 Viihde-elektroniikan vähittäiskauppa",192]
[null,"475 Muiden kotitaloustavaroiden vähittäiskauppa erikoismyymälöissä",3407]
[null,"4751 Tekstiilien vähittäiskauppa",418]
[null,"47511 Kankaiden vähittäiskauppa",257]
[null,"47512 Lankojen ja käsityötarvikkeiden vähittäiskauppa",161]
[null,"4752 Rautakauppatavaran, maalien ja lasin vähittäiskauppa",1307]
[null,"47521 Rauta- ja rakennustarvikkeiden yleisvähittäiskauppa",545]
[null,"47522 Maalien vähittäiskauppa",76]
[null,"47523 Keittiö- ja saniteettitilojen kalusteiden vähittäiskauppa",282]
[null,"47529 Muu rauta- ja rakennusalan vähittäiskauppa",404]
[null,"4753 Mattojen, tapettien ja lattianpäällysteiden vähittäiskauppa",188]
[null,"47531 Mattojen ja verhojen vähittäiskauppa",115]
[null,"47532 Tapettien ja lattianpäällysteiden vähittäiskauppa",73]
[null,"4754 Sähköisten kodinkoneiden vähittäiskauppa",342]
[null,"47540 Sähköisten kodinkoneiden vähittäiskauppa",342]
[null,"4759 Huonekalujen, valaisimien ja muualla luokittelemattomien taloustarvikkeiden vähittäiskauppa erikoismyymälöissä",1152]
[null,"47591 Huonekalujen vähittäiskauppa",337]
[null,"47592 Sähkötarvikkeiden ja valaisimien vähittäiskauppa",155]
[null,"47593 Kumi- ja muovitavaroiden vähittäiskauppa",53]
[null,"47594 Taloustavaroiden vähittäiskauppa",101]
[null,"47595 Soittimien ja musiikkitarvikkeiden vähittäiskauppa",109]
[null,"47596 Lukkoseppä- ja avainliikkeet",172]
[null,"47599 Muualla luokittelemattomien kotitaloustarvikkeiden vähittäiskauppa",225]
[null,"476 Kulttuuri- ja vapaa-ajan tuotteiden vähittäiskauppa erikoismyymälöissä",1446]
[null,"4761 Kirjojen vähittäiskauppa",156]
[null,"47610 Kirjojen vähittäiskauppa",156]
[null,"4762 Sanomalehtien ja paperitavaran vähittäiskauppa",130]
[null,"47621 Paperi- ja toimistotarvikkeiden vähittäiskauppa",112]
[null,"47622 Aikakausjulkaisujen ja lehtien vähittäiskauppa",18]
[null,"4763 Musiikki- ja videotallenteiden vähittäiskauppa",47]
[null,"47630 Musiikki- ja videotallenteiden vähittäiskauppa",47]
[null,"4764 Urheiluvälineiden vähittäiskauppa",1024]
[null,"47641 Urheiluvälineiden ja polkupyörien vähittäiskauppa",868]
[null,"47642 Veneiden ja veneilytarvikkeiden vähittäiskauppa",156]
[null,"4765 Pelien ja leikkikalujen vähittäiskauppa",89]
[null,"47650 Pelien ja leikkikalujen vähittäiskauppa",89]
[null,"477 Muiden tavaroiden vähittäiskauppa erikoismyymälöissä",7326]
[null,"4771 Vaatteiden vähittäiskauppa",1345]
[null,"47711 Naisten vaatteiden vähittäiskauppa",300]
[null,"47712 Miesten vaatteiden vähittäiskauppa",47]
[null,"47713 Lastenvaatteiden vähittäiskauppa",106]
[null,"47714 Turkisten ja nahkavaatteiden vähittäiskauppa",39]
[null,"47715 Lakkien ja hattujen vähittäiskauppa",11]
[null,"47719 Vaatteiden yleisvähittäiskauppa",842]
[null,"4772 Jalkineiden ja nahkatavaroiden vähittäiskauppa",308]
[null,"47721 Jalkineiden vähittäiskauppa",246]
[null,"47722 Laukkujen vähittäiskauppa",62]
[null,"4773 Apteekit",660]
[null,"47730 Apteekit",660]
[null,"4774 Terveydenhoitotarvikkeiden vähittäiskauppa",229]
[null,"47740 Terveydenhoitotarvikkeiden vähittäiskauppa",229]
[null,"4775 Kosmetiikka- ja hygieniatuotteiden vähittäiskauppa",358]
[null,"47750 Kosmetiikka- ja hygieniatuotteiden vähittäiskauppa",358]
[null,"4776 Kukkien, kasvien, siementen, lannoitteiden, lemmikkieläinten ja niiden ruokien vähittäiskauppa",1264]
[null,"47761 Kukkien vähittäiskauppa",710]
[null,"47762 Kukkakioskit",38]
[null,"47763 Puutarha-alan vähittäiskauppa",192]
[null,"47764 Lemmikkieläinten, niiden ruokien ja tarvikkeiden vähittäiskauppa",324]
[null,"4777 Kultasepänteosten ja kellojen vähittäiskauppa",359]
[null,"47770 Kultasepänteosten ja kellojen vähittäiskauppa",359]
[null,"4778 Muu uusien tavaroiden vähittäiskauppa",1955]
[null,"47781 Taideliikkeet",166]
[null,"47782 Valokuvausalan vähittäiskauppa",159]
[null,"47783 Optisen alan vähittäiskauppa",419]
[null,"47784 Lastenvaunujen ja -tarvikkeiden vähittäiskauppa",73]
[null,"47785 Lahjatavaroiden ja askartelutarvikkeiden vähittäiskauppa",533]
[null,"47789 Muiden uusien tavaroiden vähittäiskauppa",605]
[null,"4779 Käytettyjen tavaroiden vähittäiskauppa myymälöissä",848]
[null,"47791 Antiikkiliikkeet",116]
[null,"47792 Antikvariaattikauppa",104]
[null,"47793 Huutokauppakamarit",23]
[null,"47799 Muiden käytettyjen tavaroiden vähittäiskauppa",605]
[null,"478 Tori- ja markkinakauppa",304]
[null,"4781 Elintarvikkeiden, juomien ja tupakkatuotteiden vähittäiskauppa kojuista ja toreilla",179]
[null,"47810 Elintarvikkeiden, juomien ja tupakkatuotteiden vähittäiskauppa kojuista ja toreilla",179]
[null,"4782 Tekstiilien, vaatteiden ja jalkineiden vähittäiskauppa kojuista ja toreilla",30]
[null,"47820 Tekstiilien, vaatteiden ja jalkineiden vähittäiskauppa kojuista ja toreilla",30]
[null,"4789 Muiden tavaroiden vähittäiskauppa kojuista ja toreilla",95]
[null,"47890 Muiden tavaroiden vähittäiskauppa kojuista ja toreilla",95]
[null,"479 Vähittäiskauppa muualla kuin myymälöissä (pl. tori- ja markkinakauppa)",1940]
[null,"4791 Vähittäiskauppa postimyyntiliikkeiden tai Internetin välityksellä",672]
[null,"47911 Kirjojen, musiikki- ja videotallenteiden postimyynti ja verkkokauppa",25]
[null,"47912 Vaatteiden postimyynti ja verkkokauppa",95]
[null,"47913 Laajan valikoiman postimyynti ja verkkokauppa",217]
[null,"47919 Muu postimyynti ja verkkokauppa",335]
[null,"4799 Muu vähittäiskauppa muualla kuin myymälöissä",1268]
[null,"47990 Muu vähittäiskauppa muualla kuin myymälöissä",1268]
[null,"H Kuljetus ja varastointi",20538]
[null,"49 Maaliikenne ja putkijohtokuljetus",17882]
[null,"491 Rautateiden henkilöliikenne, kaukoliikenne",2]
[null,"4910 Rautateiden henkilöliikenne, kaukoliikenne",2]
[null,"49100 Rautateiden henkilöliikenne, kaukoliikenne",2]
[null,"492 Rautateiden tavaraliikenne",2]
[null,"4920 Rautateiden tavaraliikenne",2]
[null,"49200 Rautateiden tavaraliikenne",2]
[null,"493 Muu maaliikenteen henkilöliikenne",8516]
[null,"4931 Paikallisliikenne",112]
[null,"49310 Paikallisliikenne",112]
[null,"4932 Taksiliikenne",7873]
[null,"49320 Taksiliikenne",7873]
[null,"4939 Muualla luokittelematon maaliikenteen henkilöliikenne",531]
[null,"49391 Säännöllinen linja-autojen kaukoliikenne",93]
[null,"49392 Linja-autojen tilausliikenne",375]
[null,"49399 Muualla luokittelematon muu maaliikenteen henkilöliikenne",63]
[null,"494 Tieliikenteen tavarankuljetus ja muuttopalvelut",9361]
[null,"4941 Tieliikenteen tavarankuljetus",9230]
[null,"49410 Tieliikenteen tavarankuljetus",9230]
[null,"4942 Muuttopalvelut",131]
[null,"49420 Muuttopalvelut",131]
[null,"495 Putkijohtokuljetus",1]
[null,"4950 Putkijohtokuljetus",1]
[null,"49500 Putkijohtokuljetus",1]
[null,"50 Vesiliikenne",319]
[null,"501 Meri- ja rannikkovesiliikenteen henkilökuljetus",117]
[null,"5010 Meri- ja rannikkovesiliikenteen henkilökuljetus",117]
[null,"50101 Meriliikenteen henkilökuljetus",63]
[null,"50102 Rannikkovesiliikenteen henkilökuljetus",54]
[null,"502 Meri- ja rannikkovesiliikenteen tavarankuljetus",128]
[null,"5020 Meri- ja rannikkovesiliikenteen tavarankuljetus",128]
[null,"50201 Meriliikenteen tavarankuljetus",108]
[null,"50202 Rannikkovesiliikenteen tavarankuljetus",20]
[null,"503 Sisävesiliikenteen henkilökuljetus",65]
[null,"5030 Sisävesiliikenteen henkilökuljetus",65]
[null,"50300 Sisävesiliikenteen henkilökuljetus",65]
[null,"504 Sisävesiliikenteen tavarankuljetus",9]
[null,"5040 Sisävesiliikenteen tavarankuljetus",9]
[null,"50400 Sisävesiliikenteen tavarankuljetus",9]
[null,"51 Ilmaliikenne",84]
[null,"511 Matkustajalentoliikenne",78]
[null,"5110 Matkustajalentoliikenne",78]
[null,"51101 Säännöllinen lentoliikenne",26]
[null,"51102 Tilauslentoliikenne",52]
[null,"512 Lentoliikenteen tavarankuljetus ja avaruusliikenne",6]
[null,"5121 Lentoliikenteen tavarankuljetus",6]
[null,"51210 Lentoliikenteen tavarankuljetus",6]
[null,"52 Varastointi ja liikennettä palveleva toiminta",1920]
[null,"521 Varastointi",247]
[null,"5210 Varastointi",247]
[null,"52100 Varastointi",247]
[null,"522 Liikennettä palveleva toiminta",1673]
[null,"5221 Maaliikennettä palveleva toiminta",380]
[null,"52211 Linja-autoasemat",22]
[null,"52212 Tieliikenteen terminaalitoiminta",57]
[null,"52213 Maksullinen pysäköinti",104]
[null,"52219 Muu maaliikennettä palveleva toiminta",197]
[null,"5222 Vesiliikennettä palveleva toiminta",111]
[null,"52221 Satamat",52]
[null,"52229 Muu vesiliikennettä palveleva toiminta",59]
[null,"5223 Ilmaliikennettä palveleva toiminta",70]
[null,"52230 Ilmaliikennettä palveleva toiminta",70]
[null,"5224 Lastinkäsittely",159]
[null,"52240 Lastinkäsittely",159]
[null,"5229 Muu liikennettä palveleva toiminta",953]
[null,"52291 Huolinta ja rahtaus",693]
[null,"52299 Muu kuljetusvälitys",260]
[null,"53 Posti- ja kuriiritoiminta",333]
[null,"531 Postin yleispalvelu",3]
[null,"5310 Postin yleispalvelu",3]
[null,"53100 Postin yleispalvelu",3]
[null,"532 Muu posti-, jakelu- ja kuriiritoiminta",330]
[null,"5320 Muu posti-, jakelu- ja kuriiritoiminta",330]
[null,"53200 Muu posti-, jakelu- ja kuriiritoiminta",330]
[null,"I Majoitus- ja ravitsemistoiminta",12042]
[null,"55 Majoitus",1967]
[null,"551 Hotellit ja vastaavat majoitusliikkeet",736]
[null,"5510 Hotellit ja vastaavat majoitusliikkeet",736]
[null,"55101 Hotellit",497]
[null,"55109 Motellit, matkustajakodit ja vastaavat majoitusliikkeet",239]
[null,"552 Lomakylät, retkeilymajat yms. majoitus",244]
[null,"5520 Lomakylät, retkeilymajat yms. majoitus",244]
[null,"55201 Retkeilymajat",18]
[null,"55209 Lomakylät yms. majoitus",226]
[null,"553 Leirintäalueet, asuntovaunu- ja matkailuvaunualueet",166]
[null,"5530 Leirintäalueet, asuntovaunu- ja matkailuvaunualueet",166]
[null,"55300 Leirintäalueet, asuntovaunu- ja matkailuvaunualueet",166]
[null,"559 Muu majoitus",821]
[null,"5590 Muu majoitus",821]
[null,"55901 Asuntolat ja täysihoitolat yms.",8]
[null,"55902 Maatilamatkailu, bed & breakfast",151]
[null,"55903 Lomamökkien vuokraus",429]
[null,"55909 Muualla luokittelematon majoitustoiminta",233]
[null,"56 Ravitsemistoiminta",10075]
[null,"561 Ravintolat ja vastaava ravitsemistoiminta",7848]
[null,"5610 Ravintolat ja vastaava ravitsemistoiminta",7848]
[null,"56101 Ravintolat",4136]
[null,"56102 Kahvila-ravintolat",3120]
[null,"56103 Ruokakioskit",592]
[null,"562 Ateriapalvelut ja muut ravitsemispalvelut",1143]
[null,"5621 Pitopalvelu",765]
[null,"56210 Pitopalvelu",765]
[null,"5629 Henkilöstö- ja laitosruokalat",378]
[null,"56290 Henkilöstö- ja laitosruokalat",378]
[null,"563 Baarit ja kahvilat",1084]
[null,"5630 Baarit ja kahvilat",1084]
[null,"56301 Olut- ja drinkkibaarit",283]
[null,"56302 Kahvilat ja kahvibaarit",801]
[null,"J Informaatio ja viestintä",10156]
[null,"58 Kustannustoiminta",974]
[null,"581 Kirjojen ja lehtien kustantaminen ja muu kustannustoiminta",895]
[null,"5811 Kirjojen kustantaminen",274]
[null,"58110 Kirjojen kustantaminen",274]
[null,"5812 Hakemistojen ja postituslistojen julkaiseminen",12]
[null,"58120 Hakemistojen ja postituslistojen julkaiseminen",12]
[null,"5813 Sanomalehtien kustantaminen",159]
[null,"58130 Sanomalehtien kustantaminen",159]
[null,"5814 Aikakauslehtien ja harvemmin ilmestyvien sanomalehtien kustantaminen",254]
[null,"58141 Paikallislehtien ja harvemmin ilmestyvien sanomalehtien kustantaminen",65]
[null,"58142 Aikakauslehtien kustantaminen",189]
[null,"5819 Muu kustannustoiminta",196]
[null,"58190 Muu kustannustoiminta",196]
[null,"582 Ohjelmistojen kustantaminen",79]
[null,"5821 Tietokonepelien kustantaminen",20]
[null,"58210 Tietokonepelien kustantaminen",20]
[null,"5829 Muu ohjelmistojen kustantaminen",59]
[null,"58290 Muu ohjelmistojen kustantaminen",59]
[null,"59 Elokuva-, video- ja televisio-ohjelmatuotanto, äänitteiden ja musiikin kustantaminen",1686]
[null,"591 Elokuva-, video- ja televisio-ohjelmatoiminta",1105]
[null,"5911 Elokuvien, videoiden ja televisio-ohjelmien tuotanto",926]
[null,"59110 Elokuvien, videoiden ja televisio-ohjelmien tuotanto",926]
[null,"5912 Elokuvien, video- ja televisio-ohjelmien jälkituotanto",91]
[null,"59120 Elokuvien, video- ja televisio-ohjelmien jälkituotanto",91]
[null,"5913 Elokuvien, videoiden ja televisio-ohjelmien levitys",26]
[null,"59130 Elokuvien, videoiden ja televisio-ohjelmien levitys",26]
[null,"5914 Elokuvien esittäminen",62]
[null,"59140 Elokuvien esittäminen",62]
[null,"592 Äänitysstudiot: äänitteiden ja musiikin kustantaminen",581]
[null,"5920 Äänitysstudiot: äänitteiden ja musiikin kustantaminen",581]
[null,"59200 Äänitysstudiot: äänitteiden ja musiikin kustantaminen",581]
[null,"60 Radio- ja televisiotoiminta",66]
[null,"601 Radio-ohjelmien tuottaminen ja lähettäminen",48]
[null,"6010 Radio-ohjelmien tuottaminen ja lähettäminen",48]
[null,"60100 Radio-ohjelmien tuottaminen ja lähettäminen",48]
[null,"602 Televisio-ohjelmien tuottaminen ja lähettäminen",18]
[null,"6020 Televisio-ohjelmien tuottaminen ja lähettäminen",18]
[null,"60201 Televisio-ohjelmien tuottaminen ja lähettäminen (pl. maksulliset tv-kanavat)",15]
[null,"60202 Maksulliset tv-kanavat",3]
[null,"61 Televiestintä",435]
[null,"611 Langallisen verkon hallinta ja palvelut",143]
[null,"6110 Langallisen verkon hallinta ja palvelut",143]
[null,"61100 Langallisen verkon hallinta ja palvelut",143]
[null,"612 Langattoman verkon hallinta ja palvelut",191]
[null,"6120 Langattoman verkon hallinta ja palvelut",191]
[null,"61200 Langattoman verkon hallinta ja palvelut",191]
[null,"613 Satelliittiviestintä",1]
[null,"6130 Satelliittiviestintä",1]
[null,"61300 Satelliittiviestintä",1]
[null,"619 Muut televiestintäpalvelut",100]
[null,"6190 Muut televiestintäpalvelut",100]
[null,"61900 Muut televiestintäpalvelut",100]
[null,"62 Ohjelmistot, konsultointi ja siihen liittyvä toiminta",6253]
[null,"620 Ohjelmistot, konsultointi ja siihen liittyvä toiminta",6253]
[null,"6201 Ohjelmistojen suunnittelu ja valmistus",4022]
[null,"62010 Ohjelmistojen suunnittelu ja valmistus",4022]
[null,"6202 Atk-laitteisto- ja ohjelmistokonsultointi",1754]
[null,"62020 Atk-laitteisto- ja ohjelmistokonsultointi",1754]
[null,"6203 Tietojenkäsittelyn ja laitteistojen käyttö- ja hallintapalvelut",263]
[null,"62030 Tietojenkäsittelyn ja laitteistojen käyttö- ja hallintapalvelut",263]
[null,"6209 Muu laitteisto- ja tietotekninen palvelutoiminta",214]
[null,"62090 Muu laitteisto- ja tietotekninen palvelutoiminta",214]
[null,"63 Tietopalvelutoiminta",742]
[null,"631 Tietojenkäsittely, palvelintilan vuokraus ja niihin liittyvät palvelut: verkkoportaalit",582]
[null,"6311 Tietojenkäsittely, palvelintilan vuokraus ja niihin liittyvät palvelut",378]
[null,"63110 Tietojenkäsittely, palvelintilan vuokraus ja niihin liittyvät palvelut",378]
[null,"6312 Verkkoportaalit",204]
[null,"63120 Verkkoportaalit",204]
[null,"639 Muu tietopalvelutoiminta",160]
[null,"6391 Uutistoimistot",40]
[null,"63910 Uutistoimistot",40]
[null,"6399 Muualla luokittelematon tietopalvelutoiminta",120]
[null,"63990 Muualla luokittelematon tietopalvelutoiminta",120]
[null,"K Rahoitus- ja vakuutustoiminta",7844]
[null,"64 Rahoituspalvelut (pl. vakuutus- ja eläkevakuutustoiminta)",5209]
[null,"641 Pankkitoiminta",264]
[null,"6411 Keskuspankkitoiminta",1]
[null,"64110 Keskuspankkitoiminta",1]
[null,"6419 Muu pankkitoiminta",263]
[null,"64190 Muu pankkitoiminta",263]
[null,"642 Rahoitusalan holdingyhtiöiden toiminta",366]
[null,"6420 Rahoitusalan holdingyhtiöiden toiminta",366]
[null,"64200 Rahoitusalan holdingyhtiöiden toiminta",366]
[null,"643 Rahastotoiminta",426]
[null,"6430 Rahastotoiminta",426]
[null,"64300 Rahastotoiminta",426]
[null,"649 Muut rahoituspalvelut (pl. vakuutus- ja eläkevakuutustoiminta)",4153]
[null,"6491 Rahoitusleasing",19]
[null,"64910 Rahoitusleasing",19]
[null,"6492 Muu luotonanto",119]
[null,"64920 Muu luotonanto",119]
[null,"6499 Muualla luokittelemattomat rahoituspalvelut (pl. vakuutus- ja eläkevakuutustoiminta)",4015]
[null,"64990 Muualla luokittelemattomat rahoituspalvelut (pl. vakuutus- ja eläkevakuutustoiminta)",4015]
[null,"65 Vakuutus-, jälleenvakuutus- ja eläkevakuutustoiminta (pl. pakollinen sosiaalivakuutus)",116]
[null,"651 Vakuutustoiminta",87]
[null,"6511 Henkivakuutustoiminta",14]
[null,"65110 Henkivakuutustoiminta",14]
[null,"6512 Muu vakuutustoiminta",73]
[null,"65121 Vahinkovakuutusyhtiöt",62]
[null,"65122 Vakuutusyhdistykset",7]
[null,"65129 Muu vahinkovakuutus",4]
[null,"653 Eläkevakuutustoiminta",29]
[null,"6530 Eläkevakuutustoiminta",29]
[null,"65300 Eläkevakuutustoiminta",29]
[null,"66 Rahoitusta ja vakuuttamista palveleva toiminta",2519]
[null,"661 Rahoitusta ja vakuuttamista palveleva toiminta (pl. vakuutus- ja eläkevakuutustoiminta)",1117]
[null,"6611 Pörssitoiminta ja rahoitusmarkkinoiden hallinnolliset tukipalvelut",7]
[null,"66110 Pörssitoiminta ja rahoitusmarkkinoiden hallinnolliset tukipalvelut",7]
[null,"6612 Arvopaperien ja raaka-ainesopimusten välittäminen",43]
[null,"66120 Arvopaperien ja raaka-ainesopimusten välittäminen",43]
[null,"6619 Muu rahoitusta palveleva toiminta (pl. vakuutus- ja eläkevakuutustoiminta)",1067]
[null,"66190 Muu rahoitusta palveleva toiminta (pl. vakuutus- ja eläkevakuutustoiminta)",1067]
[null,"662 Vakuutus- ja eläkevakuutustoimintaa avustava toiminta",988]
[null,"6621 Riskin- ja vahingonarviointi",48]
[null,"66210 Riskin- ja vahingonarviointi",48]
[null,"6622 Vakuutusasiamiesten ja -välittäjien toiminta",876]
[null,"66220 Vakuutusasiamiesten ja -välittäjien toiminta",876]
[null,"6629 Muu vakuutus- ja eläkevakuutustoimintaa avustava toiminta",64]
[null,"66290 Muu vakuutus- ja eläkevakuutustoimintaa avustava toiminta",64]
[null,"663 Omaisuudenhoitotoiminta",414]
[null,"6630 Omaisuudenhoitotoiminta",414]
[null,"66300 Omaisuudenhoitotoiminta",414]
[null,"L Kiinteistöalan toiminta",27420]
[null,"68 Kiinteistöalan toiminta",27420]
[null,"681 Omien kiinteistöjen kauppa",959]
[null,"6810 Omien kiinteistöjen kauppa",959]
[null,"68100 Omien kiinteistöjen kauppa",959]
[null,"682 Omien tai leasing-kiinteistöjen vuokraus ja hallinta",23719]
[null,"6820 Omien tai leasing-kiinteistöjen vuokraus ja hallinta",23719]
[null,"68201 Asuntojen vuokraus",1936]
[null,"68202 Asuntojen ja asuinkiinteistöjen hallinta",2358]
[null,"68209 Muiden kiinteistöjen vuokraus ja hallinta",19425]
[null,"683 Kiinteistöalan toiminta palkkio- tai sopimusperusteisesti",2742]
[null,"6831 Kiinteistönvälitys",1443]
[null,"68310 Kiinteistönvälitys",1443]
[null,"6832 Kiinteistöjen isännöinti",1299]
[null,"68320 Kiinteistöjen isännöinti",1299]
[null,"M Ammatillinen, tieteellinen ja tekninen toiminta",35840]
[null,"69 Lakiasiain- ja laskentatoimen palvelut",6465]
[null,"691 Lakiasiainpalvelut",1684]
[null,"6910 Lakiasiainpalvelut",1684]
[null,"69101 Asianajotoimistot",818]
[null,"69102 Lakiasiaintoimistot",702]
[null,"69103 Patenttitoimistot",32]
[null,"69109 Muu lakiasiain palvelu",132]
[null,"692 Laskentatoimi, kirjanpito ja tilintarkastus: veroneuvonta",4781]
[null,"6920 Laskentatoimi, kirjanpito ja tilintarkastus: veroneuvonta",4781]
[null,"69201 Kirjanpito- ja tilinpäätöspalvelu",4235]
[null,"69202 Tilintarkastuspalvelu",475]
[null,"69209 Muu laskentatoimen palvelu",71]
[null,"70 Pääkonttorien toiminta: liikkeenjohdon konsultointi",9412]
[null,"701 Pääkonttorien toiminta",".."]
[null,"7010 Pääkonttorien toiminta",".."]
[null,"70100 Pääkonttorien toiminta",".."]
[null,"702 Liikkeenjohdon konsultointi",9412]
[null,"7021 Suhdetoiminta ja viestintä",728]
[null,"70210 Suhdetoiminta ja viestintä",728]
[null,"7022 Muu liikkeenjohdon konsultointi",8684]
[null,"70220 Muu liikkeenjohdon konsultointi",8684]
[null,"71 Arkkitehti- ja insinööripalvelut: tekninen testaus ja analysointi",8104]
[null,"711 Arkkitehti- ja insinööripalvelut ja niihin liittyvä tekninen konsultointi",7581]
[null,"7111 Arkkitehtipalvelut",1385]
[null,"71110 Arkkitehtipalvelut",1385]
[null,"7112 Insinööripalvelut ja niihin liittyvä tekninen konsultointi",6196]
[null,"71121 Yhdyskuntasuunnittelu",434]
[null,"71122 Maa- ja vesirakentamisen tekninen palvelu",188]
[null,"71123 Rakennetekninen palvelu",881]
[null,"71124 LVI-tekninen suunnittelu",488]
[null,"71125 Sähkötekninen suunnittelu",711]
[null,"71126 Muu rakennustekninen palvelu",1557]
[null,"71127 Kone- ja prosessisuunnittelu",1347]
[null,"71129 Muu tekninen palvelu",590]
[null,"712 Tekninen testaus ja analysointi",523]
[null,"7120 Tekninen testaus ja analysointi",523]
[null,"71201 Autokatsastus",151]
[null,"71202 Muu tekninen testaus ja analysointi",372]
[null,"72 Tieteellinen tutkimus ja kehittäminen",599]
[null,"721 Luonnontieteen ja tekniikan tutkimus ja kehittäminen",534]
[null,"7211 Biotekninen tutkimus ja kehittäminen",67]
[null,"72110 Biotekninen tutkimus ja kehittäminen",67]
[null,"7219 Muu luonnontieteellinen ja tekninen tutkimus ja kehittäminen",467]
[null,"72191 Lääketieteellinen tutkimus ja kehittäminen",149]
[null,"72192 Muu luonnontieteellinen tutkimus ja kehittäminen",89]
[null,"72193 Tekniikan tutkimus ja kehittäminen",229]
[null,"722 Yhteiskuntatieteellinen ja humanistinen tutkimus ja kehittäminen",65]
[null,"7220 Yhteiskuntatieteellinen ja humanistinen tutkimus ja kehittäminen",65]
[null,"72200 Yhteiskuntatieteellinen ja humanistinen tutkimus ja kehittäminen",65]
[null,"73 Mainostoiminta ja markkinatutkimus",3547]
[null,"731 Mainostoiminta",3426]
[null,"7311 Mainostoimistot ja mainospalvelu",3291]
[null,"73111 Mainostoimistot",2668]
[null,"73112 Suora- ja ulkomainonta",341]
[null,"73119 Muu mainospalvelu",282]
[null,"7312 Mainostilan vuokraus ja myynti",135]
[null,"73120 Mainostilan vuokraus ja myynti",135]
[null,"732 Markkina- ja mielipidetutkimukset",121]
[null,"7320 Markkina- ja mielipidetutkimukset",121]
[null,"73200 Markkina- ja mielipidetutkimukset",121]
[null,"74 Muut erikoistuneet palvelut liike-elämälle",6569]
[null,"741 Taideteollinen muotoilu ja suunnittelu",2016]
[null,"7410 Taideteollinen muotoilu ja suunnittelu",2016]
[null,"74101 Graafinen muotoilu",677]
[null,"74102 Sisustussuunnittelu",736]
[null,"74109 Teollinen muotoilu ym.",603]
[null,"742 Valokuvaustoiminta",1222]
[null,"7420 Valokuvaustoiminta",1222]
[null,"74201 Valokuvaamot ja muu kuvaustoiminta",1207]
[null,"74202 Valokuvien kehittäminen",15]
[null,"743 Kääntäminen ja tulkkaus",1297]
[null,"7430 Kääntäminen ja tulkkaus",1297]
[null,"74300 Kääntäminen ja tulkkaus",1297]
[null,"749 Muualla luokittelemattomat erikoistuneet palvelut liike-elämälle",2034]
[null,"7490 Muualla luokittelemattomat erikoistuneet palvelut liike-elämälle",2034]
[null,"74901 Ohjelmatoimistot ja manageripalvelut",899]
[null,"74909 Muu ammatillinen, tieteellinen ja tekninen toiminta",1135]
[null,"75 Eläinlääkintäpalvelut",1144]
[null,"750 Eläinlääkintäpalvelut",1144]
[null,"7500 Eläinlääkintäpalvelut",1144]
[null,"75000 Eläinlääkintäpalvelut",1144]
[null,"N Hallinto- ja tukipalvelutoiminta",13976]
[null,"77 Vuokraus- ja leasingtoiminta",1266]
[null,"771 Moottoriajoneuvojen vuokraus ja leasing",342]
[null,"7711 Autojen ja kevyiden moottoriajoneuvojen vuokraus ja leasing",277]
[null,"77110 Autojen ja kevyiden moottoriajoneuvojen vuokraus ja leasing",277]
[null,"7712 Kuorma-autojen ja muiden raskaiden ajoneuvojen vuokraus ja leasing",65]
[null,"77120 Kuorma-autojen ja muiden raskaiden ajoneuvojen vuokraus ja leasing",65]
[null,"772 Henkilökohtaisten ja kotitaloustavaroiden vuokraus ja leasing",139]
[null,"7721 Vapaa-ajan ja urheiluvälineiden vuokraus ja leasing",73]
[null,"77210 Vapaa-ajan ja urheiluvälineiden vuokraus ja leasing",73]
[null,"7722 Videofilmien vuokraus",15]
[null,"77220 Videofilmien vuokraus",15]
[null,"7729 Muiden henkilökohtaisten ja kotitaloustavaroiden vuokraus ja leasing",51]
[null,"77290 Muiden henkilökohtaisten ja kotitaloustavaroiden vuokraus ja leasing",51]
[null,"773 Koneiden ja laitteiden vuokraus ja leasing",730]
[null,"7731 Maatalouskoneiden ja -laitteiden vuokraus ja leasing",46]
[null,"77310 Maatalouskoneiden ja -laitteiden vuokraus ja leasing",46]
[null,"7732 Rakennuskoneiden ja -laitteiden vuokraus ja leasing",290]
[null,"77320 Rakennuskoneiden ja -laitteiden vuokraus ja leasing",290]
[null,"7733 Toimistokoneiden ja -laitteiden sekä tietokoneiden vuokraus ja leasing",23]
[null,"77330 Toimistokoneiden ja -laitteiden sekä tietokoneiden vuokraus ja leasing",23]
[null,"7734 Vesiliikennevälineiden vuokraus ja leasing",26]
[null,"77340 Vesiliikennevälineiden vuokraus ja leasing",26]
[null,"7735 Ilmaliikennevälineiden vuokraus ja leasing",14]
[null,"77350 Ilmaliikennevälineiden vuokraus ja leasing",14]
[null,"7739 Muiden koneiden ja laitteiden vuokraus ja leasing",331]
[null,"77390 Muiden koneiden ja laitteiden vuokraus ja leasing",331]
[null,"774 Henkisen omaisuuden ja vastaavien tuotteiden leasing (pl. tekijänoikeuden suojaamat teokset)",55]
[null,"7740 Henkisen omaisuuden ja vastaavien tuotteiden leasing (pl. tekijänoikeuden suojaamat teokset)",55]
[null,"77400 Henkisen omaisuuden ja vastaavien tuotteiden leasing (pl. tekijänoikeuden suojaamat teokset)",55]
[null,"78 Työllistämistoiminta",1379]
[null,"781 Työnvälitystoiminta",81]
[null,"7810 Työnvälitystoiminta",81]
[null,"78100 Työnvälitystoiminta",81]
[null,"782 Työvoiman vuokraus",1135]
[null,"7820 Työvoiman vuokraus",1135]
[null,"78200 Työvoiman vuokraus",1135]
[null,"783 Muut henkilöstön hankintapalvelut",163]
[null,"7830 Muut henkilöstön hankintapalvelut",163]
[null,"78300 Muut henkilöstön hankintapalvelut",163]
[null,"79 Matkatoimistojen ja matkanjärjestäjien toiminta: varauspalvelut",1442]
[null,"791 Matkatoimistojen ja matkanjärjestäjien toiminta",379]
[null,"7911 Matkatoimistojen toiminta",237]
[null,"79110 Matkatoimistojen toiminta",237]
[null,"7912 Matkanjärjestäjien toiminta",142]
[null,"79120 Matkanjärjestäjien toiminta",142]
[null,"799 Varauspalvelut, matkaoppaiden palvelut ym.",1063]
[null,"7990 Varauspalvelut, matkaoppaiden palvelut ym.",1063]
[null,"79900 Varauspalvelut, matkaoppaiden palvelut ym.",1063]
[null,"80 Turvallisuus-, vartiointi- ja etsiväpalvelut",612]
[null,"801 Yksityiset turvallisuuspalvelut",389]
[null,"8010 Yksityiset turvallisuuspalvelut",389]
[null,"80100 Yksityiset turvallisuuspalvelut",389]
[null,"802 Turvallisuusjärjestelmät",223]
[null,"8020 Turvallisuusjärjestelmät",223]
[null,"80200 Turvallisuusjärjestelmät",223]
[null,"803 Etsivätoiminta",".."]
[null,"8030 Etsivätoiminta",".."]
[null,"80300 Etsivätoiminta",".."]
[null,"81 Kiinteistön- ja maisemanhoito",7734]
[null,"811 Kiinteistönhoito",2837]
[null,"8110 Kiinteistönhoito",2837]
[null,"81100 Kiinteistönhoito",2837]
[null,"812 Siivouspalvelut",4194]
[null,"8121 Kiinteistöjen siivous",3175]
[null,"81210 Kiinteistöjen siivous",3175]
[null,"8122 Muu rakennus- ja teollisuussiivous",549]
[null,"81220 Muu rakennus- ja teollisuussiivous",549]
[null,"8129 Muu siivoustoiminta",470]
[null,"81291 Katujen ja teiden puhtaanapito",328]
[null,"81299 Muualla luokittelemattomat siivouspalvelut",142]
[null,"813 Maisemanhoitopalvelut",703]
[null,"8130 Maisemanhoitopalvelut",703]
[null,"81300 Maisemanhoitopalvelut",703]
[null,"82 Hallinto- ja tukipalvelut liike-elämälle",1543]
[null,"821 Hallinto- ja toimistopalvelut",437]
[null,"8211 Yhdistetyt toimistopalvelut",313]
[null,"82110 Yhdistetyt toimistopalvelut",313]
[null,"8219 Sihteeri-, toimisto- ja postituspalvelut",124]
[null,"82191 Sihteeri- ja muu toimistopalvelu",109]
[null,"82192 Postituspalvelut",15]
[null,"822 Puhelinpalvelukeskusten toiminta",191]
[null,"8220 Puhelinpalvelukeskusten toiminta",191]
[null,"82200 Puhelinpalvelukeskusten toiminta",191]
[null,"823 Messujen ja kongressien järjestäminen",256]
[null,"8230 Messujen ja kongressien järjestäminen",256]
[null,"82300 Messujen ja kongressien järjestäminen",256]
[null,"829 Muu liike-elämää palveleva toiminta",659]
[null,"8291 Perintä- ja luottotietopalvelut",76]
[null,"82910 Perintä- ja luottotietopalvelut",76]
[null,"8292 Pakkauspalvelut",85]
[null,"82920 Pakkauspalvelut",85]
[null,"8299 Muut palvelut liike-elämälle",498]
[null,"82990 Muut palvelut liike-elämälle",498]
[null,"P Koulutus",3631]
[null,"85 Koulutus",3631]
[null,"852 Alemman perusasteen koulutus",".."]
[null,"8520 Alemman perusasteen koulutus",".."]
[null,"85200 Alemman perusasteen koulutus",".."]
[null,"853 Ylemmän perusasteen ja keskiasteen koulutus",41]
[null,"8531 Ylemmän perusasteen koulutus ja lukiokoulutus",1]
[null,"85311 Ylemmän perusasteen koulutus",1]
[null,"8532 Keskiasteen ammatillinen koulutus",40]
[null,"85320 Keskiasteen ammatillinen koulutus",40]
[null,"854 Korkea-asteen koulutus",2]
[null,"8542 Korkea-asteen koulutus yliopistoissa ja ammattikorkeakouluissa",2]
[null,"85420 Korkea-asteen koulutus yliopistoissa ja ammattikorkeakouluissa",2]
[null,"855 Muu koulutus",3271]
[null,"8551 Urheilu- ja liikuntakoulutus",812]
[null,"85510 Urheilu- ja liikuntakoulutus",812]
[null,"8552 Taiteen ja musiikin koulutus",367]
[null,"85520 Taiteen ja musiikin koulutus",367]
[null,"8553 Kuljettajakoulutus",543]
[null,"85530 Kuljettajakoulutus",543]
[null,"8559 Muualla luokittelematon koulutus",1549]
[null,"85591 Kansanopistot, kansalaisopistot, työväenopistot yms.",10]
[null,"85592 Koulutuskeskukset",65]
[null,"85593 Kielikoulut ja -opistot",109]
[null,"85599 Muut koulutusta antavat yksiköt",1365]
[null,"856 Koulutusta palveleva toiminta",316]
[null,"8560 Koulutusta palveleva toiminta",316]
[null,"85600 Koulutusta palveleva toiminta",316]
[null,"Q Terveys- ja sosiaalipalvelut",18423]
[null,"86 Terveyspalvelut",15234]
[null,"861 Terveydenhuollon laitospalvelut",46]
[null,"8610 Terveydenhuollon laitospalvelut",46]
[null,"86101 Varsinaiset sairaalapalvelut",20]
[null,"86102 Kuntoutuslaitokset ja sairaskodit",26]
[null,"862 Lääkäri- ja hammaslääkäripalvelut",6383]
[null,"8621 Terveyskeskus- ja vastaavat yleislääkäripalvelut",14]
[null,"86210 Terveyskeskus- ja vastaavat yleislääkäripalvelut",14]
[null,"8622 Lääkäriasemat, yksityislääkärit ja vastaavat erikoislääkäripalvelut",4748]
[null,"86220 Lääkäriasemat, yksityislääkärit ja vastaavat erikoislääkäripalvelut",4748]
[null,"8623 Hammaslääkäripalvelut",1621]
[null,"86230 Hammaslääkäripalvelut",1621]
[null,"869 Muut terveydenhuoltopalvelut",8805]
[null,"8690 Muut terveydenhuoltopalvelut",8805]
[null,"86901 Fysioterapia",2518]
[null,"86902 Laboratoriotutkimukset",55]
[null,"86903 Kuvantamistutkimukset",34]
[null,"86904 Sairaankuljetuspalvelut",79]
[null,"86909 Muu terveyspalvelu",6119]
[null,"87 Sosiaalihuollon laitospalvelut",1047]
[null,"871 Sosiaalihuollon hoitolaitokset",40]
[null,"8710 Sosiaalihuollon hoitolaitokset",40]
[null,"87101 Ikääntyneiden hoitolaitokset",39]
[null,"87102 Vammaisten hoitolaitokset (pl. kehitysvammaisten laitospalvelut)",1]
[null,"872 Kehitysvammaisten sekä mielenterveys- ja päihdeongelmaisten asumispalvelut",258]
[null,"8720 Kehitysvammaisten sekä mielenterveys- ja päihdeongelmaisten asumispalvelut",258]
[null,"87201 Kehitysvammaisten laitokset ja asumispalvelut",88]
[null,"87202 Mielenterveysongelmaisten asumispalvelut",140]
[null,"87203 Päihdeongelmaisten laitokset",11]
[null,"87204 Päihdeongelmaisten asumispalvelut",19]
[null,"873 Vanhusten ja vammaisten asumispalvelut",286]
[null,"8730 Vanhusten ja vammaisten asumispalvelut",286]
[null,"87301 Ikääntyneiden palveluasuminen",266]
[null,"87302 Vammaisten palveluasuminen (pl. kehitysvammaisten palveluasuminen)",20]
[null,"879 Muut sosiaalihuollon laitospalvelut",463]
[null,"8790 Muut sosiaalihuollon laitospalvelut",463]
[null,"87901 Lasten ja nuorten laitokset ja ammatillinen perhehoito",438]
[null,"87902 Ensi- ja turvakodit",1]
[null,"87909 Muut laitokset ja asumispalvelut",24]
[null,"88 Sosiaalihuollon avopalvelut",2142]
[null,"881 Vanhusten ja vammaisten sosiaalihuollon avopalvelut",1015]
[null,"8810 Vanhusten ja vammaisten sosiaalihuollon avopalvelut",1015]
[null,"88101 Kotipalvelut ikääntyneille ja vammaisille",973]
[null,"88102 Ikääntyneiden päivätoiminta",6]
[null,"88103 Vammaisten päivä- ja työtoiminta",7]
[null,"88109 Muut vanhusten ja vammaisten avopalvelut",29]
[null,"889 Muut sosiaalihuollon avopalvelut",1127]
[null,"8891 Lasten päivähoitopalvelut",556]
[null,"88911 Lasten päiväkodit",446]
[null,"88919 Muu lasten päivähoito",110]
[null,"8899 Muualla luokittelemattomat sosiaalihuollon avopalvelut",571]
[null,"88991 Kotipalvelut muille kuin ikääntyneille ja vammaisille",212]
[null,"88992 Päivä- ja työtoiminta muille kuin ikääntyneille ja vammaisille",19]
[null,"88993 Avomuotoinen päihdekuntoutus",6]
[null,"88999 Muut muualla luokittelemattomat sosiaalihuollon avopalvelut",334]
[null,"R Taiteet, viihde ja virkistys",7224]
[null,"90 Kulttuuri- ja viihdetoiminta",3242]
[null,"900 Kulttuuri- ja viihdetoiminta",3242]
[null,"9001 Esittävät taiteet",1118]
[null,"90010 Esittävät taiteet",1118]
[null,"9002 Esittäviä taiteita palveleva toiminta",629]
[null,"90020 Esittäviä taiteita palveleva toiminta",629]
[null,"9003 Taiteellinen luominen",1483]
[null,"90030 Taiteellinen luominen",1483]
[null,"9004 Taidelaitosten toiminta",12]
[null,"90040 Taidelaitosten toiminta",12]
[null,"91 Kirjastojen, arkistojen, museoiden ja muiden kulttuurilaitosten toiminta",52]
[null,"910 Kirjastojen, arkistojen, museoiden ja muiden kulttuurilaitosten toiminta",52]
[null,"9101 Kirjastojen ja arkistojen toiminta",7]
[null,"91010 Kirjastojen ja arkistojen toiminta",7]
[null,"9102 Museoiden toiminta",28]
[null,"91020 Museoiden toiminta",28]
[null,"9104 Kasvitieteellisten puutarhojen, eläintarhojen ja luonnonpuistojen toiminta",17]
[null,"91040 Kasvitieteellisten puutarhojen, eläintarhojen ja luonnonpuistojen toiminta",17]
[null,"92 Rahapeli- ja vedonlyöntipalvelut",26]
[null,"920 Rahapeli- ja vedonlyöntipalvelut",26]
[null,"9200 Rahapeli- ja vedonlyöntipalvelut",26]
[null,"92000 Rahapeli- ja vedonlyöntipalvelut",26]
[null,"93 Urheilutoiminta sekä huvi- ja virkistyspalvelut",3904]
[null,"931 Urheilutoiminta",3287]
[null,"9311 Urheilulaitosten toiminta",611]
[null,"93110 Urheilulaitosten toiminta",611]
[null,"9312 Urheiluseurojen toiminta",145]
[null,"93120 Urheiluseurojen toiminta",145]
[null,"9313 Kuntokeskukset",453]
[null,"93130 Kuntokeskukset",453]
[null,"9319 Muu urheilutoiminta",2078]
[null,"93190 Muu urheilutoiminta",2078]
[null,"932 Huvi- ja virkistystoiminta",617]
[null,"9321 Huvi- ja teemapuistojen toiminta",65]
[null,"93210 Huvi- ja teemapuistojen toiminta",65]
[null,"9329 Muu huvi- ja virkistystoiminta",552]
[null,"93291 Hiihto- ja laskettelukeskukset",56]
[null,"93299 Muualla luokittelematon huvi- ja virkistystoiminta",496]
[null,"S Muu palvelutoiminta",19350]
[null,"94 Järjestöjen toiminta",756]
[null,"941 Elinkeinoelämän, työnantaja- ja ammattialajärjestöjen toiminta",711]
[null,"9411 Elinkeinoelämän ja työnantajajärjestöjen toiminta",218]
[null,"94110 Elinkeinoelämän ja työnantajajärjestöjen toiminta",218]
[null,"9412 Ammattialajärjestöjen toiminta",493]
[null,"94120 Ammattialajärjestöjen toiminta",493]
[null,"949 Muiden järjestöjen toiminta",44]
[null,"9491 Seurakunnat ja uskonnolliset järjestöt",3]
[null,"94910 Seurakunnat ja uskonnolliset järjestöt",3]
[null,"9492 Poliittiset järjestöt",2]
[null,"94920 Poliittiset järjestöt",2]
[null,"9499 Muut järjestöt",39]
[null,"94991 Tutkimusta ja kulttuuria palvelevat järjestöt",3]
[null,"94999 Muualla luokittelemattomat muut järjestöt",36]
[null,"95 Tietokoneiden, henkilökohtaisten ja kotitaloustavaroiden korjaus",1607]
[null,"951 Tietokoneiden ja viestintälaitteiden korjaus",239]
[null,"9511 Tietokoneiden ja niiden oheislaitteiden korjaus",189]
[null,"95110 Tietokoneiden ja niiden oheislaitteiden korjaus",189]
[null,"9512 Viestintälaitteiden korjaus",50]
[null,"95120 Viestintälaitteiden korjaus",50]
[null,"952 Henkilökohtaisten ja kotitaloustavaroiden korjaus",1368]
[null,"9521 Viihde-elektroniikan korjaus",106]
[null,"95210 Viihde-elektroniikan korjaus",106]
[null,"9522 Kotitalouskoneiden sekä kodin ja puutarhan laitteiden korjaus",396]
[null,"95220 Kotitalouskoneiden sekä kodin ja puutarhan laitteiden korjaus",396]
[null,"9523 Jalkineiden ja nahkatavaroiden korjaus",203]
[null,"95230 Jalkineiden ja nahkatavaroiden korjaus",203]
[null,"9524 Huonekalujen ja kodin kalusteiden korjaus",305]
[null,"95240 Huonekalujen ja kodin kalusteiden korjaus",305]
[null,"9525 Kellojen ja korujen korjaus",58]
[null,"95250 Kellojen ja korujen korjaus",58]
[null,"9529 Muiden henkilökohtaisten ja kotitaloustavaroiden korjaus",300]
[null,"95290 Muiden henkilökohtaisten ja kotitaloustavaroiden korjaus",300]
[null,"96 Muut henkilökohtaiset palvelut",16987]
[null,"960 Muut henkilökohtaiset palvelut",16987]
[null,"9601 Pesulapalvelut",298]
[null,"96011 Pesulapalvelut yrityksille",173]
[null,"96012 Pesulapalvelut kotitalouksille",125]
[null,"9602 Kampaamo- ja kauneudenhoitopalvelut",13297]
[null,"96021 Parturit ja kampaamot",9930]
[null,"96022 Kauneudenhoitopalvelut",3367]
[null,"9603 Hautaustoimistojen palvelut",383]
[null,"96030 Hautaustoimistojen palvelut",383]
[null,"9604 Kylpylaitokset, saunat, solariumit yms. palvelut",1757]
[null,"96040 Kylpylaitokset, saunat, solariumit yms. palvelut",1757]
[null,"9609 Muualla luokittelemattomat henkilökohtaiset palvelut",1252]
[null,"96090 Muualla luokittelemattomat henkilökohtaiset palvelut",1252]
[null,"X Toimiala tuntematon",82]
[null,"851 Esiasteen koulutus",1]
[null,"8510 Esiasteen koulutus",1]
[null,"85100 Esiasteen koulutus",1]
[null,"942 Ammattiyhdistysten toiminta",1]
[null,"9420 Ammattiyhdistysten toiminta",1]
[null,"94200 Ammattiyhdistysten toiminta",1]
[]
[null,".. = Tietoa ei ole saatu, se on epävarma tai salaussäännön alainen."]
[]
[null,"Muistiinpanoja:"]
[]
["Lähde:"]
["Suomen virallinen tilasto (SVT): Yritysten rakenne- ja tilinpäätöstilasto [verkkojulkaisu]."]
["ISSN=2342-6217. Helsinki: Tilastokeskus [viitattu: 11.1.2018]."]
["Saantitapa: http://www.stat.fi/til/yrti/index.html"]
["Yritysten rakenne- ja tilinpäätöstilasto sisältää toimialoittaisia tietoja yritysten lukumäärästä, henkilöstöstä sekä tilinpäätöksistä."]
[]
["Tilastovuosi:","Tilastovuosi on se kalenterivuosi, jota tilasto koskee."]
[]
["Päivitetty viimeksi:","20171218 09:00"]
[]
["Lähde:","Tilastokeskus"]
[]
["Yhteystiedot:"]
[null,"<A HREF=http://www.stat.fi/til/yrti/yht.html TARGET=_blank>Lisätietoja</A>"]
[null,"<A HREF=http://www.stat.fi/til/yrti/index.html TARGET=_blank>Tilaston kotisivu</A>"]
[]
["Tekijänoikeus"]
[]
["Yksikkö:","Tuhatta euroa, henkilötyövuotta, kappaletta"]
[]
["Tilastotietokannat:","StatFin"]
[]
["Sisäinen viitekoodi:","yrti_002_201600"]

{"sheet":"Apu2_Aika per tehtävä","index":8,"n_rows":36,"n_cols":16,"rows_kept":36,"cut":false,"hidden":false,"merged":[[7,1,7,16],[5,1,5,16],[4,1,4,16],[3,1,3,16],[33,12,33,14],[6,1,6,16],[11,1,13,1],[11,4,11,15],[11,2,13,2],[11,3,13,3],[8,1,8,16]]}
["Aputaulukko 2 - lain edellyttämän tehtävän suorittamiseen kuluva aika vuodessa"]
["Perustuu standardikustannusmallin (SCM) mukaiseen arviointiin (ks. OM 2007:6 ja SCM Network)"]
["Ohjeet:"]
["1 )","Sääntelytaakan laskennan perustekijänä on se työaika, jonka joku tai jotkut yrityksen työntekijöistä joutuu/joutuvat käyttämään lain edellyttämän tehtävän suorittamiseen (esim. jonkin asian ilmoittaminen viranomaiselle). Vaihtoehtoisesti yritys voi myös ulkoistaa jonkin tehtävän (esim. tilintarkastus), jolloin ulkoistuskustannus lasketaan muiden kustannusten yhteydessä (välilehti 3_Muut kustannukset)."]
["2 )","Tätä välilehteä voit käyttää apuna arvioidessasi lain edellyttämään tehtävään käytettävää kokonaisaikaa."]
["3 )","Tietoa tai arviota lain edellyttämän tehtävän vaatimasta työajasta voi kysyä esimerkiksi lakia valmistelevan työryhmän jäseniltä, toimialayhdistyksiltä, toimialan sääntelyviranomaiselta tai suoraan yrityksiltä."]
["4 )","Ensin voi arvioida paljonko käytetty aika on tehtäväkohtaisesti (tehtävän kesto per yksi tehtäväkerta) ja tämän jälkeen taulukosta voi katsoa kokonaisajan riippuen siitä, kuinka monta kertaa vuodessa laki edellyttää tehtävän suorittamisen (frekvenssi)."]
["5 )","Alla olevan taulukon avulla voi myös arvioida sitä, 1) kuinka paljon suurempi kustannus yrityksille aiheutuu, jos esim. jokin ilmoitusvelvollisuus on neljästi vuodessa sen sijaan, että se olisi vain kerran vuodessa tai 2) onko jokin ilmoitusvelvollisuus ylipäätään tarpeen lain tavoitteiden saavuttamiseksi (kustannus-hyöty-analyysi per lain yrityksille asettama velvoite)."]
["6 )","Tieto tai paras mahdollinen arvio tehtävään käytettävästä ajasta syötetään laskelmaan tämän taulukon välilehdelle 2B_Työkustannus."]
[]
[]
[null,"Kuinka usein lain edellyttämä tehtävä tulee suorittaa","Kuinka monta kertaa vuodessa tehtävä suoritetaan (frekvenssi)","Aika tunteina","Tehtävän kesto per yksi tehtäväkerta"]
[null,null,null,null,"1 min","15 min","30 min","1 tunti","2 tuntia","3 tuntia","…","1 työpäivää","2 työpäivää","3 työpäivää","4 työpäivää","5 työpäivää"]
[null,null,null,null,{"$f":"1/60","v":1.6666666666666666E-2},0.25,0.5,1,2,3,null,{"$f":"'2B_Työkustannus'!E80","v":7.5780000000000003},{"$f":"2*L14","v":15.156000000000001},{"$f":"3*$L$14","v":22.734000000000002},{"$f":"4*$L$14","v":30.312000000000001},{"$f":"5*$L$14","v":37.89}]
[null,"joka päivä",365,null,{"$f":"$C15*E$14","v":6.083333333333333},{"$f":"$C15*F$14","v":91.25},182.5,365,730,1095,null,{"$f":"$C15*L$14","v":2765.9700000000003},"-","-","-","-"]
[null,"joka viikko",52,null,0.8666666666666667,13,26,52,104,156,null,{"$f":"$C16*L$14","v":394.05600000000004},788.11200000000008,1182.1680000000001,1576.2240000000002,1970.28]
[null,"kerran kuukaudessa",12,null,0.2,3,6,12,24,36,null,90.936000000000007,181.87200000000001,272.80799999999999,363.74400000000003,454.68]
[null,"neljä kertaa vuodessa",4,null,6.6666666666666666E-2,1,2,4,8,12,null,30.312000000000001,60.624000000000002,90.936000000000007,121.248,151.56]
[null,"kaksi kertaa vuodessa",2,null,3.3333333333333333E-2,0.5,1,2,4,6,null,15.156000000000001,30.312000000000001,45.468000000000004,60.624000000000002,75.78]
[null,"kerran vuodessa",1,null,1.6666666666666666E-2,0.25,0.5,1,2,3,null,7.5780000000000003,15.156000000000001,22.734000000000002,30.312000000000001,37.89]
[]
[]
[null,"Alla esimerkki, jossa"]
[null,"yrityksen työntekijät laativat ja toimittavat TUKESille kaivoslain edellyttämän kaivoskartan. Oletuksena on, että yrityksiltä saatujen tietojen mukaan keskimäärin ",null,null,null,null,null,null,null,null,"Tämä vain esimerkinomaisesti."]
[null,"- asiantuntijalta kuluu kartan laatimiseen 2 työpäivää (15,16 tuntia) ja ",null,null,null,null,null,null,null,null,"Tämä vain esimerkinomaisesti."]
[null,"- asiantuntijan apuna on avustaja, joka käyttää tehtävään puoli tuntia (0,5 h) ja",null,null,null,null,null,null,null,null,"Tämä vain esimerkinomaisesti."]
[null,"- johtaja tarkistaa ja hyväksyy laaditun kartan, johon kuluu 15 minuttia (0,25 h)",null,null,null,null,null,null,null,null,"Tämä vain esimerkinomaisesti."]
[null,"Lain mukaan kartta pitää toimittaa TUKESille kahdesti vuodessa (2 kertaa)",null,null,null,null,null,null,null,null,"Tämä vain esimerkinomaisesti."]
[null,"Siten laskelmaan merkittäisiin välilehdelle \"2B_Työkustannus\", Frekvenssi = 2, Johtajalle 0,25 tuntia, Asiantuntijalle 15,16 tuntia ja Avustajalle 0,5 tuntia",null,null,null,null,null,null,null,null,"Tämä vain esimerkinomaisesti."]
[null,"Laskentapohja laskee näistä keskimääräisen tuntipalkan ja lisää siihen palkan sivukulut sekä yleiskulun.",null,null,null,null,null,null,null,null,"Tämä vain esimerkinomaisesti."]
[]
[null,"Esimerkki ja apulaskupohja (tämä vain tarvittaessa esimerkkinä, täytä yritysvaikutusarvioinnin tiedot välilehdelle 2B_Työkustannus)"]
[]
[null,null,null,null,"Työntekijä 1",null,"Työntekijä 2",null,"Työntekijä 3",null,null,null,"Tehtävään käytetty työaika yhteensä"]
[null,null,"Tehtävä","Tehtävän kuvaus (välilehdeltä '1_Tehtäväluettelo')","Tyypillisesti tehtävän hoitaa (Työntekijä 1)","Työntekijän 1 tehtävään käyttämä aika (h)","Tyypillisesti tehtävässä avustaa (Työntekijä 2)","Työntekijän 2 tehtävään käyttämä aika (h)","Tyypillisesti tehtävää ohjaa/tarkistaa (Työntekijä 3)","Työntekijän 2 tehtävään käyttämä aika (h)","Lisää tarvittaessa työntekijöitä","Kuinka monta kertaa vuodessa tehtävä suoritetaan (frekvenssi)","Työntekijä 1","Työntekijä 2","Työntekijä 3"]
[null,"Esimerkki","Tehtävä1","Kaivoskartan laatiminen ja toimittaminen TUKESille","Asiantuntija",15.16,"Avustaja",0.5,"Johtaja",0.25,null,2,{"$f":"$L$36*F36","v":30.32},{"$f":"$L$36*H36","v":1},{"$f":"$L$36*J36","v":0.5}]

{"sheet":"Apu3_Laite tms kustannuksista","index":9,"n_rows":21,"n_cols":7,"rows_kept":21,"cut":false,"hidden":false,"merged":[[5,0,5,2],[19,0,21,2],[2,4,3,9],[20,4,21,9],[5,4,5,9]]}
["Aputaulukko 3 - Lain edellyttämien hankintojen kustannuslaskennasta"]
[]
["Edellyttääkö laki jonkin järjestelmän, ohjelmiston tai laitteen hankkimista tai päivittämistä?",null,null,null,"Kysy kohdejoukolta (yritykset, toimialajärjestö) miten näkevät nämä kustannuserät ja miten voisi tarvittaessa saada tarkempaa tietoa/arviota näistä."]
["Jos kyllä, niin käytä apuna lain aiheuttamien kustannusten arvioinnissa seuraavaa:"]
[]
["Jonkin järjestelmän, laitteen tms. (esim. maksupääte) hankkiminen voi aiheuttaa myös muita kustannuksia kuin itse laitteen. Kokonaiskustannusten arvioinnissa voi soveltaa ICT-hankinnoissa vakiintunutta omistamisen kokonaiskustannuksen laskentamallia - Total Cost of Ownership (TCO). ",null,null,null,"Sovella tarvittaessa muihinkin kuin IT-hankintoihin"]
[]
["Kokonaiskustannuksiin lasketaan mukaan lähtökohtaisesti seuraavat:",null,null,null,"Esimerkki","eur/vuosi/yritys","Kustannuserän toistuvuus"]
[1,"Laitteen (hardware) hankinta",null,null,"Laite",250,"kertaluonteinen"]
[2,"Ohjelmiston (software) hankinta",null,null,"Ohjelmisto",100,"kertaluonteinen"]
[3,"Asennus",null,null,"Asennus",1000,"kertaluonteinen"]
[4,"Johtaminen ja tuki ",null,null,"Johtaminen ja tuki",6000,"toistuva yhteensä vuodessa "]
[5,"Tietoliikenneyhteydet",null,null,"Tietoliikenneyhteydet",{"$f":"20*12","v":240},"toistuva yhteensä vuodessa "]
[6,"Käyttäjäkustannukset",null,null,"Käyttäjäkustannukset",0,"toistuva yhteensä vuodessa "]
[null,"Vaihtoehtoiskustannukset"]
[7,null,"järjestelmän alhaallaoloajalle (downtime)",null,"Alhaallaoloaika",520,"Toistuva"]
[8,null,"koulutukselle",null,"Koulutus",140,"Kertaluonteinen"]
[9,null,"muulle resurssille, joka on pois tuotannosta",null,"Muu",0]
[null,null,null,null,"Yhteensä 1. vuosi",{"$f":"SUM(F9:F18)","v":8250},"Kertaluonteiset + toistuvat 1. vuodelta"]
["Toisaalta laite tai järjestelmä (esim. maksupääte) voi olla käytössä joka tapauksessa (business as usual). Tällöin hankinnasta tulee kohdistaa kustannuksiin vain se osa, joka arvioidaan johtuvan nimenomaan lain velvoitteista, esimerkiksi 1 % kokonaisuudesta tai 10 %, 20 %, ... jne. tilanteen edellyttämällä tavalla.",null,null,null,"Yhteensä seuraavat vuodet",{"$f":"F12+F13+F16","v":6760},"Toistuvat yhteensä"]
[null,null,null,null,"Huomion kiinnittäminen laitehankinnasta henkilöstökuluihin. Huom. esimerkkilaskelmassa on valittu tarkoituksella tilanne, jossa itse laite- tms. hankinta on pieni, mutta henkilöstökuluina syntyy vuosittain merkittävä kustannus. "]

{"sheet":"Apu4_Yksinkert. esim. laskelma","index":10,"n_rows":107,"n_cols":16,"rows_kept":107,"cut":false,"hidden":false,"merged":[[57,1,69,1],[20,4,20,13],[21,4,21,13],[8,4,8,13],[9,4,9,13],[10,4,10,13],[11,4,11,13],[15,4,15,13]]}
["Yksinkertaistettu esimerkkilaskelma - VAIN ESIMERKINLUONTEINEN LASKELMA KOKONAISUUDEN HAHMOTTAMISEKSI"]
["Perustuu standardikustannusmallin (SCM) mukaiseen arviointiin (ks. OM 2007:6 ja SCM Network)"]
[]
[null,"Oletuksena velvoite, jonka hoitaa Asiantuntija (kuukausipalkka 3600 eur/kk)"]
[null,"Esim. jokin ilmoitus kvartaaleittain, johon kuluu á 2 tuntia"]
[null,"Toimialalla 400 yritystä"]
[null,"Lisäksi ensimmäisenä vuonna jokaiselle yritykselle aiheutuu kertaluontoinen 1000 euron koulutuskustannus."]
[]
[null,"Laskentatekijä","Arvo","Yksikkö","Selite, huomautus"]
[null,"Vuodessa velvoitteeseen käytetyt tunnit",8,"tuntia","Tehtävä 4 x á 2h = 8h. Ts. Frekvenssi = 4 ja asiantuntijan työtunnit 2,0h per kerta. Nämä syötetään välilehdelle 2."]
[null,"Tuntipalkkakustannus sivu- ja yleiskuluineen",34.46,"euroa","Saat tämän taulukon välilehden 2 avulla, kun syötät asiantuntijan kohdalle 2 tuntia (muut 0)"]
[null,"Työntekijäkustannus vuodessa",275.70719067156102,"euroa","Tämä näkyy välilehden 2 alaosassa. Laskee automaattisesti heti, kun olet syöttänyt em. tuntimäärän välilehdelle 2"]
[]
[null,"Koulutuskustannus",1000,"euroa"]
[]
[null,"Yritysten lukumäärä, kohdejoukko",400,"kappaletta","Lain kohteena olevien yritysten määrä. Tämä syötetään välilehdellä 2."]
[]
[null,"Toistuva kustannus yhteensä koko toimialalle",{"$f":"C16*C12","v":110282.87626862442},null,"=275,71 euroa x 400 yritystä"]
[null,"Kertaluontoinen kustannus koko toimialalle",{"$f":"C16*C14","v":400000},null,"=1000,00 euroa x 400 yritystä"]
[]
[null,"Kokonaiskustannus toimialalle ensimmäisenä vuotena",{"$f":"C18+C19","v":510282.87626862444},"euroa","1. vuoden kokonaiskustannus (kertaluonteinen + toistuva ensimmäisen vuoden osalta)"]
[null,"Kokonaiskustannus toimialalle seuraavina vuosina",{"$f":"C12*C16","v":110282.87626862442},"euroa","Vuotuinen kokonaiskustannus"]
[]
[null,"Vastaavasti laskettaisiin yrityksille kohdistuva säästö, jos esimerkin mukainen velvoite poistettaisiin."]
[]
[null,"Nettonykyarvo"]
[null,"Alla on esitetty myös nettonykyarvon laskenta yllä olevasta esimerkistä. Tätä lain valmistelijan ei tarvitse laskea, vaan taulukkolaskentapohja laskee sen automaattisesti. Tämä vain informaatiotarkoituksessa, jotta tulee esille lain vaikutus yli ajan (10 vuoden vaikutusjakso)."]
[]
[null,"Oletetaan seuraavat"]
[null,"Palkat nousevat vuosittain reaalisesti (ei inflaatiota)",1.7000000000000001E-2,null,null,"Vuosi"]
[null,"Käytetään diskonttauskorkona reaalista sosiaalista diskonttokorkoa",0.04,null,null,1,2,3,4,5,6,7,8,9,10]
[null,"(ks. TEM:n Yksi yhdestä -loppuraportti (19.12.2017), jossa nämä perusteltu)",null,null,"Kustannus",{"$f":"C21","v":510282.87626862444},{"$f":"$C$18*(1+$C$30)^G31","v":114064.36581299925},{"$f":"$C$18*(1+$C$30)^H31","v":116003.46003182023},117975.51885236117,119981.1026728513,122020.78141828976,124095.13470240065,{"$f":"$C$18*(1+$C$30)^M31","v":126204.75199234148},128350.23277621128,{"$f":"$C$18*(1+$C$30)^O31","v":130532.18673340685},"Huomioitu palkkojen reaalikasvu"]
[null,null,null,null,"Nykyarvo",{"$f":"F32/(1+$C$31)^$F$31","v":490656.61179675424},{"$f":"G32/(1+$C$31)^F31","v":109677.27482019158},{"$f":"H32/(1+$C$31)^G31","v":107251.71970397579},104879.80667206095,102560.34940912112,100292.18783565014,98074.187527746326,95905.239149728877,93784.25789930216,91710.182964990643]
[null,null,null,null,"Yhteensä 10 v",{"$f":"SUM(F33:O33)","v":1394791.8177795217}]
[]
[null,null,null,null,"Nykyarvo on ",{"$f":"F34","v":1394791.8177795217}]
[]
[null,"Ja vielä aivan yksinkertainen esimerkki nykyarvon laskemisesta"]
[null,"Kustannus euroa joka vuosi.",100]
[null,"Diskonttauskorko",0.1]
[null,null,null,null,null,"Vuosi"]
[null,null,null,null,null,1,2,3]
[null,null,null,null,"Kustannus",100,100,100]
[null,null,null,null,"Nykyarvo",{"$f":"F43/(1+$C$40)^F31","v":90.909090909090907},{"$f":"G43/(1+$C$40)^G31","v":82.644628099173545},{"$f":"H43/(1+$C$40)^H31","v":75.131480090157751}]
[null,null,null,null,"Yhteensä",{"$f":"SUM(F44:O44)","v":248.68519909842223}]
[]
[null,null,null,null,"Nykyarvo on ",{"$f":"F45","v":248.68519909842223},null,"Toisin sanoen, on samanarvoista saada tänään 248,7 euroa kuin saada vuoden, kahden ja kolmen kuluttua 100 euroa."]
[null,null,null,null,null,null,null,"Tämän voi ajatella myös niin, että jos tänään aiheutetaan yrityksille n. 250 euron kustannus, niin vuosittain toistuvana säästönä "]
[null,null,null,null,null,null,null,"pitäisi olla 100 euroa seuraavan 3 vuoden aikana, jotta aiheutettu kustannus ja säästö olisivat nykyarvoltaan samansuuruisia. "]
[null,"Annualisoidulla nettonykyarvolla tarkoitetaan puolestaan seuraavaa (esimerkki):"]
[]
[null,null,null,null,null,"Vuosittain"]
[null,"Tarkastellaan 10 vuoden ajanjaksoa kahdessa eri tapauksessa A ja B.",null,"Kertaluonteinen kustannus",null,"toistuva kustannus",null,null,"Kesto (n)"]
[null,"Tapauksessa A aiheutuu vuosittain toistuva 100 euron kustannussäästö 10 vuodelle.",null,0,"euroa",-100,"euroa",10,"vuotta"]
[null,"Tapauksessa B aiheutuu 500 euron kertaluontein kustannus ensimmäisenä vuonna ja 74 euron toistuva kustannus 5 vuoden ajan, jonka jälkeen ei kustannuksia.",null,500,"euroa",74,"euroa",10,"vuotta"]
[null,"Oletetaan diskonttauskoroksi (r) ",0.04]
[]
[null,"Tapauksen A ja B kustannuserät kohdentuvat hyvin eri tavalla 10 vuoden ajanjaksolle. Tapauksen B toistuva erä on tapausta A itseisarvoltaan pienempi ja tapauksessa B ei aiheudu kustannuksia enää viidennen vuoden jälkeen. Tapauksessa B on merkittävämpi kertaluonteinen erä ensimmäiselle vuoden. Tapausten nykyarvot ovat itseisarvoltaan samansuuruiset (811, pyöristys huomioiden). Annualisoidun nettonykyarvon avulla myös Tapauksen B kustannuserät voidaan jakaa tasaisesti 10 vuoden ajanjaksolle, jolloin vuosittaisista eristä saadaan vertailukelpoiset. Tässä esimerkissä Tapauksen B kustannuserät on tarkoituksella valittu siten, että ne muodostavat Tapauksen A kanssa itseisarvoltaan yhtäsuuren 100 euron vuosittaisen kustannuserän 10 vuodelle. Annualisoidun nykyarvon avulla voidaan vertailla 10 vuoden ajanjaksolta vuositason kustannuseriä lakiehdotuksista, jotka lähtökohtaisesti aiheuttavat kustannuksia eri aikaan ja eri tavalla jaksottuneina. ",null,"Tapaus A",null,1,2,3,4,5,6,7,8,9,10]
[null,null,null,null,"Kustannus",{"$f":"$F$54","v":-100},{"$f":"$F$54","v":-100},-100,-100,-100,-100,-100,-100,-100,-100]
[null,null,null,null,"Nykyarvo",{"$f":"F59/(1+$C$56)^F58","v":-96.153846153846146},{"$f":"G59/(1+$C$56)^G58","v":-92.455621301775139},{"$f":"H59/(1+$C$56)^H58","v":-88.899635867091476},{"$f":"I59/(1+$C$56)^I58","v":-85.480419102972576},{"$f":"J59/(1+$C$56)^J58","v":-82.19271067593516},-79.031452573014576,-75.991781320206329,-73.069020500198377,-70.258673557883043,-67.556416882579853]
[null,null,null,null,"Yhteensä 10 vuodelta",{"$f":"SUM(F60:O60)","v":-811.08957793550258}]
[]
[null,null,null,"Tapaus B",null,1,2,3,4,5,6,7,8,9,10]
[null,null,null,null,"Kustannus",{"$f":"D55+F55","v":574},{"$f":"$F$55","v":74},{"$f":"$F$55","v":74},74,74,0,0,0,0,0]
[null,null,null,null,"Nykyarvo",{"$f":"F64/(1+$C$56)^F63","v":551.92307692307691},{"$f":"G64/(1+$C$56)^G63","v":68.417159763313606},65.785730541647695,63.255510136199703,60.822605900192016,0,0,0,0,0]
[null,null,null,null,"Yhteensä 10 vuodelta",{"$f":"SUM(F65:O65)","v":810.20408326442998}]
[]
[null,null,null,"Annualisoidut nykyarvot"]
[null,null,null,null,"Tapaus A",{"$f":"($C$56*$F$61)/(1-(1+$C$56)^(-H54))","v":-99.999999999999858}]
[null,null,null,null,"Tapaus B",{"$f":"($C$56*$F$66)/(1-(1+$C$56)^(-H55))","v":99.89082652580403}]
[]
[]
[]
[]
[null,null,null,null,null,null,null,null,{"$f":"($F$61*$C$56)/(1-(1+$C$56)^-$H$54)","v":-99.999999999999858}]
[]
[]
[]
[]
[]
[null,null,null,null,null,null,null,null,{"$f":"($F$66*$C$56)/(1-(1+$C$56)^-$H$55)","v":99.89082652580403},null,"Jossa ","PV","Nykyarvo"]
[null,null,null,null,null,null,null,null,null,null,null,"A","Vuotuinen vakioerä"]
[null,null,null,null,null,null,null,null,null,null,null,"r","korko"]
[null,null,null,null,null,null,null,null,null,null,null,"n","Aika vuosina"]
[]
[]
[]
[]
[]
[null,"Huom. nykyarvon laskemisesta aiheutuu seuraava:"]
[]
[null,"Jos nykytilanteessa yrityksille aiheutuu 100 euron kustannus seuraavalle 4 vuodelle,",null,null,"Vuosi",2017,2018,2019,2020,2021,2022]
[null,"täytyy se korvata vuosittaisella 108 euron säästöllä, jos säästö tulee voimaan vasta",null,null,null,0,1,2,3,4,5]
[null,"2 vuotta nykytilanteen jälkeen.",null,null,"Kustannuslisäys",100,100,100,100]
[null,null,null,null,"Nykyarvo",{"$f":"F94/(1+$F$107)^F93","v":100},{"$f":"G94/(1+$F$107)^G93","v":96.153846153846146},{"$f":"H94/(1+$F$107)^H93","v":92.455621301775139},{"$f":"I94/(1+$F$107)^I93","v":88.899635867091476}]
[null,"Laskennassa huomioitu Annualisoitu NPV -välilehdellä myös inflaatio, mutta tässä",null,null,"Yhteensä",{"$f":"SUM(F95:N95)","v":377.50910332271275}]
[null,"yksinkertaisessa esimerkissä ei ole deflatoitu elinkustannusindeksillä siten kuin "]
[null,"varsinaisessa laskennassa tehdään deflatointi vuoden 2019 hinnoista perusvuoden",null,null,"Kustannussäästö_A",null,null,-100,-100,-100,-100]
[null,"2017 hintoihin. ",null,null,"Nykyarvo",null,null,{"$f":"H98/(1+$F$107)^H93","v":-92.455621301775139},{"$f":"I98/(1+$F$107)^I93","v":-88.899635867091476},{"$f":"J98/(1+$F$107)^J93","v":-85.480419102972576},{"$f":"K98/(1+$F$107)^K93","v":-82.19271067593516}]
[null,null,null,null,"Yhteensä",{"$f":"SUM(F99:K99)","v":-349.02838694777438}]
[]
[null,null,null,null,"Kustannussäästö_B",null,null,-108.30064663381104,{"$f":"H102","v":-108.30064663381104},{"$f":"I102","v":-108.30064663381104},-108.30064663381104]
[null,null,null,null,"Nykyarvo",null,null,{"$f":"H102/(1+$F$107)^H93","v":-100.13003571913002},{"$f":"I102/(1+$F$107)^I93","v":-96.278880499163478},{"$f":"J102/(1+$F$107)^J93","v":-92.575846633811025},{"$f":"K102/(1+$F$107)^K93","v":-89.01523714789522}]
[null,null,null,null,"Yhteensä",{"$f":"SUM(F103:K103)","v":-377.99999999999972}]
[]
[]
[null,null,null,null,"Korko ",0.04]

{"sheet":"Apu5_Tietolähteitä","index":11,"n_rows":29,"n_cols":17,"rows_kept":29,"cut":false,"hidden":false,"merged":[]}
["Tietolähteitä"]
[]
[]
["Tietokannat"]
[null,null,null,null,null,null,null,null,null,null,null,null,null,null,"Palaa takaisin tai siirry"]
[null,"Tilastokeskus",null,null,null,null,null,null,null,null,null,null,null,null,null,"Ohjeisiin"]
[null,null,"Tilastotietokannat",null,null,null,null,null,null,null,null,null,null,null,null,"Tarkistuslistaan","Ohjeet ja tarkistuslista"]
[null,null,"Tilastot",null,null,null,null,null,null,null,null,null,null,null,null,"Välilehdelle 1","Velvoiteluettelo"]
[null,null,null,"Esim. Yritykset",null,null,null,null,null,null,null,null,null,null,null,"Välilehdelle 2","Työkustannukset"]
[null,null,null,"Esim. Kauppa",null,null,null,null,null,null,null,null,null,null,null,"Välilehdelle 3","Muut kustannuksen ja kustannukset yhteensä"]
[null,null,null,"Esim. Rakentaminen",null,null,null,null,null,null,null,null,null,null,null,"Välilehdelle 4","Vuosittaiset poikkeukset kustannuserissä"]
[null,null,null,"Esim. Teollisuus",null,null,null,null,null,null,null,null,null,null,null,"Välilehdelle 5","Yhteenveto"]
[null,null,null,"Esim. Työmarkkinat",null,null,null,null,null,null,null,null,null,null,null,"Apu2","Tehtäväkohtainen aika - apu hahmottamiseen"]
[null,null,null,"Esim. Palkat ja työvoimakustannukset",null,null,null,null,null,null,null,null,null,null,null,"Apu3","Laite tms kustannuksista"]
[null,"Tulli - ULJAS - Tavaroiden ulkomaankauppatilastot",null,null,null,null,null,null,null,null,null,null,null,null,null,"Apu4","Yksinkertainen esimerkkilaskelma"]
[null,null,null,null,null,null,null,null,null,null,null,null,null,null,null,"Apu5","Tietolähteitä"]
[]
["Muut lähteet"]
[null,"Toimialavirastot"]
[null,"Yritykset"]
[null,null,"Suorat yhteydet yrityksiin"]
[null,null,"Kyselytutkimuksen teettäminen"]
[null,null,null,"Käytettävissä oleva aika ja raha?"]
[null,"Toimialaliitot ja -yhdistykset "]
[null,null,"EK"]
[null,null,"Suomen yrittäjät"]
[null,null,"Toimialayhdistykset"]
[null,"Aiemmat selvitykset ja lakihankkeet"]
[null,"Kansainväliset esimerkit"]

{"sheet":"Annualisoitu NPV","index":12,"n_rows":51,"n_cols":12,"rows_kept":51,"cut":false,"hidden":false,"merged":[[39,15,39,17]]}
["Annualisoidun nettonykyarvon (AENPV) laskenta"]
["AENPV = Annual Equivalent Net Present Value"]
[]
[null,null,null,{"$f":"\"Velvoite\"&D18+1","v":"Velvoite1"},{"$f":"\"Velvoite\"&E18+1","v":"Velvoite2"},"Velvoite3","Velvoite4","Velvoite5",null,"Yhteensä"]
[null,null,"Sääntelyn luonne",{"$f":"OFFSET('1_Velvoiteluettelo'!$G$17,D18,0)","v":0},{"$f":"OFFSET('1_Velvoiteluettelo'!$G$17,E18,0)","v":0},{"$f":"OFFSET('1_Velvoiteluettelo'!$G$17,F18,0)","v":0},{"$f":"OFFSET('1_Velvoiteluettelo'!$G$17,G18,0)","v":0},{"$f":"OFFSET('1_Velvoiteluettelo'!$G$17,H18,0)","v":0}]
[null,null,"Frekvenssi",{"$f":"OFFSET('2B_Työkustannus'!$F12,0,D18)","v":0},{"$f":"OFFSET('2B_Työkustannus'!$F12,0,E18)","v":0},{"$f":"OFFSET('2B_Työkustannus'!$F12,0,F18)","v":0},{"$f":"OFFSET('2B_Työkustannus'!$F12,0,G18)","v":0},{"$f":"OFFSET('2B_Työkustannus'!$F12,0,H18)","v":0}]
[null,null,"Yritysjoukon suuruus",{"$f":"OFFSET('2B_Työkustannus'!$F11,0,D18)","v":0},{"$f":"OFFSET('2B_Työkustannus'!$F11,0,E18)","v":0},{"$f":"OFFSET('2B_Työkustannus'!$F11,0,F18)","v":0},{"$f":"OFFSET('2B_Työkustannus'!$F11,0,G18)","v":0},{"$f":"OFFSET('2B_Työkustannus'!$F11,0,H18)","v":0}]
[null,null,"Toistuvat henkilöstömenot",{"$f":"IF(ISNUMBER(OFFSET('1_Velvoiteluettelo'!$F$17,D18,0)),'3_Muut kustannukset'!I21,0)","v":0},{"$f":"IF(ISNUMBER(OFFSET('1_Velvoiteluettelo'!$F$17,E18,0)),'3_Muut kustannukset'!J21,0)","v":0},{"$f":"IF(ISNUMBER(OFFSET('1_Velvoiteluettelo'!$F$17,F18,0)),'3_Muut kustannukset'!K21,0)","v":0},{"$f":"IF(ISNUMBER(OFFSET('1_Velvoiteluettelo'!$F$17,G18,0)),'3_Muut kustannukset'!L21,0)","v":0},{"$f":"IF(ISNUMBER(OFFSET('1_Velvoiteluettelo'!$F$17,H18,0)),'3_Muut kustannukset'!M21,0)","v":0},null,{"$f":"SUM(D8:I8)","v":0}]
[null,null,"josta palkat",{"$f":"IF(ISNUMBER(OFFSET('1_Velvoiteluettelo'!$F$17,D18,0)),D8/(1+'2B_Työkustannus'!$E$69),0)","v":0},{"$f":"IF(ISNUMBER(OFFSET('1_Velvoiteluettelo'!$F$17,E18,0)),E8/(1+'2B_Työkustannus'!$E$69),0)","v":0},{"$f":"IF(ISNUMBER(OFFSET('1_Velvoiteluettelo'!$F$17,F18,0)),F8/(1+'2B_Työkustannus'!$E$69),0)","v":0},{"$f":"IF(ISNUMBER(OFFSET('1_Velvoiteluettelo'!$F$17,G18,0)),G8/(1+'2B_Työkustannus'!$E$69),0)","v":0},{"$f":"IF(ISNUMBER(OFFSET('1_Velvoiteluettelo'!$F$17,H18,0)),H8/(1+'2B_Työkustannus'!$E$69),0)","v":0},null,0]
[null,null,"josta sivu- ja yleiskulu",{"$f":"IF(ISNUMBER(OFFSET('1_Velvoiteluettelo'!$F$17,D18,0)),D8-D9,0)","v":0},{"$f":"IF(ISNUMBER(OFFSET('1_Velvoiteluettelo'!$F$17,E18,0)),E8-E9,0)","v":0},{"$f":"IF(ISNUMBER(OFFSET('1_Velvoiteluettelo'!$F$17,F18,0)),F8-F9,0)","v":0},{"$f":"IF(ISNUMBER(OFFSET('1_Velvoiteluettelo'!$F$17,G18,0)),G8-G9,0)","v":0},{"$f":"IF(ISNUMBER(OFFSET('1_Velvoiteluettelo'!$F$17,H18,0)),H8-H9,0)","v":0},null,0]
[null,null,"Toistuvat muut kulut",{"$f":"IF(ISNUMBER(OFFSET('1_Velvoiteluettelo'!$F$17,D18,0)),'3_Muut kustannukset'!I28,0)","v":0},{"$f":"IF(ISNUMBER(OFFSET('1_Velvoiteluettelo'!$F$17,E18,0)),'3_Muut kustannukset'!J28,0)","v":0},{"$f":"IF(ISNUMBER(OFFSET('1_Velvoiteluettelo'!$F$17,F18,0)),'3_Muut kustannukset'!K28,0)","v":0},{"$f":"IF(ISNUMBER(OFFSET('1_Velvoiteluettelo'!$F$17,G18,0)),'3_Muut kustannukset'!L28,0)","v":0},{"$f":"IF(ISNUMBER(OFFSET('1_Velvoiteluettelo'!$F$17,H18,0)),'3_Muut kustannukset'!M28,0)","v":0},null,0]
[null,null,"Kertaluontoiset henkilöstökulut",{"$f":"IF(ISNUMBER(OFFSET('1_Velvoiteluettelo'!$F$17,D18,0)),'3_Muut kustannukset'!I36,0)","v":0},{"$f":"IF(ISNUMBER(OFFSET('1_Velvoiteluettelo'!$F$17,E18,0)),'3_Muut kustannukset'!J36,0)","v":0},{"$f":"IF(ISNUMBER(OFFSET('1_Velvoiteluettelo'!$F$17,F18,0)),'3_Muut kustannukset'!K36,0)","v":0},{"$f":"IF(ISNUMBER(OFFSET('1_Velvoiteluettelo'!$F$17,G18,0)),'3_Muut kustannukset'!L36,0)","v":0},{"$f":"IF(ISNUMBER(OFFSET('1_Velvoiteluettelo'!$F$17,H18,0)),'3_Muut kustannukset'!M36,0)","v":0},null,0]
[null,null,"josta palkat",{"$f":"IF(ISNUMBER(OFFSET('1_Velvoiteluettelo'!$F$17,D18,0)),D12/(1+'2B_Työkustannus'!$E$69),0)","v":0},{"$f":"IF(ISNUMBER(OFFSET('1_Velvoiteluettelo'!$F$17,E18,0)),E12/(1+'2B_Työkustannus'!$E$69),0)","v":0},{"$f":"IF(ISNUMBER(OFFSET('1_Velvoiteluettelo'!$F$17,F18,0)),F12/(1+'2B_Työkustannus'!$E$69),0)","v":0},{"$f":"IF(ISNUMBER(OFFSET('1_Velvoiteluettelo'!$F$17,G18,0)),G12/(1+'2B_Työkustannus'!$E$69),0)","v":0},{"$f":"IF(ISNUMBER(OFFSET('1_Velvoiteluettelo'!$F$17,H18,0)),H12/(1+'2B_Työkustannus'!$E$69),0)","v":0},null,0]
[null,null,"josta sivu- ja yleiskulu",{"$f":"IF(ISNUMBER(OFFSET('1_Velvoiteluettelo'!$F$17,D18,0)),D12-D13,0)","v":0},{"$f":"IF(ISNUMBER(OFFSET('1_Velvoiteluettelo'!$F$17,E18,0)),E12-E13,0)","v":0},{"$f":"IF(ISNUMBER(OFFSET('1_Velvoiteluettelo'!$F$17,F18,0)),F12-F13,0)","v":0},{"$f":"IF(ISNUMBER(OFFSET('1_Velvoiteluettelo'!$F$17,G18,0)),G12-G13,0)","v":0},{"$f":"IF(ISNUMBER(OFFSET('1_Velvoiteluettelo'!$F$17,H18,0)),H12-H13,0)","v":0},null,0]
[null,null,"Kertaluontoiset muut kulut",{"$f":"IF(ISNUMBER(OFFSET('1_Velvoiteluettelo'!$F$17,D18,0)),'3_Muut kustannukset'!I43,0)","v":0},{"$f":"IF(ISNUMBER(OFFSET('1_Velvoiteluettelo'!$F$17,E18,0)),'3_Muut kustannukset'!J43,0)","v":0},{"$f":"IF(ISNUMBER(OFFSET('1_Velvoiteluettelo'!$F$17,F18,0)),'3_Muut kustannukset'!K43,0)","v":0},{"$f":"IF(ISNUMBER(OFFSET('1_Velvoiteluettelo'!$F$17,G18,0)),'3_Muut kustannukset'!L43,0)","v":0},{"$f":"IF(ISNUMBER(OFFSET('1_Velvoiteluettelo'!$F$17,H18,0)),'3_Muut kustannukset'!M43,0)","v":0},null,0]
[null,null,"Yrityskentän kasvuvauhti",{"$f":"OFFSET('4_Poikkeukset'!$C8,D18,0)","v":0},{"$f":"OFFSET('4_Poikkeukset'!$C8,E18,0)","v":0},{"$f":"OFFSET('4_Poikkeukset'!$C8,F18,0)","v":0},{"$f":"OFFSET('4_Poikkeukset'!$C8,G18,0)","v":0},{"$f":"OFFSET('4_Poikkeukset'!$C8,H18,0)","v":0}]
[null,null,"apulaskuja",{"$f":"IF(D16>0,D16,0)","v":0},{"$f":"IF(E16>0,E16,0)","v":0},{"$f":"IF(F16>0,F16,0)","v":0},{"$f":"IF(G16>0,G16,0)","v":0},{"$f":"IF(H16>0,H16,0)","v":0}]
[null,null,"apulaskuja",0,{"$f":"D18+1","v":1},{"$f":"E18+1","v":2},{"$f":"F18+1","v":3},{"$f":"G18+1","v":4},{"$f":"H18+1","v":5}]
[null,null,"Perusvuosi",{"$f":"'1_Velvoiteluettelo'!$B$13","v":2017},{"$f":"'1_Velvoiteluettelo'!$B$13","v":2017},{"$f":"'1_Velvoiteluettelo'!$B$13","v":2017},{"$f":"'1_Velvoiteluettelo'!$B$13","v":2017},{"$f":"'1_Velvoiteluettelo'!$B$13","v":2017}]
[null,null,"Voimaantulovuosi",{"$f":"OFFSET('1_Velvoiteluettelo'!$F$17,D18,0)","v":0},{"$f":"OFFSET('1_Velvoiteluettelo'!$F$17,E18,0)","v":0},{"$f":"OFFSET('1_Velvoiteluettelo'!$F$17,F18,0)","v":0},{"$f":"OFFSET('1_Velvoiteluettelo'!$F$17,G18,0)","v":0},{"$f":"OFFSET('1_Velvoiteluettelo'!$F$17,H18,0)","v":0}]
[]
[null,null,"Tarkastelujakso vuosina:",{"$f":"IF(ISNUMBER(OFFSET('1_Velvoiteluettelo'!$E17,D18,0)),OFFSET('1_Velvoiteluettelo'!$E17,D18,0),10)","v":10},{"$f":"IF(ISNUMBER(OFFSET('1_Velvoiteluettelo'!$E17,E18,0)),OFFSET('1_Velvoiteluettelo'!$E17,E18,0),10)","v":10},{"$f":"IF(ISNUMBER(OFFSET('1_Velvoiteluettelo'!$E17,F18,0)),OFFSET('1_Velvoiteluettelo'!$E17,F18,0),10)","v":10},{"$f":"IF(ISNUMBER(OFFSET('1_Velvoiteluettelo'!$E17,G18,0)),OFFSET('1_Velvoiteluettelo'!$E17,G18,0),10)","v":10},{"$f":"IF(ISNUMBER(OFFSET('1_Velvoiteluettelo'!$E17,H18,0)),OFFSET('1_Velvoiteluettelo'!$E17,H18,0),10)","v":10}]
[null,null,null,null,null,null,null,null,null,null,null,"Nettonykyarvon laskentakaavat"]
[null,null,"Sosiaalinen diskonttokorko (reaalinen):",0.04,null,null,null,null,null,null,null,"Toistuvat kustannuserät annuiteettina perusvuoden nykyarvoon, ml. deflatointi"]
[null,null,"EKI=1951 indeksiluku 2 v. ennen perusvuotta, vka (2015)",1906]
[null,null,"EKI=1951 indeksiluku HE:n valmisteluvuotta ed v. vka",1927]
[null,null,"Kokonaiskasvu (palkkojen nousu ja yrityskentän kasvu)",{"$f":"(1+'Taustatietoa ATI ja EKI'!$G30)*(1+D16)-1","v":1.6682106606680236E-2},{"$f":"(1+'Taustatietoa ATI ja EKI'!$G30)*(1+E16)-1","v":1.6682106606680236E-2},{"$f":"(1+'Taustatietoa ATI ja EKI'!$G30)*(1+F16)-1","v":1.6682106606680236E-2},{"$f":"(1+'Taustatietoa ATI ja EKI'!$G30)*(1+G16)-1","v":1.6682106606680236E-2},{"$f":"(1+'Taustatietoa ATI ja EKI'!$G30)*(1+H16)-1","v":1.6682106606680236E-2}]
[null,null,"NPV",{"$f":"D4","v":"Velvoite1"},{"$f":"E4","v":"Velvoite2"},{"$f":"F4","v":"Velvoite3"},{"$f":"G4","v":"Velvoite4"},{"$f":"H4","v":"Velvoite5"},null,"Yhteensä",null,"Kertaluonteiset voimaantulovuodesta perusvuoteen, ml. deflatointi"]
[null,null,{"$f":"C8","v":"Toistuvat henkilöstömenot"},{"$f":"IF(ISNUMBER(D$20),IF(D27=$D$24,D8*($D$25/$D$26)*D22*(1+$D$24)^-(D$20-D$19+1),(((D8)*($D$25/$D$26))*((1-((1+D$27)/(1+$D$24))^D$22)/($D$24-D$27))*((1+$D$24)^-(D$20-D$19)))),0)","v":0},{"$f":"IF(ISNUMBER(E$20),IF(E27=$D$24,E8*($D$25/$D$26)*E22*(1+$D$24)^-(E$20-E$19+1),(((E8)*($D$25/$D$26))*((1-((1+E$27)/(1+$D$24))^E$22)/($D$24-E$27))*((1+$D$24)^-(E$20-E$19)))),0)","v":0},0,0,0,null,{"$f":"SUM(D29:I29)","v":0}]
[null,null,"josta palkat",{"$f":"IF(ISNUMBER(D$20),IF(D27=$D$24,D9*($D$25/$D$26)*D22*(1+$D$24)^-(D$20-D$19+1),(((D9)*($D$25/$D$26))*((1-((1+D$27)/(1+$D$24))^D$22)/($D$24-D$27))*((1+$D$24)^-(D$20-D$19)))),0)","v":0},{"$f":"IF(ISNUMBER(E$20),IF(E27=$D$24,E9*($D$25/$D$26)*E22*(1+$D$24)^-(E$20-E$19+1),(((E9)*($D$25/$D$26))*((1-((1+E$27)/(1+$D$24))^E$22)/($D$24-E$27))*((1+$D$24)^-(E$20-E$19)))),0)","v":0},0,0,0,null,{"$f":"SUM(D30:I30)","v":0}]
[null,null,"josta sivu- ja yleiskulu",{"$f":"IF(ISNUMBER(D$20),IF(D27=$D$24,D10*($D$25/$D$26)*D22*(1+$D$24)^-(D$20-D$19+1),(((D10)*($D$25/$D$26))*((1-((1+D$27)/(1+$D$24))^D$22)/($D$24-D$27))*((1+$D$24)^-(D$20-D$19)))),0)","v":0},{"$f":"IF(ISNUMBER(E$20),IF(E27=$D$24,E10*($D$25/$D$26)*E22*(1+$D$24)^-(E$20-E$19+1),(((E10)*($D$25/$D$26))*((1-((1+E$27)/(1+$D$24))^E$22)/($D$24-E$27))*((1+$D$24)^-(E$20-E$19)))),0)","v":0},0,0,0,null,0]
[null,null,"Toistuvat muut kulut",{"$f":"IF(ISNUMBER(D$20),IF(D16=$D$24,D11*($D$25/$D$26)*D22*(1+$D$24)^-(D$20-D$19+1),(((D11)*($D$25/$D$26))*((1-((1+D$16)/(1+$D$24))^D$22)/($D$24-D$16))*((1+$D$24)^-(D$20-D$19)))),0)","v":0},{"$f":"IF(ISNUMBER(E$20),IF(E16=$D$24,E11*($D$25/$D$26)*E22*(1+$D$24)^-(E$20-E$19+1),(((E11)*($D$25/$D$26))*((1-((1+E$16)/(1+$D$24))^E$22)/($D$24-E$16))*((1+$D$24)^-(E$20-E$19)))),0)","v":0},0,0,0,null,0,null,"Kertaluonteiset, jos kasvava yritysjoukko (kertaluonteiset uusille alalle tuleville yrityksille -> annuiteetti tältä osin) "]
[null,null,"Kertaluontoiset henkilöstökulut",{"$f":"IF(AND(ISNUMBER(D$20),(D$27>0)),((D12*($D$25/$D$26))*((1+$D$24)^-(D$20-D$19+1))+((D$27*D12)*($D$25/$D$26)*(1-((1+D$27)/(1+$D$24))^D$22)/($D$24-D$27))*((1+$D$24)^-(D$20-D$19))),((D12*($D$25/$D$26))*((1+$D$24)^-(D$20-D$19+1))))","v":0},{"$f":"IF(AND(ISNUMBER(E$20),(E$27>0)),((E12*($D$25/$D$26))*((1+$D$24)^-(E$20-E$19+1))+((E$27*E12)*($D$25/$D$26)*(1-((1+E$27)/(1+$D$24))^E$22)/($D$24-E$27))*((1+$D$24)^-(E$20-E$19))),((E12*($D$25/$D$26))*((1+$D$24)^-(E$20-E$19+1))))","v":0},0,0,0,null,0]
[null,null,"josta palkat",{"$f":"IF(AND(ISNUMBER(D$20),(D$27>0)),((D13*($D$25/$D$26))*((1+$D$24)^-(D$20-D$19+1))+((D$27*D13)*($D$25/$D$26)*(1-((1+D$27)/(1+$D$24))^D$22)/($D$24-D$27))*((1+$D$24)^-(D$20-D$19))),((D13*($D$25/$D$26))*((1+$D$24)^-(D$20-D$19+1))))","v":0},{"$f":"IF(AND(ISNUMBER(E$20),(E$27>0)),((E13*($D$25/$D$26))*((1+$D$24)^-(E$20-E$19+1))+((E$27*E13)*($D$25/$D$26)*(1-((1+E$27)/(1+$D$24))^E$22)/($D$24-E$27))*((1+$D$24)^-(E$20-E$19))),((E13*($D$25/$D$26))*((1+$D$24)^-(E$20-E$19+1))))","v":0},0,0,0,null,0]
[null,null,"josta sivu- ja yleiskulu",{"$f":"IF(AND(ISNUMBER(D$20),(D$27>0)),((D14*($D$25/$D$26))*((1+$D$24)^-(D$20-D$19+1))+((D$27*D14)*($D$25/$D$26)*(1-((1+D$27)/(1+$D$24))^D$22)/($D$24-D$27))*((1+$D$24)^-(D$20-D$19))),((D14*($D$25/$D$26))*((1+$D$24)^-(D$20-D$19+1))))","v":0},{"$f":"IF(AND(ISNUMBER(E$20),(E$27>0)),((E14*($D$25/$D$26))*((1+$D$24)^-(E$20-E$19+1))+((E$27*E14)*($D$25/$D$26)*(1-((1+E$27)/(1+$D$24))^E$22)/($D$24-E$27))*((1+$D$24)^-(E$20-E$19))),((E14*($D$25/$D$26))*((1+$D$24)^-(E$20-E$19+1))))","v":0},0,0,0,null,0]
[null,null,"Kertaluontoiset muut kulut",{"$f":"IF(AND(ISNUMBER(D$20),(D$16>0)),IF(D16=$D$24,(D15*($D$25/$D$26))*((1+$D$24)^-(D$20-D$19+1))+D15*$D$24*($D$25/$D$26)*D22*(1+$D$24)^-(D$20-D$19+1),((D15*($D$25/$D$26))*((1+$D$24)^-(D$20-D$19+1))+((D$16*D15)*($D$25/$D$26)*(1-((1+D$16)/(1+$D$24))^D$22)/($D$24-D$16))*((1+$D$24)^-(D$20-D$19)))),((D15*($D$25/$D$26))*((1+$D$24)^-(D$20-D$19+1))))","v":0},{"$f":"IF(AND(ISNUMBER(E$20),(E$16>0)),IF(E16=$D$24,(E15*($D$25/$D$26))*((1+$D$24)^-(E$20-E$19+1))+E15*$D$24*($D$25/$D$26)*E22*(1+$D$24)^-(E$20-E$19+1),((E15*($D$25/$D$26))*((1+$D$24)^-(E$20-E$19+1))+((E$16*E15)*($D$25/$D$26)*(1-((1+E$16)/(1+$D$24))^E$22)/($D$24-E$16))*((1+$D$24)^-(E$20-E$19)))),((E15*($D$25/$D$26))*((1+$D$24)^-(E$20-E$19+1))))","v":0},0,0,0,null,0]
[]
[null,null,"Yhteensä",{"$f":"D29+D32+D33+D36","v":0},{"$f":"E29+E32+E33+E36","v":0},0,0,0,null,{"$f":"J29+J32+J33+J36","v":0}]
[]
[null,null,"ANNUALISOITU NPV (NPV per vuosi, 1:1 -vertailuluku)",{"$f":"(D38*($D$24))/(1-(1+$D$24)^(-10))","v":0},{"$f":"(E38*($D$24))/(1-(1+$D$24)^(-10))","v":0},{"$f":"(F38*($D$24))/(1-(1+$D$24)^(-10))","v":0},{"$f":"(G38*($D$24))/(1-(1+$D$24)^(-10))","v":0},{"$f":"(H38*($D$24))/(1-(1+$D$24)^(-10))","v":0},null,{"$f":"SUM(D40:I40)","v":0}]
[]
[]
[null,null,null,null,null,null,null,null,null,null,null,"PV = nykyarvo, tarkoittaa myös nettonykyarvoa NPV"]
[null,null,null,null,null,null,null,null,null,null,null,"A = kustannuserä valmisteluvuoden nykyrahassa"]
[null,null,null,null,null,null,null,null,null,null,null," r = korko, reaalinen sosiaalinen diskonttokorko"]
[null,null,null,null,null,null,null,null,null,null,null,"g = kasvutekijä = yritysjoukin %-kasvu vuodessa (jos tarpeen, ks. välilehti 4) ja palkkojen reaalikasvu (jos relevantti)"]
[null,null,null,null,null,null,null,null,null,null,null,"T =  oletettu lain voimassaoloaika, lähtökohtaisesti 10 vuotta. "]
[null,null,null,null,null,null,null,null,null,null,null,"AENPV-kaavassa T = 10, jotta vuositasolle jyvitetyt kustannuserät ovat vertailukelpoisia."]
[null,null,null,null,null,null,null,null,null,null,null,"t0 = perusvuosi (2017)"]
[null,null,null,null,null,null,null,null,null,null,null,"tf = velvoitteen tai muutoksen voimaantulovuosi "]
[null,null,null,null,null,null,null,null,null,null,null,"C = kertaluonteinen kustannuserä valmisteluvuoden nykyrahassa"]

{"sheet":"Listat (älä muuta)","index":13,"n_rows":13,"n_cols":7,"rows_kept":13,"cut":false,"hidden":false,"merged":[]}
[]
[]
[]
[null,1,null,null,null,"Rivejä lisätty:",{"$f":"0","v":0}]
[null,2,null,"EU-minimisääntelyä"]
[null,3,null,"Kansallista tai EU-minimin ylittävää sääntelyä"]
[null,4,null,"EU:n velvoittamaa sääntelyn purkua"]
[null,5,null,"Kansallisen tai EU-minimin ylittävän sääntelyn purkua"]
[null,6]
[null,7]
[null,8]
[null,9]
[null,"toistaiseksi"]

{"sheet":"Taustatietoa ATI ja EKI","index":14,"n_rows":39,"n_cols":11,"rows_kept":39,"cut":false,"hidden":false,"merged":[]}
["Taustatietoa elinkustannusindeksi (EKI) ja ansiotasoindeksi (ATI)"]
[]
[]
[null,null,null,null,null,"Muutos","Reaalinen muutos"]
[null,null,null,null,"Yksityinen","Yksityinen","Yksityinen",null,null,"Muutos"]
[null,null,null,null,"ATI 1995=100","ATI 1995=100","ATI 1995=100",null,"EKI 1951=100","EKI 1951=100","CAGR 1995-2016"]
[null,null,null,"1995",100,null,null,null,1390]
[null,null,{"$f":"D8-$D$7","v":1},"1996",104.2,{"$f":"E8/E7-1","v":4.2000000000000037E-2},{"$f":"(1+F8)/(1+J8)-1","v":3.6037195994277571E-2},null,1398,{"$f":"I8/I7-1","v":5.7553956834532904E-3},{"$f":"$J$30","v":1.5324275701755985E-2}]
[null,null,{"$f":"D9-$D$7","v":2},"1997",107,2.6871401151631558E-2,1.4534430254403485E-2,null,1415,{"$f":"I9/I8-1","v":1.2160228898426384E-2},{"$f":"$J$30","v":1.5324275701755985E-2}]
[null,null,3,"1998",110.9,3.6448598130841114E-2,2.2003321501839812E-2,null,1435,1.4134275618374659E-2,1.5324275701755985E-2]
[null,null,4,"1999",114.1,2.8854824165915227E-2,1.6809003221823993E-2,null,1452,1.184668989547033E-2,1.5324275701755985E-2]
[null,null,5,"2000",119.1,4.382120946538115E-2,9.7457669178768747E-3,null,1501,3.3746556473829292E-2,1.5324275701755985E-2]
[null,null,6,"2001",124.8,4.7858942065491128E-2,2.1985881767577764E-2,null,1539,2.5316455696202445E-2,1.5324275701755985E-2]
[null,null,7,"2002",129.30000000000001,3.6057692307692513E-2,2.0148936955558971E-2,null,1563,1.5594541910331383E-2,1.5324275701755985E-2]
[null,null,8,"2003",134.4,3.9443155452436152E-2,3.0215378549243832E-2,null,1577,8.9571337172105192E-3,1.5324275701755985E-2]
[null,null,9,"2004",139.4,3.7202380952380931E-2,3.5233009342977573E-2,null,1580,1.9023462270133518E-3,1.5324275701755985E-2]
[null,null,10,"2005",144.80000000000001,3.8737446197991465E-2,2.9614281676804577E-2,null,1594,8.8607594936709333E-3,1.5324275701755985E-2]
[null,null,11,"2006",149.19999999999999,3.0386740331491469E-2,1.2599546293709851E-2,null,1622,1.7565872020075313E-2,1.5324275701755985E-2]
[null,null,12,"2007",154,3.2171581769437019E-2,7.3299071179462327E-3,null,1662,2.4660912453760897E-2,1.5324275701755985E-2]
[null,null,13,"2008",162.30000000000001,5.3896103896103886E-2,1.2471285939493981E-2,null,1730,4.0914560770156427E-2,1.5324275701755985E-2]
[null,null,14,"2009",168.9,4.0665434380776411E-2,4.0665434380776411E-2,null,1730,0,1.5324275701755985E-2]
[null,null,15,"2010",172.8,2.3090586145648295E-2,1.08205105836503E-2,null,1751,1.2138728323699333E-2,1.5324275701755985E-2]
[null,null,16,"2011",177.2,2.5462962962962798E-2,-9.0586930749735339E-3,null,1812,3.4837235865219807E-2,1.5324275701755985E-2]
[null,null,17,"2012",182.5,2.990970654627545E-2,1.7157210208540441E-3,null,1863,2.8145695364238499E-2,1.5324275701755985E-2]
[null,null,18,"2013",186.5,2.1917808219177992E-2,7.3189823874753035E-3,null,1890,1.449275362318847E-2,1.5324275701755985E-2]
[null,null,19,"2014",189.6,1.6621983914208993E-2,5.9767275381439333E-3,null,1910,1.0582010582010692E-2,1.5324275701755985E-2]
[null,null,20,"2015",192.5,1.5295358649789037E-2,1.742609392502481E-2,null,1906,-2.0942408376963817E-3,1.5324275701755985E-2]
[null,null,{"$f":"D28-$D$7","v":21},2016,194.8,{"$f":"E28/E27-1","v":1.194805194805193E-2},8.2451578740130316E-3,null,1913,3.672612801678854E-3,1.5324275701755985E-2]
[]
[null,null,"CAGR",null,null,{"$f":"(E28/E7)^(1/$C$28)-1","v":3.2262023509363136E-2},{"$f":"(1+F30)/(1+J30)-1","v":1.6682106606680236E-2},null,null,{"$f":"(I28/I7)^(1/$C$28)-1","v":1.5324275701755985E-2}]
[]
[]
[null,null,"Muuttuja","Arvo","Lähde"]
[null,null,"Ansiotasoindeksin nimellismuutos keskimäärin 1995 - 2016",{"$f":"F30","v":3.2262023509363136E-2},"Tilastokeskus, ATI=1995, laatijan laskelmat"]
[null,null,"Ansiotasoindeksin reaalimuutos keskimäärin 1995 - 2016",{"$f":"G30","v":1.6682106606680236E-2},"Tilastokeskus, ATI=1995 ja EKI=1951, laatijan laskelmat Fisherin relaatiolla"]
[null,null,"Inflaatio keskimäärin 1995 - 2016",{"$f":"J30","v":1.5324275701755985E-2},"Tilastokeskus, EKI=1951, vuosikeskiarvo, laatijan laskelmat"]
[]
[null,null,null,null,"ks. myös esim. "]
[null,null,null,null,"http://stat.fi/til/ati/2017/01/ati_2017_01_2017-05-30_tie_001_fi.html "]

{"sheet":"Taustatietoa palkat am lk","index":15,"n_rows":599,"n_cols":2,"rows_kept":599,"cut":false,"hidden":false,"merged":[]}
["Yksityisen sektorin kuukausipalkkaisten ansiot ammattiluokituksen (AML 2010) mukaan vuonna 2016"]
[]
["Ammattiluokka","Säännöllisen työajan keskiansio (€)"]
["S Yhteensä",3596]
["1 Johtajat",6577]
["11 Johtajat, ylimmät virkamiehet ja järjestöjen johtajat",6857]
["111 Ylimmät virkamiehet ja järjestöjen johtajat",5891]
["1112 Julkishallinnon ylimmät virkamiehet",".."]
["1114 Järjestöjen johtajat",5893]
["11141 Työmarkkina- ja elinkeinoelämän järjestöjen johtajat",8870]
["11142 Muiden järjestöjen johtajat",4573]
["12 Hallintojohtajat ja kaupalliset johtajat",6862]
["121 Liiketoiminta- ja hallintojohtajat",7006]
["1211 Talousjohtajat",7081]
["1212 Henkilöstöjohtajat",6672]
["1213 Politiikka- ja suunnittelujohtajat",7725]
["1219 Muut hallintojohtajat ja kaupalliset johtajat",6781]
["122 Myynti-, markkinointi- ja kehitysjohtajat",6755]
["1221 Myynti- ja markkinointijohtajat",6957]
["1222 Mainos- ja tiedotusjohtajat",6303]
["1223 Tutkimus- ja kehitysjohtajat",6526]
["13 Tuotantotoiminnan ja yhteiskunnan peruspalvelujen johtajat",6217]
["131 Maa-, metsä- ja kalatalouden johtajat",4943]
["1311 Maa- ja metsätalouden johtajat",5033]
["1312 Vesiviljely- ja kalatalouden johtajat",".."]
["132 Teollisuuden tuotantojohtajat sekä kaivos-, rakennus- ja jakelujohtajat",5826]
["1321 Teollisuuden tuotantojohtajat",5623]
["1322 Kaivostoiminnan tuotantojohtajat",".."]
["1323 Rakennustoiminnan tuotantojohtajat",5932]
["1324 Hankinta- ja jakelujohtajat",5972]
["133 Tieto- ja viestintäteknologiajohtajat",6721]
["1330 Tieto- ja viestintäteknologiajohtajat",6721]
["134 Yhteiskunnan peruspalvelujen sekä rahoitus- ja vakuutuspalvelujen johtajat",6486]
["1341 Lastenhoidon johtajat",3206]
["1342 Terveydenhuollon johtajat",6984]
["1343 Vanhustenhuollon johtajat",".."]
["1344 Sosiaalihuollon johtajat",4350]
["1345 Opetusalan johtajat",5886]
["1346 Rahoitus- ja vakuutuspalvelujen johtajat",8395]
["1349 Muut yhteiskunnan palvelujen johtajat",5797]
["14 Hotelli- ja ravintola-alan, vähittäiskaupan ja muiden palvelualojen johtajat",5633]
["141 Hotellin- ja ravintolanjohtajat",4111]
["1411 Hotellinjohtajat",4040]
["1412 Ravintolanjohtajat",".."]
["142 Vähittäis- ja tukkukaupan johtajat",6570]
["1420 Vähittäis- ja tukkukaupan johtajat",6570]
["143 Muiden palvelualojen johtajat",5506]
["1431 Urheilu-, vapaa-aika- ja kulttuurikeskusten johtajat",5267]
["1439 Muut palvelualojen johtajat",5798]
["2 Erityisasiantuntijat",4475]
["21 Luonnontieteiden ja tekniikan erityisasiantuntijat",4469]
["211 Luonnon- ja geotieteen erityisasiantuntijat",4020]
["2111 Fyysikot ja astronomit",3483]
["2112 Meteorologit",".."]
["2113 Kemistit",4321]
["2114 Geologit ja geofyysikot",4362]
["212 Matematiikan ja tilastotieteen erityisasiantuntijat",4116]
["2120 Matemaatikot, aktuaarit ja tilastotieteilijät",4116]
["213 Biotieteiden erityisasiantuntijat",3631]
["2131 Biologit, kasvi- ja eläintieteilijät ym. erityisasiantuntijat",3832]
["2132 Maa-, metsä- ja kalatalouden erityisasiantuntijat",3305]
["21321 Maa- ja kalatalouden erityisasiantuntijat",3046]
["21322 Metsätalouden erityisasiantuntijat",3307]
["2133 Ympäristön- ja luonnonsuojelun erityisasiantuntijat",4079]
["214 Tekniikan erityisasiantuntijat (pl. sähköteknologia)",4606]
["2141 Teollisen valmistuksen ja tuotantotekniikan erityisasiantuntijat",4714]
["2142 Maa- ja vesirakentamisen erityisasiantuntijat",4644]
["2143 Ympäristötekniikan erityisasiantuntijat",3198]
["2144 Konetekniikan erityisasiantuntijat",4492]
["2145 Puunjalostuksen ja kemian prosessitekniikan erityisasiantuntijat",4754]
["2146 Kaivosteollisuuden, metallurgian ym. erityisasiantuntijat",4587]
["2149 Muut tekniikan erityisasiantuntijat",4578]
["215 Sähköteknologian erityisasiantuntijat",4708]
["2151 Sähkötekniikan erityisasiantuntijat",4585]
["2152 Elektroniikan erityisasiantuntijat",4710]
["2153 ICT-alan erityisasiantuntijat",4825]
["21531 Tietoliikenneteknologian tutkijat",5101]
["21532 Tietotekniikka-alan tutkijat",3404]
["216 Arkkitehdit, suunnittelijat ja maanmittaajat",4084]
["2161 Talonrakennuksen arkkitehdit",4083]
["2162 Maisema-arkkitehdit",".."]
["2163 Tuote- ja vaatesuunnittelijat",3447]
["2164 Yhdyskunta- ja liikennesuunnittelijat",4672]
["2165 Kartoituksen ja maanmittauksen erityisasiantuntijat",4280]
["2166 Graafiset ja multimediasuunnittelijat",3598]
["22 Terveydenhuollon erityisasiantuntijat",4792]
["221 Lääkärit",6772]
["2211 Yleislääkärit",6898]
["2212 Ylilääkärit ja erikoislääkärit",6684]
["22121 Ylilääkärit",8429]
["22122 Erikoislääkärit",6433]
["222 Hoitotyön erityisasiantuntijat",3313]
["2221 Ylihoitajat ja osastonhoitajat",3313]
["22211 Ylihoitajat",4323]
["22212 Osastonhoitajat",3287]
["225 Eläinlääkärit",4153]
["2250 Eläinlääkärit",4153]
["226 Muut terveydenhuollon erityisasiantuntijat",4991]
["2261 Hammaslääkärit",6606]
["2262 Proviisorit",4553]
["2263 Ympäristöterveyden ja työsuojelun erityisasiantuntijat",5245]
["2265 Ravitsemusalan erityisasiantuntijat",2925]
["2266 Kuulontutkijat ja puheterapeutit",".."]
["2269 Muut muualla luokittelemattomat terveydenhuollon erityisasiantuntijat",3951]
["23 Opettajat ja muut opetusalan erityisasiantuntijat",3967]
["231 Yliopisto- ja korkeakouluopettajat",4610]
["2310 Yliopistojen ja ammattikorkeakoulujen opettajat",4610]
["23101 Professorit",6639]
["23102 Lehtorit ja yliassistentit (yliopisto)",4198]
["23103 Assistentit ja tuntiopettajat (yliopisto)",3147]
["23104 Yliopettajat (AMK)",5541]
["23105 Lehtorit (AMK)",4569]
["23106 Tuntiopettajat ym. (AMK)",4059]
["232 Ammatillisen koulutuksen opettajat",3738]
["2320 Ammatillisen koulutuksen opettajat",3738]
["233 Lukion ja peruskoulun yläluokkien opettajat",3891]
["2330 Lukion ja peruskoulun yläluokkien opettajat",3891]
["23304 Muut peruskoulun yläluokkien ja lukion opettajat",3891]
["234 Peruskoulun alaluokkien opettajat ja lastentarhanopettajat",2570]
["2341 Peruskoulun alaluokkien opettajat",3304]
["23411 Luokanopettajat",3228]
["23412 Aineenopettajat (peruskoulun alaluokat)",3426]
["2342 Lastentarhanopettajat",2363]
["235 Muut opetusalan erityisasiantuntijat",3317]
["2351 Opetusmenetelmien erityisasiantuntijat",3610]
["2352 Erityisopettajat",4049]
["2354 Muut musiikin opettajat",2898]
["2355 Muut taideaineiden opettajat",3139]
["2356 Muut tietotekniikan opettajat ja kouluttajat",".."]
["2359 Opinto-ohjaajat ja muut opetuksen erityisasiantuntijat",3099]
["23591 Opinto-ohjaajat",2605]
["23592 Muut opetuksen erityisasiantuntijat",3427]
["24 Liike-elämän ja hallinnon erityisasiantuntijat",4867]
["241 Rahoitusalan erityisasiantuntijat",4876]
["2411 Laskentatoimen erityisasiantuntijat ja tilintarkastajat",4703]
["2412 Rahoitus- ja sijoitusneuvojat",5262]
["2413 Rahoitusanalyytikot",5135]
["242 Hallinnon erityisasiantuntijat",4760]
["2421 Johtamisen ja organisaatioiden erityisasiantuntijat",5262]
["2422 Hallinnon ja elinkeinojen kehittämisen erityisasiantuntijat",4674]
["2423 Henkilöstöhallinnon erityisasiantuntijat ja urasuunnittelijat",4502]
["2424 Henkilöstön kehittämisen erityisasiantuntijat ja kouluttajat",3745]
["243 Myynnin, markkinoinnin ja tiedotuksen erityisasiantuntijat",4930]
["2431 Mainonnan ja markkinoinnin erityisasiantuntijat",4799]
["2432 Tiedottajat",3992]
["2433 Myynti-insinöörit ja lääke-esittelijät (pl. tieto- ja viestintätekniikka)",5080]
["2434 Tieto- ja viestintätekniikan myynnin erityisasiantuntijat",6024]
["25 Tieto- ja viestintäteknologian erityisasiantuntijat",4661]
["251 Systeemityön erityisasiantuntijat",4651]
["2511 Sovellusarkkitehdit",4861]
["2512 Sovellussuunnittelijat",4610]
["2513 Web- ja multimediakehittäjät",3261]
["2514 Sovellusohjelmoijat",3256]
["2519 Muut ohjelmisto- ja sovelluskehittäjät",4668]
["252 Tietokantojen,- verkkojen ja järjestelmäohjelmistojen erityisasiantuntijat",4702]
["2521 Tietokantasuunnittelijat ja -vastaavat",3317]
["2522 Tietojärjestelmien ylläpitäjät",4185]
["2523 Tietoverkkojen erityisasiantuntijat",4927]
["2529 Muut tietokanta- ja tietoverkkojen erityisasiantuntijat",4689]
["26 Lainopilliset, sosiaalialan ja kulttuurialan erityisasiantuntijat",3986]
["261 Lainopilliset erityisasiantuntijat",5666]
["2611 Asianajajat",5995]
["2619 Muut lainopilliset erityisasiantuntijat",5056]
["262 Kirjaston- ja arkistonhoitajat sekä museoalan erityisasiantuntijat",3457]
["2621 Arkistonhoitajat ja museoalan erityisasiantuntijat",3246]
["26211 Arkistonhoitajat",2983]
["26212 Museoalan erityisasiantuntijat",3322]
["2622 Kirjastonhoitajat, informaatikot ym.",3574]
["263 Yhteiskunta- ja sosiaalialan sekä uskonnollisen elämän erityisasiantuntijat",3548]
["2631 Ekonomistit",4640]
["2632 Yhteiskunta- ja kulttuuritutkijat",3486]
["2633 Historioitsijat, politiikan tutkijat ja filosofit",3159]
["2634 Psykologit",3854]
["2635 Sosiaalityön erityisasiantuntijat",3050]
["26351 Sosiaalityöntekijät ym.",3153]
["26352 Sosiaalialan suunnittelijat ym.",2807]
["2636 Papit ym. uskonnollisen elämän erityisasiantuntijat",3739]
["264 Toimittajat, kirjailijat ja kielitieteilijät",3801]
["2641 Kirjailijat ym.",3693]
["2642 Toimittajat",3874]
["26421 Toimituspäälliköt ja -sihteerit, ohjelmapäälliköt",4084]
["26422 Lehtien yms. toimittajat",3777]
["2643 Kääntäjät, tulkit ja muut kielitieteilijät",3185]
["265 Taiteilijat",3285]
["2651 Kuvataiteilijat",3111]
["2652 Muusikot, laulajat ja säveltäjät",3046]
["2653 Tanssitaiteilijat ja koreografit",2567]
["2654 Ohjaajat ja tuottajat",3911]
["2655 Näyttelijät",3186]
["2659 Muut taiteilijat",".."]
["3 Asiantuntijat",3590]
["31 Luonnontieteiden ja tekniikan asiantuntijat",3597]
["311 Fysiikan, kemian ja teknisten alojen asiantuntijat",3611]
["3111 Luonnontieteen tekniset asiantuntijat",2916]
["3112 Rakentamisen asiantuntijat",3490]
["31121 Talonrakentamisen asiantuntijat",3486]
["31122 Maa- ja vesirakentamisen asiantuntijat",3467]
["31123 Kartoituksen ja maanmittauksen asiantuntijat",3372]
["3113 Sähkötekniikan asiantuntijat",3735]
["3114 Elektroniikan asiantuntijat",3649]
["3115 Konetekniikan asiantuntijat",3660]
["3116 Kemian prosessitekniikan asiantuntijat",3696]
["3117 Kaivosteollisuuden ja metallurgian asiantuntijat",3638]
["3118 Tekniset piirtäjät",3876]
["3119 Muut fysiikan, kemian ja teknisten alojen asiantuntijat",3536]
["312 Työnjohtajat kaivos-, teollisuus- ja rakennustoiminnassa",3628]
["3121 Kaivostyönjohtajat",3389]
["3122 Teollisuuden työnjohtajat",3606]
["3123 Rakennusalan työnjohtajat",3714]
["313 Prosessinvalvonnan asiantuntijat",3116]
["3131 Voimalaitosten prosessinhoitajat",3112]
["3132 Jätteenpoltto- ja vedenpuhdistuslaitosten prosessinhoitajat",3140]
["3134 Öljy- ja maakaasujalostamon prosessinhoitajat",2938]
["314 Biotieteiden asiantuntijat",2975]
["3141 Laborantit ym.",2968]
["3142 Maa- ja kalatalousteknikot",2902]
["3143 Metsätalousteknikot",3038]
["315 Laiva-, lento- ja satamaliikenteen päälliköt ja ohjaajat",5165]
["3151 Laivojen konepäälliköt ja -mestarit",4396]
["3152 Vesiliikenteen perämiehet ja päälliköt",5103]
["31521 Isojen alusten päälliköt ja perämiehet",4389]
["31522 Pienten alusten päälliköt",".."]
["31523 Satamaliikenteen ohjaajat ja satamakapteenit",5773]
["3154 Lennonjohtajat",5895]
["32 Terveydenhuollon asiantuntijat",2962]
["321 Terveydenhuollon tekniset asiantuntijat",3000]
["3211 Lääketieteellisen kuvantamis- ja laitetekniikan asiantuntijat",3009]
["3212 Bioanalyytikot (terveydenhuolto)",2944]
["3213 Farmaseutit",3032]
["3214 Hammas- ja apuvälineteknikot",2925]
["32141 Hammasteknikot",2925]
["322 Sairaanhoitajat, kätilöt ym.",2940]
["3221 Sairaanhoitajat ym.",2940]
["32211 Sairaanhoitajat",2900]
["32212 Terveydenhoitajat",3051]
["324 Seminologit ym.",2404]
["3240 Seminologit ym.",2404]
["325 Muut terveydenhuollon asiantuntijat",2993]
["3251 Suuhygienistit",2874]
["3254 Optikot",3326]
["3255 Fysioterapeutit ym.",2691]
["3257 Terveys- ja työsuojelutarkastajat",3890]
["3258 Sairaankuljetuksen ensihoitajat",3051]
["3259 Muut muualla luokittelemattomat terveydenhuollon asiantuntijat",3241]
["32591 Toimintaterapeutit",2745]
["33 Liike-elämän ja hallinnon asiantuntijat",3793]
["331 Rahoitus-, vakuutus-  ja laskentatoimen asiantuntijat",3514]
["3311 Arvopaperi- ja valuuttakauppiaat",4660]
["3312 Luotto- ja laina-asiantuntijat",4746]
["3313 Kirjanpidon ja laskentatoimen asiantuntijat",3185]
["3314 Tilastointi- ja matematiikka-asiantuntijat",3147]
["3315 Arvioitsijat ja vahinkotarkastajat",4689]
["332 Myynti- ja ostoagentit",4086]
["3321 Vakuutusalan palvelumyyjät",4842]
["3322 Myyntiedustajat",4065]
["3323 Sisäänostajat",3897]
["333 Yrityspalveluiden välittäjät",3502]
["3331 Huolitsijat, tulli- ja laivanselvittäjät",3397]
["3332 Konferenssi- ja tapahtumajärjestäjät",3303]
["3333 Työnvälittäjät",".."]
["3334 Kiinteistönvälittäjät ja isännöitsijät",3604]
["33341 Kiinteistönvälittäjät",3644]
["33342 Isännöitsijät",3581]
["3339 Muut liike-elämän asiantuntijat",3456]
["334 Hallinnolliset ja erikoistuneet sihteerit",3425]
["3341 Toimistotyön esimiehet",3730]
["3342 Asianajosihteerit",3302]
["3343 Johdon sihteerit ja osastosihteerit",3275]
["3344 Toimistosihteerit (terveydenhuolto)",2402]
["335 Julkishallinnon valmistelu- ja valvontavirkamiehet",3270]
["3353 Sosiaaliturvaetuuksien käsittelijät",3291]
["3354 Lupavirkamiehet",".."]
["3359 Muut julkishallinnon valmistelu- ja valvontavirkamiehet",".."]
["34 Lainopilliset avustajat sekä sosiaali- ja kulttuurialan asiantuntijat",3025]
["341 Lainopilliset asiantuntijat sekä sosiaalialan ja seurakunnan työntekijät",2992]
["3411 Lainopilliset avustajat ja järjestöalan asiantuntijat",3950]
["34111 Oikeudenkäyntiasiamiehet ja ulosottomiehet",3738]
["34112 Asiamiehet, toimitsijat ym. järjestöalan asiantuntijat",3965]
["34113 Kuluttajaneuvojat ym.",".."]
["3412 Sosiaalialan ohjaajat ja neuvojat ym.",2779]
["34121 Sosiaalialan ohjaajat",2823]
["34122 Nuorisotyön ohjaajat (ei srk.)",2496]
["34123 Työn- ja askarteluohjaajat",2517]
["3413 Seurakuntatyöntekijät",2682]
["34131 Diakonit ja diakonissat",2680]
["34139 Muut seurakuntatyöntekijät",2684]
["342 Urheilijat, urheiluvalmentajat, liikunnanohjaajat ym.",3588]
["3421 Urheilijat",5437]
["3422 Urheiluvalmentajat ja toimitsijat",3219]
["3423 Liikunnan ja vapaa-ajan ohjaajat",2556]
["343 Taide- ja kulttuurialan asiantuntijat sekä keittiöpäälliköt",2756]
["3431 Valokuvaajat",3183]
["3432 Sisustussuunnittelijat ym.",2399]
["3433 Gallerioiden, museoiden ja kirjastojen tekniset työntekijät",2524]
["3434 Keittiöpäälliköt",2938]
["3435 Muut taide- ja kulttuurialan asiantuntijat",2765]
["34351 Kuvaussihteerit ja muut näyttämötekniset asiantuntijat",2700]
["34359 Muut taide- ja kulttuurialan tekniset asiantuntijat",2923]
["35 Informaatio- ja tietoliikenneteknologian asiantuntijat",3700]
["351 Informaatio- ja tietoliikenneteknologian teknikot sekä käyttäjätukihenkilöt",3646]
["3511 Käytön operaattorit",3770]
["3512 Käytön tukihenkilöt",3423]
["3513 Tietoverkkoteknikot",3670]
["3514 Webmasterit ja -teknikot",3719]
["352 Teleliikenne- sekä radio- ja tv-teknikot",4057]
["3521 Lähetys- ja audiovisuaaliteknikot",3478]
["3522 Televiestinnän tekniset asiantuntijat",4209]
["4 Toimisto- ja asiakaspalvelutyöntekijät",2780]
["41 Toimistotyöntekijät",2747]
["411 Toimistoavustajat",2579]
["4110 Toimistoavustajat",2579]
["412 Yleissihteerit",2729]
["4120 Yleissihteerit",2729]
["413 Tekstinkäsittelijät ja tallentajat",3373]
["4131 Tekstinkäsittelijät",3576]
["4132 Tallentajat",2867]
["42 Asiakaspalvelutyöntekijät",2673]
["421 Rahaliikenteen asiakaspalvelutyöntekijät",2814]
["4211 Pankki- ym. toimihenkilöt",2820]
["4214 Maksujenperijät",2813]
["422 Muut asiakaspalvelutyöntekijät",2475]
["4221 Matkatoimistovirkailijat",2905]
["4222 Puhelinpalveluneuvojat",2262]
["4223 Puhelinvaihteenhoitajat",2334]
["4224 Hotellin vastaanottovirkailijat",2392]
["4225 Informaatiopisteen asiakasneuvojat",2259]
["4226 Vastaanoton ja neuvonnan hoitajat",2405]
["4227 Tutkimus- ja markkinatutkimushaastattelijat",2421]
["4229 Muualla luokittelemattomat asiakaspalvelutyöntekijät",2509]
["42299 Muut muualla luokittelemattomat asiakaspalvelutyöntekijät",2497]
["43 Laskennan ja varastoinnin toimistotyöntekijät",2882]
["431 Palkanlaskijat, vakuutuskäsittelijät ym.",2760]
["4311 Taloushallinnon toimistotyöntekijät",2688]
["4312 Tilasto-, rahoitus- ja vakuutusalan toimistotyöntekijät",2879]
["4313 Palkanlaskijat",2649]
["432 Kuljetuksen ja varastoinnin toimistotyöntekijät",3193]
["4321 Varastonhoitajat ym.",3098]
["4322 Tuotannon valmistelijat",".."]
["4323 Kuljetuksen toimistotyöntekijät",3251]
["43231 Raideliikenteen ohjaajat, ajojärjestelijät ym.",4468]
["43239 Muut kuljetuksen ja huolinnan toimistotyöntekijät",3206]
["44 Muut toimisto- ja asiakaspalvelutyöntekijät",2790]
["441 Muut toimisto- ja asiakaspalvelutyöntekijät",2790]
["4411 Kirjastotyöntekijät",2546]
["4412 Postinkantajat ja -lajittelijat",2507]
["44122 Toimistovahtimestarit",2517]
["4413 Koodaajat, oikolukijat ym.",3474]
["4415 Arkistotyöntekijät",2454]
["4416 Henkilöstöhallinnon avustavat toimistotyöntekijät",2829]
["4419 Muut muualla luokittelemattomat toimisto- ja asiakaspalvelutyöntekijät",2813]
["5 Palvelu- ja myyntityöntekijät",2514]
["51 Palvelutyöntekijät",2432]
["5113 Matkaoppaat",".."]
["512 Ravintola- ja suurtaloustyöntekijät",2504]
["5120 Ravintola- ja suurtaloustyöntekijät",2504]
["51201 Kokit, keittäjät ja kylmäköt",2223]
["51202 Ravintolaesimiehet ja vuoropäälliköt",2738]
["513 Tarjoilutyöntekijät",2258]
["5131 Tarjoilijat",2247]
["5132 Baarimestarit",2691]
["514 Kampaajat, parturit, kosmetologit ym.",2271]
["5141 Kampaajat ja parturit",2242]
["5142 Kosmetologit ym.",".."]
["515 Kiinteistöhuollon ja siivoustyön esimiehet",2414]
["5151 Siivoustyön esimiehet toimistoissa, hotelleissa ja muissa laitoksissa",3023]
["5153 Kiinteistöhuollon työntekijät",2317]
["516 Muut henkilökohtaisen palvelun työntekijät",2256]
["5163 Hautauspalvelutyöntekijät",2780]
["51632 Muut hautaustyöntekijät",2569]
["5164 Eläintenhoitajat ja lemmikkieläinten trimmaajat",2066]
["5165 Ajo-opettajat",3063]
["5169 Muualla luokittelemattomat henkilökohtaisen palvelun työntekijät",2681]
["52 Myyjät, kauppiaat ym.",2610]
["521 Katu- ja torikauppiaat",".."]
["5211 Kioski- ja torimyyjät",".."]
["522 Myyjät ja kauppiaat",2660]
["5221 Kauppiaat (pienyrittäjät)",".."]
["5222 Myymäläesimiehet",3304]
["5223 Myyjät",2521]
["523 Kassanhoitajat ja lipunmyyjät",2165]
["5230 Kassanhoitajat ja lipunmyyjät",2165]
["524 Muut myyntityöntekijät",2470]
["5242 Tuote-esittelijät",2741]
["5243 Suoramyyjät",2823]
["5244 Puhelin- ja asiakaspalvelukeskusten myyjät",2557]
["5245 Huoltamotyöntekijät",2195]
["5246 Kahvila- ja baarimyyjät",1960]
["5249 Muut muualla luokittelemattomat myyntityöntekijät",".."]
["53 Hoivapalvelun ja terveydenhuollon työntekijät",2414]
["531 Lastenhoitajat ja koulunkäyntiavustajat",2077]
["5311 Lastenhoitotyöntekijät",2087]
["53111 Päiväkotien ja muiden laitosten lastenhoitajat ym.",2060]
["53112 Perhepäivähoitajat",".."]
["53113 Lastenkerhojen ohjaajat ym.",2165]
["5312 Koulunkäyntiavustajat",1893]
["532 Lähihoitajat, muut terveydenhuollon työntekijät ja kodinhoitajat",2474]
["5321 Lähihoitajat",2526]
["53211 Mielenterveyshoitajat",2736]
["53212 Kehitysvammaisten hoitajat",2661]
["53213 Sosiaalialan hoitajat",2501]
["53219 Muut lähihoitajat",2558]
["5322 Kodinhoitajat (kotipalvelutoiminta)",2161]
["53221 Kotityöpalvelutyöntekijät",2170]
["53222 Henkilökohtaiset avustajat, omaishoitajat ym.",".."]
["5329 Muut terveydenhuoltoalan työntekijät",2231]
["53291 Hammashoitajat",2487]
["53292 Välinehuoltajat",2221]
["53293 Apteekkien lääketyöntekijät",2063]
["53294 Hierojat ja kuntohoitajat",2485]
["54 Suojelu- ja vartiointityöntekijät",2653]
["541 Suojelu- ja vartiointityöntekijät",2653]
["5414 Vartijat",2707]
["5419 Muut suojelu- ja vartiointityöntekijät",2245]
["6 Maanviljelijät, metsätyöntekijät ym.",2214]
["61 Maanviljelijät ja eläintenkasvattajat ym.",2200]
["611 Pelto- ja puutarhaviljelijät",2194]
["6111 Pelto- ja avomaaviljelijät",".."]
["6113 Puutarhurit, kasvihuoneviljelijät ja -työntekijät",2179]
["61131 Puutarhurit ja kasvihuoneviljelijät",".."]
["61132 Puutarha- ja kasvihuonetyönjohtajat ja - työntekijät",2168]
["6114 Yhdistetyn maan- ja vihannesviljelyn tai puutarhanhoidon ym. harjoittajat",".."]
["612 Eläintenkasvattajat",".."]
["6121 Liha- ja lypsykarjan kasvattajat sekä muiden kotieläinten kasvattajat",".."]
["61212 Karjanhoitajat ym.",".."]
["62 Metsä- ja kalatalouden työntekijät",".."]
["621 Metsurit ja metsätyöntekijät",".."]
["6210 Metsurit ja metsätyöntekijät",".."]
["7 Rakennus-, korjaus- ja valmistustyöntekijät",2958]
["71 Rakennustyöntekijät ym. (pl. sähköasentajat)",3149]
["711 Rakennustyöntekijät ym.",3089]
["7111 Talonrakentajat",2805]
["7115 Kirvesmiehet ja rakennuspuusepät",2990]
["7119 Muut rakennustyöntekijät",2995]
["712 Rakennusten viimeistelytyöntekijät",3309]
["7122 Lattianpäällystystyöntekijät",".."]
["7126 Putkiasentajat",2891]
["7127 Ilmastointi- ja jäähdytyslaiteasentajat",2600]
["713 Maalarit ja rakennuspuhdistajat",".."]
["7131 Rakennusmaalarit ym.",".."]
["7132 Ruiskumaalaajat ja -lakkaajat",".."]
["72 Konepaja- ja valimotyöntekijät sekä asentajat ja korjaajat",2931]
["721 Valimotyöntekijät, hitsaajat, levysepät ym.",3027]
["7212 Hitsaajat ja kaasuleikkaajat",".."]
["7213 Ohutlevysepät",".."]
["722 Sepät, työkaluntekijät ja koneenasettajat",2778]
["7222 Työkaluntekijät ja lukkosepät",".."]
["7223 Koneenasettajat ja koneistajat",2790]
["723 Koneasentajat ja -korjaajat",2955]
["7231 Moottoriajoneuvojen asentajat ja korjaajat",2887]
["7233 Maatalous- ja teollisuuskoneasentajat ja -korjaajat",3020]
["73 Käsityötuotteiden valmistajat, hienomekaanikot sekä painoalan työntekijät",2693]
["731 Käsityötuotteiden valmistajat ja hienomekaanikot",2666]
["7311 Kellosepät ja muut hienomekaanisten instrumenttien tekijät ja korjaajat",2572]
["7313 Koru-, kulta- ja hopeasepät",".."]
["732 Painoalan työntekijät",".."]
["7322 Painajat",".."]
["7323 Jälkikäsittelijät ja sitomotyöntekijät",".."]
["74 Sähkö- ja elektroniikka-alan työntekijät",3068]
["741 Sähkölaitteiden asentajat ja korjaajat",3179]
["7411 Rakennussähköasentajat",3196]
["7412 Muut sähköasentajat",3181]
["7413 Linja-asentajat ja -korjaajat",".."]
["742 Elektroniikka- ja tietoliikenneasentajat ja -korjaajat",2986]
["7421 Elektroniikka- ja automaatiolaitteiden asentajat ja korjaajat",2783]
["74211 Elektroniikka-asentajat ja -korjaajat",2733]
["74212 Automaatioasentajat ja -korjaajat",".."]
["7422 Tieto- ja viestintäteknologian asentajat ja korjaajat",3045]
["75 Elintarvike-, puutyö- ja vaatetus- ja jalkinealan valmistustyöntekijät ym.",2766]
["751 Lihanleikkaajat, leipurit, meijeristit ym.",2531]
["7511 Lihanleikkaajat, kalankäsittelijät ym.",2758]
["7512 Leipurit ja kondiittorit",2490]
["7513 Meijeristit, juustomestarit ym.",".."]
["7514 Hedelmä- ja vihannestuotteiden valmistajat",".."]
["752 Puutavaran käsittelijät, puusepät ym.",2709]
["7521 Raakapuun käsittelijät",".."]
["7522 Huonekalupuusepät ym.",2475]
["7523 Konepuusepät",2868]
["753 Vaatetusalan työntekijät ym.",2272]
["7531 Vaatturit, pukuompelijat, turkkurit ja hatuntekijät",2329]
["7533 Koru- ja muut tekstiiliompelijat",".."]
["754 Muut pääluokkaan 7 luokiteltavat työntekijät",2901]
["7543 Luokittelijat ja laaduntarkkailijat (pl. ruoat ja juomat)",2899]
["8 Prosessi- ja kuljetustyöntekijät",2846]
["81 Prosessityöntekijät",2677]
["811 Kaivos- ja louhintatyön koneenkäyttäjät",3124]
["8111 Kaivos- ja louhostyöntekijät",".."]
["8113 Iskuporaajat ja syväkairaajat",".."]
["8114 Betonituote- ym. teollisuuden prosessityöntekijät",2978]
["812 Metalliteollisuuden prosessityöntekijät ja viimeistelijät",".."]
["813 Kemianteollisuuden ja valokuvatuotteiden valmistuksen prosessityöntekijät",2782]
["8131 Kemianteollisuuden prosessityöntekijät ym.",2816]
["8132 Valokuvatuotteiden valmistuksen prosessityöntekijät",2429]
["814 Kumi-, muovi- ja paperituotteiden valmistuksen prosessityöntekijät",2842]
["8141 Kumituoteteollisuuden prosessityöntekijät",2936]
["8142 Muovituoteteollisuuden prosessityöntekijät",2785]
["815 Tekstiili-, turkis- ja nahkatuoteteollisuuden prosessityöntekijät",2042]
["8153 Teollisuusompelijat",2625]
["8156 Jalkine- ja laukkuteollisuuden prosessityöntekijät",".."]
["8157 Pesulatyöntekijät",1953]
["816 Elintarviketeollisuuden prosessityöntekijät",2670]
["8160 Elintarviketeollisuuden prosessityöntekijät",2670]
["817 Sahatavaran sekä paperin ja kartongin valmistuksen prosessityöntekijät",3173]
["8171 Paperimassan sekä paperin ja kartongin valmistuksen prosessityöntekijät",3173]
["818 Muut prosessityöntekijät",2888]
["8182 Höyrykoneiden ja lämmityskattiloiden hoitajat, lämmittäjät ym.",2815]
["81821 Voima- ja jätteenkäsittelylaitosten laitosmiehet",2815]
["8183 Pakkaus-, pullotus- ja etiköintikoneiden hoitajat",2426]
["8189 Muut muualla luokittelemattomat prosessityöntekijät",2929]
["82 Teollisuustuotteiden kokoonpanijat",3124]
["821 Teollisuustuotteiden kokoonpanijat",3124]
["8211 Konepaja- ja metallituotteiden kokoonpanijat",3391]
["8212 Sähkö- ja elektroniikkalaitteiden kokoonpanijat",2809]
["8219 Muut teollisuustuotteiden kokoonpanijat",2723]
["83 Kuljetustyöntekijät",3050]
["832 Henkilö- ja pakettiauton- sekä moottoripyöränkuljettajat",2539]
["8322 Henkilö-, taksi- ja pakettiautonkuljettajat",2538]
["833 Raskaiden moottoriajoneuvojen kuljettajat",2725]
["8331 Linja-auton- ja raitiovaununkuljettajat",2584]
["8332 Kuorma-auton ja erikoisajoneuvojen kuljettajat",2785]
["834 Työkoneiden kuljettajat",3021]
["8341 Maa- ja metsätaloustyökoneiden kuljettajat",".."]
["8342 Maansiirtokoneiden ym. kuljettajat",".."]
["8343 Nosturinkuljettajat",".."]
["835 Kansimiehistö ym. vesiliikenteen työntekijät",3324]
["8350 Kansimiehistö ym. vesiliikenteen työntekijät",3324]
["9 Muut työntekijät",2305]
["91 Siivoojat, kotiapulaiset ja muut puhdistustyöntekijät",2018]
["911 Koti-, hotelli- ja toimistosiivoojat ym.",2018]
["9112 Toimisto- ja laitossiivoojat ym.",2018]
["91121 Toimistosiivoojat ym.",1958]
["91122 Hotellisiivoojat",2025]
["91123 Sairaala- ja laitosapulaiset",2131]
["91124 Päiväkotiapulaiset",1760]
["91129 Muut muualla luokittelemattomat siivoojat",2171]
["92 Maa-, metsä- ja kalatalouden avustavat työntekijät",1831]
["921 Maa-, metsä- ja kalatalouden avustavat työntekijät",1831]
["9214 Avustavat puutarhatyöntekijät",1788]
["93 Teollisuuden ja rakentamisen avustavat työntekijät",2452]
["931 Avustavat kaivos- ja rakennustyöntekijät",2933]
["9312 Maa- ja vesirakentamisen avustavat työntekijät",3053]
["9313 Rakennusalan avustavat työntekijät",2649]
["932 Valmistusalan avustavat työntekijät",2330]
["9321 Käsinpakkaajat",".."]
["9329 Muut valmistusalan avustavat työntekijät",2222]
["933 Rahdinkäsittelijät ja varastotyöntekijät ym.",2390]
["9333 Rahdinkäsittelijät, varastotyöntekijät ym.",2391]
["9334 Hyllyjen täyttäjät",2189]
["94 Avustavat keittiö- ja ruokatyöntekijät",2026]
["941 Avustavat keittiö- ja ruokatyöntekijät",2026]
["9412 Avustavat keittiötyöntekijät",2026]
["96 Katujen puhtaanapidon ja jätehuollon työntekijät ym.",3172]
["961 Jätehuoltotyöntekijät",2350]
["9611 Jätteiden kerääjät",2421]
["9612 Jätteiden lajittelijat",".."]
["962 Sanomalehtien jakajat, lähetit ym.",3374]
["9621 Sanomalehtien jakajat, lähetit ja kantajat",".."]
["9622 Satunnaistöiden tekijät",".."]
["9629 Muut muualla luokittelemattomat työntekijät",3401]
["X Tuntematon",3228]
["x x",".."]
[]
["Yleissihteeri, tallentaja, palkanlaskija (412, 4132, 431) keskimäärin:",{"$f":"(B312+B316+B332)/3","v":2785.3333333333335}]
[]
[".. Tieto on liian epävarma esitettäväksi \n - Ei yhtään havaintoa \n <A HREF=http://tilastokeskus.fi/til/yskp/meta.html/ >Tilaston kuvaus</A>\n <A HREF=http://tilastokeskus.fi/til/yskp/laa.html/ >Laatuselosteet</A>\n<A HREF=http://tilastokeskus.fi/til/yskp/kas.html/ >Käsitteet ja määritelmät</A>"]
["Ammattiluokitus 2010:"]
["Tilastokeskuksen Ammattiluokitus 2010 on vuonna 2010 käyttöönotettu EU:n standardiluokitukseen ISCO-08:aan perustuva kansallinen versio."]
[]
["Lähde: Tilastokeskus, Yksityisen sektorin kuukausipalkat"]
["Suomen virallinen tilasto (SVT): Yksityisen sektorin kuukausipalkat [verkkojulkaisu]."]
["ISSN=1798-3894. Helsinki: Tilastokeskus [viitattu: 18.12.2017]."]
["Saantitapa: http://www.stat.fi/til/yskp/index.html"]
[]
[]
[]
[]
[]
[]
[]
[]
[]
[]
[]
[]
[]
[]
[]
[]
[]
[]
[]
[]
[]
[]
[]
[]
[]
["Tilastotietokannat:"]
[]
["Sisäinen viitekoodi:"]

{"sheet":"Päivityshistoria","index":16,"n_rows":26,"n_cols":1,"rows_kept":26,"cut":false,"hidden":false,"merged":[]}
["Päivityshistoria"]
[]
["Päivitys versiosta 1.12 versioon 1.13 (2018) / 22.1.2018"]
["• Korjattu rivinlisäysmakro niin, että uusi tyhjä rivi päätyy aina viimeiseksi."]
["• Laskentavälilehdeltä 1 muutettu esimerkkivuosi (2018->2019) ja perusvuoden taustaväri sekä oheisen selitystekstin fontti"]
["• Lisätty välilehti ”Päivityshistoria”"]
[]
["Päivitys versiosta 1.11 versioon 1.12 / 18.1.2018"]
["• Lisätty apuvälilehti 1, jossa TK:n yritystilastot"]
["• Muokattu välilehtien nimiä"]
["• Päivitetty erillinen käyttöohje"]
["• Päivitetty EKI v. 2017"]
[]
["Päivitys versiosta 1.1 versioon 1.11 / 8.12.2017"]
["• Korjattu epäjohdonmukainen arvo Yhteenveto-välilehdellä kohdassa ”Kustannukset yhteensä per yritys”"]
["• Lisätty Velvoiteluettelo-välilehdelle täydentävä kysymys muutoksen kohteena yritysjoukon koosta"]
["• Korjattu nettonykyarvon annualisointi niin, että annualisointi tehdään AINA 10 vuoden aikajänteellä velvoitteen kestosta riippumatta"]
["• Lisätty ensimmäiselle sivulle otsikko ja laskurin tekijöiden nimet"]
["• Päivitetty Ohjeistus"]
["• Päivitetty lähdeviitteitä, perustelulaattikkoja, otsikoita ja muuta ulkoasua"]
[]
["Päivitys versiosta 1.02 versioon 1.1 / 13.10.2017"]
["• Laskuria on selkiytetty: valmistelijan tarvitsemat keltaiset täyttösolut on pyritty tuomaan paremmin esille ja muita seikkoja on siirretty sivuun. Välilaskutietoja yms. on säilytetty kuitenkin sivujen alaosissa tai oikealla, jotta tiedot ja laskukaavat ovat tarkistettavissa."]
["• Muutettu inflaation ja kasvun huomioiminen nykyarvon laskennassa. Inflaatio: valmisteluvuoden rahassa lasketut kustannukset deflatoidaan elinkustannusindeksillä perusvuoteen. Perusvuodeksi on valittu 2017. Kaikki kustannuserät vertaillaan tämän perusvuoden rahassa ja arvossa. Diskonttaus tapahtuu vuoden 2017 alkuun. Diskonttaus reaalisella korolla, koska inflaatio puhdistettu edellä esitetysti."]
["• Yhteenvetotaulukkoon (Välilehti 5_Yhteeveto) on tehty pyöristyskaavat. Tarkemmat arvot ovat edelleen nähtävissä välilehden oikeassa reunassa."]
["• Muokattu velvoitenimet päivittymään kaikille syöttövälilehdille. Ulkoasua selkiytetty."]